Workbook

Sheet GZS data (hidden)
B1: kg/ha Aug | C1: percentile | F1: 0.8
B2: 133.242 | C2: =_xlfn.PERCENTRANK.EXC($F$1:$F$40,B2) -> 72.0% | F2: 0.2
F3: 0.2
F4: 0.1
F5: 0.1
F6: 68.2
F7: 21.7
F8: 46.9
F9: 22.8
F10: 50.2
F11: 283.5
F12: 264.6
F13: 179.55
F14: 113.16
F15: 121.36
F16: 91.84
F17: 36
F18: 68.88
F19: 34.44
F20: 72.16
F21: 209.45
F22: 244.09
F23: 164.84
F24: 199.71
F25: 630.96
F26: 580.77
F27: 106.26
F28: 144.21
F29: 105.78
F30: 147.58
F31: 87.92
F32: 81.64
F33: 99.18
F34: 120.06
F35: 102.66
F36: 36.1
F37: 27.3
F38: 32
F39: 0.08
F40: 6.24

Sheet Calculator tool
B1: Data below is calculated from Table 1 of Evans, N.T., Shoup, D.E., and Glover, D.C. 2014. A simplified approach for estimating age-0 gizzard shad prey supply and predator demand. Fisheries Management and Ecology. 21:140-154. For more information, please contact Dan Shoup at dshoup@okstate.edu
B3: Instructions:
B4: Enter values in yellow cells: 1=low, 2=medium, 3=high. For a species that is not present, enter 0's for all parameters. Need help deciding if your population parameter should be a 1, 2, or 3? Click on the blue box to the right of each species to see the supplemental data table that lists the actual population values from the litterature that go with a 1, 2, or 3.
A9: Column | B9: Species | C9: Growth | D9: Mortality | E9: Pop Size | F9: % Shad in diet | G9: Lookup code | H9: Age-0 Gizzard Shad needed in August for sustainability (kg/ha) | I9: Need help deciding if your population parameter should be a 1, 2, or 3? Click the box below for the species of interest to see actual values associated with 1, 2, and 3.
A10: 23 | B10: Blue Catfish | C10: 0 | D10: 0 | E10: 0 | F10: 0 | G10: =CONCATENATE(C10,"-",D10,"-",E10,"-",F10) -> 0-0-0-0 | H10: =VLOOKUP(CONCATENATE(C10,"-",D10,"-",E10,"-",F10),'Table 1'!$A$3:$AC$86,A10+($G$18-1),FALSE) -> 0.00
A11: 3 | B11: Flathead Catfish | C11: 1 | D11: 1 | E11: 1 | F11: 3 | G11: =CONCATENATE(C11,"-",D11,"-",E11,"-",F11) -> 1-1-1-3 | H11: =VLOOKUP(CONCATENATE(C11,"-",D11,"-",E11,"-",F11),'Table 1'!$A$3:$AC$86,A11+($G$18-1),FALSE) -> 0.18
A12: 11 | B12: Hybrid Striped Bass or Striped Bass | C12: 2 | D12: 2 | E12: 2 | F12: 2 | G12: 2-2-2-2 | H12: =VLOOKUP(CONCATENATE(C12,"-",D12,"-",E12,"-",F12),'Table 1'!$A$3:$AC$86,A12+($G$18-1),FALSE) -> 17.13
A13: 19 | B13: Largemouth Bass | C13: 3 | D13: 1 | E13: 2 | F13: 2 | G13: 3-1-2-2 | H13: =VLOOKUP(CONCATENATE(C13,"-",D13,"-",E13,"-",F13),'Table 1'!$A$3:$AC$86,A13+($G$18-1),FALSE) -> 29.89
A14: 15 | B14: Saugeye or Walleye | C14: 1 | D14: 1 | E14: 1 | F14: 2 | G14: 1-1-1-2 | H14: =VLOOKUP(CONCATENATE(C14,"-",D14,"-",E14,"-",F14),'Table 1'!$A$3:$AC$86,A14+($G$18-1),FALSE) -> 7.38
A15: 7 | B15: White Bass | C15: 2 | D15: 2 | E15: 2 | F15: 2 | G15: 2-2-2-2 | H15: =VLOOKUP(CONCATENATE(C15,"-",D15,"-",E15,"-",F15),'Table 1'!$A$3:$AC$86,A15+($G$18-1),FALSE) -> 10.29
A16: 27 | B16: White Crappie | C16: 2 | D16: 2 | E16: 2 | F16: 2 | G16: 2-2-2-2 | H16: =VLOOKUP(CONCATENATE(C16,"-",D16,"-",E16,"-",F16),'Table 1'!$A$3:$AC$86,A16+($G$18-1),FALSE) -> 6.23
F18: Shad production potential | G18: 2
G20: Total | H20: =SUM(H10:H19) -> 71.09
G21: Equivelant Age-0 Gizzard Shad percentile | H21: =_xlfn.PERCENTRANK.EXC('GZS data'!$F$1:$F$40,H20) -> 45.5%
B23: To be sustainable, your lake should have an age-0 gizzard shad biomass greater than | I23: =H21 -> 45.5% | J23: of lakes in the U.S.

Sheet Table 1
A1: Table 1. Mean age-0 gizzard shad biomass (kg ha 1) required on simulation day 60 (15 August) from bioenergetics models to sustainably meet predator consumption for the rest of the year at three gizzard shad productivity potentials based on non-predation mortality (low, medium and high; corresponding to age 1+ gizzard shad annual mortality rates of A = 0.55, 0.70 and 0.85, respectively). Piscivore population parameters are numerically coded in order as growth – mortality – initial population size – percent by weight gizzard shad; low (1), medium (2) and high (3) parameters correspond to the 10th percentile, 50th and 90th percentile of published values for each piscivore species.
A3: Population parameters | C3: Flathead catfish | G3: White bass | K3: Striped bass | O3: Saugeye | S3: Largemouth bass | W3: Blue catfish | AA3: White crappie
C4: Low | D4: Medium | E4: High | G4: Low | H4: Medium | I4: High | K4: Low | L4: Medium | M4: High | O4: Low | P4: Medium | Q4: High | S4: Low | T4: Medium | U4: High | W4: Low | X4: Medium | Y4: High | AA4: Low | AB4: Medium | AC4: High
A5: 0-0-0-0 | C5: 0 | D5: 0 | E5: 0 | G5: 0 | H5: 0 | I5: 0 | K5: 0 | L5: 0 | M5: 0 | O5: 0 | P5: 0 | Q5: 0 | S5: 0 | T5: 0 | U5: 0 | W5: 0 | X5: 0 | Y5: 0 | AA5: 0 | AB5: 0 | AC5: 0
A6: 1-1-1-1 | C6: 0.07 | D6: 0.09 | E6: 0.19 | G6: 7.34 | H6: 10.23 | I6: 22.87 | K6: 3.30 | L6: 4.53 | M6: 9.90 | O6: 3.65 | P6: 5.01 | Q6: 9.93 | S6: 0.02 | T6: 0.03 | U6: 0.06 | W6: 0.75 | X6: 1.01 | Y6: 2.21 | AA6: 4.36 | AB6: 5.88 | AC6: 12.51
A7: 1-1-1-2 | C7: 0.09 | D7: 0.12 | E7: 0.24 | G7: 8.35 | H7: 11.63 | I7: 26.02 | K7: 4.11 | L7: 5.64 | M7: 12.30 | O7: 5.38 | P7: 7.38 | Q7: 14.62 | S7: 0.26 | T7: 0.35 | U7: 0.77 | W7: 2.89 | X7: 3.87 | Y7: 8.52 | AA7: 7.36 | AB7: 9.94 | AC7: 21.23
A8: 1-1-1-3 | C8: 0.14 | D8: 0.18 | E8: 0.37 | G8: 9.19 | H8: 12.80 | I8: 28.65 | K8: 4.75 | L8: 6.52 | M8: 14.23 | O8: 6.22 | P8: 8.53 | Q8: 16.91 | S8: 0.65 | T8: 0.87 | U8: 1.96 | W8: 3.25 | X8: 4.34 | Y8: 9.55 | AA8: 8.76 | AB8: 11.85 | AC8: 25.35
A9: 1-1-2-1 | C9: 0.39 | D9: 0.48 | E9: 1.01 | G9: 13.11 | H9: 18.27 | I9: 40.84 | K9: 12.63 | L9: 17.33 | M9: 37.87 | O9: 17.77 | P9: 24.37 | Q9: 48.34 | S9: 0.58 | T9: 0.78 | U9: 1.75 | W9: 1.00 | X9: 1.34 | Y9: 2.95 | AA9: 18.63 | AB9: 25.11 | AC9: 53.43
A10: 1-1-2-2 | C10: 0.50 | D10: 0.62 | E10: 1.28 | G10: 14.91 | H10: 20.77 | I10: 46.46 | K10: 15.71 | L10: 21.57 | M10: 47.07 | O10: 26.16 | P10: 35.90 | Q10: 71.14 | S10: 7.34 | T10: 9.91 | U10: 22.17 | W10: 3.86 | X10: 5.16 | Y10: 11.37 | AA10: 31.44 | AB10: 42.44 | AC10: 90.64
A11: 1-1-2-3 | C11: 0.76 | D11: 0.94 | E11: 1.95 | G11: 16.41 | H11: 22.86 | I11: 51.16 | K11: 18.17 | L11: 24.96 | M11: 54.45 | O11: 30.26 | P11: 41.52 | Q11: 82.28 | S11: 18.55 | T11: 25.08 | U11: 56.16 | W11: 4.33 | X11: 5.78 | Y11: 12.74 | AA11: 37.40 | AB11: 50.60 | AC11: 108.23
A12: 1-1-3-1 | C12: 0.72 | D12: 0.89 | E12: 1.86 | G12: 18.87 | H12: 26.30 | I12: 58.82 | K12: 21.96 | L12: 30.14 | M12: 65.85 | O12: 40.30 | P12: 55.28 | Q12: 109.64 | S12: 1.41 | T12: 1.90 | U12: 4.28 | W12: 1.25 | X12: 1.67 | Y12: 3.69 | AA12: 49.85 | AB12: 67.19 | AC12: 142.95
A13: 1-1-3-2 | C13: 0.92 | D13: 1.14 | E13: 2.37 | G13: 21.47 | H13: 29.92 | I13: 66.91 | K13: 27.31 | L13: 37.51 | M13: 81.84 | O13: 59.34 | P13: 81.42 | Q13: 161.36 | S13: 17.90 | T13: 24.18 | U13: 54.08 | W13: 4.82 | X13: 6.45 | Y13: 14.21 | AA13: 84.12 | AB13: 113.55 | AC13: 242.50
A14: 1-1-3-3 | C14: 1.40 | D14: 1.74 | E14: 3.61 | G14: 23.63 | H14: 32.92 | I14: 73.67 | K14: 31.60 | L14: 43.39 | M14: 94.67 | O14: 68.62 | P14: 94.16 | Q14: 186.62 | S14: 45.26 | T14: 61.18 | U14: 137.00 | W14: 5.41 | X14: 7.23 | Y14: 15.92 | AA14: 100.05 | AB14: 135.37 | AC14: 289.56
A15: 1-2-1-1 | C15: 0.03 | D15: 0.04 | E15: 0.08 | G15: 1.76 | H15: 2.49 | I15: 5.78 | K15: 1.34 | L15: 1.85 | M15: 4.11 | O15: 1.62 | P15: 2.22 | Q15: 4.47 | S15: 0.01 | T15: 0.01 | U15: 0.03 | W15: 0.29 | X15: 0.39 | Y15: 0.87 | AA15: 0.44 | AB15: 0.63 | AC15: 1.54
A16: 1-2-1-2 | C16: 0.04 | D16: 0.05 | E16: 0.11 | G16: 1.99 | H16: 2.80 | I16: 6.51 | K16: 1.75 | L16: 2.41 | M16: 5.34 | O16: 2.59 | P16: 3.55 | Q16: 7.15 | S16: 0.10 | T16: 0.13 | U16: 0.31 | W16: 1.20 | X16: 1.61 | Y16: 3.56 | AA16: 0.74 | AB16: 1.06 | AC16: 2.66
A17: 1-2-1-3 | C17: 0.07 | D17: 0.08 | E17: 0.17 | G17: 2.11 | H17: 2.97 | I17: 6.92 | K17: 2.02 | L17: 2.79 | M17: 6.19 | O17: 2.98 | P17: 4.09 | Q17: 8.23 | S17: 0.28 | T17: 0.38 | U17: 0.88 | W17: 1.42 | X17: 1.90 | Y17: 4.20 | AA17: 1.17 | AB17: 1.66 | AC17: 4.09
A18: 1-2-2-1 | C18: 0.17 | D18: 0.21 | E18: 0.44 | G18: 3.15 | H18: 4.44 | I18: 10.32 | K18: 5.13 | L18: 7.07 | M18: 15.71 | O18: 7.87 | P18: 10.81 | Q18: 21.76 | S18: 0.12 | T18: 0.17 | U18: 0.39 | W18: 0.39 | X18: 0.52 | Y18: 1.16 | AA18: 1.88 | AB18: 2.67 | AC18: 6.57
A19: 1-2-2-2 | C19: 0.23 | D19: 0.28 | E19: 0.59 | G19: 3.55 | H19: 5.00 | I19: 11.63 | K19: 6.68 | L19: 9.22 | M19: 20.43 | O19: 12.59 | P19: 17.29 | Q19: 34.79 | S19: 1.42 | T19: 1.93 | U19: 4.44 | W19: 1.60 | X19: 2.15 | Y19: 4.75 | AA19: 3.15 | AB19: 4.51 | AC19: 11.34
A20: 1-2-2-3 | C20: 0.35 | D20: 0.44 | E20: 0.91 | G20: 3.76 | H20: 5.31 | I20: 12.35 | K20: 7.75 | L20: 10.68 | M20: 23.68 | O20: 14.50 | P20: 19.91 | Q20: 40.05 | S20: 4.06 | T20: 5.52 | U20: 12.80 | W20: 1.90 | X20: 2.54 | Y20: 5.61 | AA20: 4.98 | AB20: 7.09 | AC20: 17.47
A21: 1-2-3-1 | C21: 0.31 | D21: 0.38 | E21: 0.81 | G21: 4.53 | H21: 6.40 | I21: 14.87 | K21: 8.91 | L21: 12.29 | M21: 27.32 | O21: 17.86 | P21: 24.51 | Q21: 49.36 | S21: 0.49 | T21: 0.68 | U21: 1.58 | W21: 0.49 | X21: 0.66 | Y21: 1.45 | AA21: 5.03 | AB21: 7.14 | AC21: 17.59
A22: 1-2-3-2 | C22: 0.42 | D22: 0.52 | E22: 1.09 | G22: 5.10 | H22: 7.20 | I22: 16.75 | K22: 11.62 | L22: 16.02 | M22: 35.52 | O22: 28.56 | P22: 39.23 | Q22: 78.91 | S22: 5.73 | T22: 7.80 | U22: 17.98 | W22: 2.01 | X22: 2.68 | Y22: 5.93 | AA22: 8.42 | AB22: 12.08 | AC22: 30.34
A23: 1-2-3-3 | C23: 0.65 | D23: 0.81 | E23: 1.68 | G23: 5.42 | H23: 7.65 | I23: 17.79 | K23: 13.47 | L23: 18.58 | M23: 41.18 | O23: 32.88 | P23: 45.15 | Q23: 90.83 | S23: 16.43 | T23: 22.38 | U23: 51.85 | W23: 2.37 | X23: 3.17 | Y23: 7.01 | AA23: 13.33 | AB23: 18.98 | AC23: 46.75
A24: 1-3-1-1 | C24: 0.01 | D24: 0.01 | E24: 0.02 | G24: 0.70 | H24: 1.00 | I24: 2.41 | K24: 1.22 | L24: 1.68 | M24: 3.73 | O24: 0.51 | P24: 0.70 | Q24: 1.45 | S24: 0.00 | T24: 0.00 | U24: 0.01 | W24: 0.06 | X24: 0.08 | Y24: 0.17 | AA24: 0.13 | AB24: 0.19 | AC24: 0.51
A25: 1-3-1-2 | C25: 0.01 | D25: 0.01 | E25: 0.02 | G25: 0.78 | H25: 1.11 | I25: 2.69 | K25: 1.59 | L25: 2.20 | M25: 4.89 | O25: 0.94 | P25: 1.29 | Q25: 2.68 | S25: 0.01 | T25: 0.02 | U25: 0.05 | W25: 0.27 | X25: 0.36 | Y25: 0.81 | AA25: 0.22 | AB25: 0.32 | AC25: 0.90
A26: 1-3-1-3 | C26: 0.02 | D26: 0.02 | E26: 0.04 | G26: 0.82 | H26: 1.18 | I26: 2.84 | K26: 1.85 | L26: 2.55 | M26: 5.67 | O26: 1.07 | P26: 1.48 | Q26: 3.07 | S26: 0.05 | T26: 0.07 | U26: 0.18 | W26: 0.36 | X26: 0.49 | Y26: 1.09 | AA26: 0.39 | AB26: 0.57 | AC26: 1.52
A27: 1-3-2-1 | C27: 0.03 | D27: 0.04 | E27: 0.08 | G27: 1.24 | H27: 1.78 | I27: 4.30 | K27: 4.65 | L27: 6.41 | M27: 14.29 | O27: 2.46 | P27: 3.39 | Q27: 7.05 | S27: 0.05 | T27: 0.07 | U27: 0.18 | W27: 0.08 | X27: 0.10 | Y27: 0.23 | AA27: 0.56 | AB27: 0.82 | AC27: 2.19
A28: 1-3-2-2 | C28: 0.05 | D28: 0.06 | E28: 0.13 | G28: 1.39 | H28: 1.99 | I28: 4.81 | K28: 6.10 | L28: 8.42 | M28: 18.70 | O28: 4.56 | P28: 6.27 | Q28: 13.03 | S28: 0.41 | T28: 0.57 | U28: 1.45 | W28: 0.36 | X28: 0.48 | Y28: 1.08 | AA28: 0.92 | AB28: 1.38 | AC28: 3.83
A29: 1-3-2-3 | C29: 0.08 | D29: 0.10 | E29: 0.21 | G29: 1.47 | H29: 2.10 | I29: 5.08 | K29: 7.07 | L29: 9.76 | M29: 21.68 | O29: 5.21 | P29: 7.18 | Q29: 14.91 | S29: 1.41 | T29: 1.97 | U29: 5.02 | W29: 0.48 | X29: 0.65 | Y29: 1.45 | AA29: 1.65 | AB29: 2.42 | AC29: 6.49
A30: 1-3-3-1 | C30: 0.05 | D30: 0.07 | E30: 0.15 | G30: 1.79 | H30: 2.56 | I30: 6.19 | K30: 8.09 | L30: 11.15 | M30: 24.85 | O30: 5.59 | P30: 7.69 | Q30: 16.00 | S30: 0.12 | T30: 0.17 | U30: 0.43 | W30: 0.10 | X30: 0.13 | Y30: 0.29 | AA30: 1.49 | AB30: 2.18 | AC30: 5.87
A31: 1-3-3-2 | C31: 0.09 | D31: 0.11 | E31: 0.24 | G31: 2.00 | H31: 2.86 | I31: 6.93 | K31: 10.61 | L31: 14.64 | M31: 32.51 | O31: 10.33 | P31: 14.23 | Q31: 29.55 | S31: 1.00 | T31: 1.40 | U31: 3.53 | W31: 0.45 | X31: 0.60 | Y31: 1.35 | AA31: 2.47 | AB31: 3.69 | AC31: 10.25
A32: 1-3-3-3 | C32: 0.15 | D32: 0.18 | E32: 0.39 | G32: 2.12 | H32: 3.02 | I32: 7.31 | K32: 12.30 | L32: 16.97 | M32: 37.69 | O32: 11.83 | P32: 16.28 | Q32: 33.83 | S32: 3.44 | T32: 4.81 | U32: 12.25 | W32: 0.61 | X32: 0.81 | Y32: 1.81 | AA32: 4.40 | AB32: 6.47 | AC32: 17.35
A33: 2-1-1-1 | C33: 0.11 | D33: 0.14 | E33: 0.29 | G33: 13.08 | H33: 18.11 | I33: 40.15 | K33: 5.55 | L33: 7.59 | M33: 16.53 | O33: 6.58 | P33: 9.00 | Q33: 17.75 | S33: 0.04 | T33: 0.05 | U33: 0.11 | W33: 1.91 | X33: 2.55 | Y33: 5.57 | AA33: 6.88 | AB33: 8.92 | AC33: 17.51
A34: 2-1-1-2 | C34: 0.15 | D34: 0.19 | E34: 0.39 | G34: 14.84 | H34: 20.55 | I34: 45.58 | K34: 7.11 | L34: 9.72 | M34: 21.13 | O34: 9.78 | P34: 13.39 | Q34: 26.34 | S34: 0.48 | T34: 0.65 | U34: 1.44 | W34: 7.29 | X34: 9.74 | Y34: 21.29 | AA34: 11.70 | AB34: 15.18 | AC34: 29.84
A35: 2-1-1-3 | C35: 0.23 | D35: 0.29 | E35: 0.60 | G35: 16.22 | H35: 22.46 | I35: 49.83 | K35: 8.21 | L35: 11.23 | M35: 24.42 | O35: 11.30 | P35: 15.47 | Q35: 30.44 | S35: 1.23 | T35: 1.66 | U35: 3.67 | W35: 8.12 | X35: 10.85 | Y35: 23.70 | AA35: 13.07 | AB35: 17.02 | AC35: 33.74
A36: 2-1-2-1 | C36: 0.59 | D36: 0.74 | E36: 1.55 | G36: 23.35 | H36: 32.34 | I36: 71.69 | K36: 21.24 | L36: 29.04 | M36: 63.25 | O36: 31.99 | P36: 43.80 | Q36: 86.35 | S36: 1.06 | T36: 1.43 | U36: 3.17 | W36: 2.54 | X36: 3.40 | Y36: 7.43 | AA36: 29.36 | AB36: 38.07 | AC36: 74.75
A37: 2-1-2-2 | C37: 0.79 | D37: 0.98 | E37: 2.05 | G37: 26.51 | H37: 36.70 | I37: 81.39 | K37: 27.20 | L37: 37.20 | M37: 80.85 | O37: 47.57 | P37: 65.14 | Q37: 128.17 | S37: 13.83 | T37: 18.63 | U37: 41.34 | W37: 9.72 | X37: 12.99 | Y37: 28.40 | AA37: 49.96 | AB37: 64.82 | AC37: 127.45
A38: 2-1-2-3 | C38: 1.21 | D38: 1.51 | E38: 3.15 | G38: 28.96 | H38: 40.10 | I38: 88.98 | K38: 31.43 | L38: 42.98 | M38: 93.44 | O38: 54.98 | P38: 75.27 | Q38: 148.13 | S38: 35.33 | T38: 47.57 | U38: 105.39 | W38: 10.83 | X38: 14.47 | Y38: 31.60 | AA38: 55.81 | AB38: 72.68 | AC38: 144.10
A39: 2-1-3-1 | C39: 1.10 | D39: 1.37 | E39: 2.87 | G39: 33.63 | H39: 46.56 | I39: 103.24 | K39: 36.93 | L39: 50.49 | M39: 109.97 | O39: 72.57 | P39: 99.34 | Q39: 195.87 | S39: 2.58 | T39: 3.48 | U39: 7.72 | W39: 3.18 | X39: 4.24 | Y39: 9.28 | AA39: 78.56 | AB39: 101.86 | AC39: 200.00
A40: 2-1-3-2 | C40: 1.45 | D40: 1.81 | E40: 3.78 | G40: 38.17 | H40: 52.85 | I40: 117.21 | K40: 47.29 | L40: 64.68 | M40: 140.57 | O40: 107.91 | P40: 147.74 | Q40: 290.72 | S40: 33.74 | T40: 45.45 | U40: 100.85 | W40: 12.15 | X40: 16.24 | Y40: 35.49 | AA40: 133.67 | AB40: 173.42 | AC40: 340.97
A41: 2-1-3-3 | C41: 2.24 | D41: 2.79 | E41: 5.82 | G41: 41.70 | H41: 57.75 | I41: 128.13 | K41: 54.64 | L41: 74.74 | M41: 162.45 | O41: 124.70 | P41: 170.73 | Q41: 335.99 | S41: 86.17 | T41: 116.05 | U41: 257.07 | W41: 13.54 | X41: 18.08 | Y41: 39.50 | AA41: 149.31 | AB41: 194.44 | AC41: 385.53
A42: 2-2-1-1 | C42: 0.05 | D42: 0.06 | E42: 0.14 | G42: 3.67 | H42: 5.13 | I42: 11.77 | K42: 2.38 | L42: 3.27 | M42: 7.28 | O42: 3.08 | P42: 4.22 | Q42: 8.42 | S42: 0.02 | T42: 0.02 | U42: 0.05 | W42: 0.69 | X42: 0.92 | Y42: 2.04 | AA42: 0.61 | AB42: 0.83 | AC42: 1.92
A43: 2-2-1-2 | C43: 0.07 | D43: 0.09 | E43: 0.19 | G43: 4.12 | H43: 5.76 | I43: 13.23 | K43: 3.26 | L43: 4.48 | M43: 9.91 | O43: 4.98 | P43: 6.81 | Q43: 13.56 | S43: 0.20 | T43: 0.28 | U43: 0.62 | W43: 2.79 | X43: 3.74 | Y43: 8.24 | AA43: 1.06 | AB43: 1.46 | AC43: 3.39
A44: 2-2-1-3 | C44: 0.12 | D44: 0.15 | E44: 0.31 | G44: 4.37 | H44: 6.11 | I44: 14.02 | K44: 3.77 | L44: 5.17 | M44: 11.46 | O44: 5.73 | P44: 7.84 | Q44: 15.60 | S44: 0.58 | T44: 0.78 | U44: 1.76 | W44: 3.27 | X44: 4.37 | Y44: 9.62 | AA44: 1.41 | AB44: 1.96 | AC44: 4.62
A45: 2-2-2-1 | C45: 0.27 | D45: 0.34 | E45: 0.71 | G45: 6.56 | H45: 9.16 | I45: 21.03 | K45: 9.12 | L45: 12.53 | M45: 27.86 | O45: 15.00 | P45: 20.53 | Q45: 40.97 | S45: 0.24 | T45: 0.33 | U45: 0.74 | W45: 0.92 | X45: 1.23 | Y45: 2.72 | AA45: 2.59 | AB45: 3.54 | AC45: 8.20
A46: 2-2-2-2 | C46: 0.39 | D46: 0.49 | E46: 1.03 | G46: 7.36 | H46: 10.29 | I46: 23.63 | K46: 12.47 | L46: 17.13 | M46: 37.92 | O46: 24.22 | P46: 33.15 | Q46: 65.96 | S46: 2.95 | T46: 3.98 | U46: 8.99 | W46: 3.73 | X46: 4.98 | Y46: 10.99 | AA46: 4.54 | AB46: 6.23 | AC46: 14.47
A47: 2-2-2-3 | C47: 0.62 | D47: 0.77 | E47: 1.62 | G47: 7.80 | H47: 10.91 | I47: 25.04 | K47: 14.41 | L47: 19.80 | M47: 43.85 | O47: 27.86 | P47: 38.14 | Q47: 75.88 | S47: 8.38 | T47: 11.31 | U47: 25.48 | W47: 4.36 | X47: 5.83 | Y47: 12.83 | AA47: 6.04 | AB47: 8.36 | AC47: 19.74
A48: 2-2-3-1 | C48: 0.50 | D48: 0.62 | E48: 1.32 | G48: 9.44 | H48: 13.20 | I48: 30.28 | K48: 15.86 | L48: 21.79 | M48: 48.43 | O48: 34.02 | P48: 46.56 | Q48: 92.93 | S48: 0.98 | T48: 1.33 | U48: 2.99 | W48: 1.15 | X48: 1.54 | Y48: 3.39 | AA48: 6.92 | AB48: 9.48 | AC48: 21.94
A49: 2-2-3-2 | C49: 0.72 | D49: 0.90 | E49: 1.90 | G49: 10.61 | H49: 14.82 | I49: 34.02 | K49: 21.67 | L49: 29.78 | M49: 65.93 | O49: 54.93 | P49: 75.20 | Q49: 149.61 | S49: 11.96 | T49: 16.14 | U49: 36.41 | W49: 4.66 | X49: 6.23 | Y49: 13.73 | AA49: 12.14 | AB49: 16.67 | AC49: 38.70
A50: 2-2-3-3 | C50: 1.14 | D50: 1.42 | E50: 2.98 | G50: 11.24 | H50: 15.71 | I50: 36.06 | K50: 25.05 | L50: 34.42 | M50: 76.24 | O50: 63.19 | P50: 86.50 | Q50: 172.12 | S50: 33.95 | T50: 45.81 | U50: 103.21 | W50: 5.45 | X50: 7.29 | Y50: 16.03 | AA50: 16.16 | AB50: 22.36 | AC50: 52.80
A51: 2-3-1-1 | C51: 0.01 | D51: 0.01 | E51: 0.03 | G51: 1.56 | H51: 2.21 | I51: 5.24 | K51: 2.18 | L51: 3.00 | M51: 6.68 | O51: 1.00 | P51: 1.37 | Q51: 2.82 | S51: 0.00 | T51: 0.00 | U51: 0.01 | W51: 0.12 | X51: 0.16 | Y51: 0.36 | AA51: 0.16 | AB51: 0.23 | AC51: 0.58
A52: 2-3-1-2 | C52: 0.02 | D52: 0.02 | E52: 0.05 | G52: 1.74 | H52: 2.46 | I52: 5.85 | K52: 3.00 | L52: 4.13 | M52: 9.16 | O52: 1.86 | P52: 2.55 | Q52: 5.21 | S52: 0.03 | T52: 0.04 | U52: 0.10 | W52: 0.56 | X52: 0.75 | Y52: 1.67 | AA52: 0.28 | AB52: 0.41 | AC52: 1.04
A53: 2-3-1-3 | C53: 0.03 | D53: 0.04 | E53: 0.08 | G53: 1.84 | H53: 2.60 | I53: 6.17 | K53: 3.47 | L53: 4.77 | M53: 10.59 | O53: 2.13 | P53: 2.92 | Q53: 5.96 | S53: 0.10 | T53: 0.14 | U53: 0.33 | W53: 0.74 | X53: 0.99 | Y53: 2.21 | AA53: 0.42 | AB53: 0.60 | AC53: 1.58
A54: 2-3-2-1 | C54: 0.05 | D54: 0.06 | E54: 0.14 | G54: 2.79 | H54: 3.94 | I54: 9.35 | K54: 8.34 | L54: 11.46 | M54: 25.54 | O54: 4.88 | P54: 6.69 | Q54: 13.70 | S54: 0.10 | T54: 0.14 | U54: 0.32 | W54: 0.16 | X54: 0.22 | Y54: 0.48 | AA54: 0.68 | AB54: 0.96 | AC54: 2.46
A55: 2-3-2-2 | C55: 0.10 | D55: 0.12 | E55: 0.26 | G55: 3.11 | H55: 4.40 | I55: 10.44 | K55: 11.49 | L55: 15.80 | M55: 35.05 | O55: 9.07 | P55: 12.43 | Q55: 25.36 | S55: 0.88 | T55: 1.20 | U55: 2.87 | W55: 0.74 | X55: 1.00 | Y55: 2.22 | AA55: 1.21 | AB55: 1.73 | AC55: 4.45
A56: 2-3-2-3 | C56: 0.16 | D56: 0.21 | E56: 0.44 | G56: 3.28 | H56: 4.64 | I56: 11.01 | K56: 13.28 | L56: 18.25 | M56: 40.52 | O56: 10.38 | P56: 14.22 | Q56: 29.02 | S56: 2.94 | T56: 4.02 | U56: 9.58 | W56: 0.99 | X56: 1.32 | Y56: 2.95 | AA56: 1.80 | AB56: 2.58 | AC56: 6.75
A57: 2-3-3-1 | C57: 0.09 | D57: 0.12 | E57: 0.26 | G57: 4.02 | H57: 5.67 | I57: 13.47 | K57: 14.50 | L57: 19.93 | M57: 44.41 | O57: 11.07 | P57: 15.17 | Q57: 31.08 | S57: 0.24 | T57: 0.33 | U57: 0.78 | W57: 0.20 | X57: 0.27 | Y57: 0.60 | AA57: 1.81 | AB57: 2.57 | AC57: 6.59
A58: 2-3-3-2 | C58: 0.18 | D58: 0.23 | E58: 0.49 | G58: 4.48 | H58: 6.33 | I58: 15.03 | K58: 19.98 | L58: 27.46 | M58: 60.94 | O58: 20.58 | P58: 28.19 | Q58: 57.51 | S58: 2.15 | T58: 2.93 | U58: 7.00 | W58: 0.93 | X58: 1.24 | Y58: 2.78 | AA58: 3.25 | AB58: 4.63 | AC58: 11.90
A59: 2-3-3-3 | C59: 0.30 | D59: 0.38 | E59: 0.80 | G59: 4.73 | H59: 6.68 | I59: 15.86 | K59: 23.09 | L59: 31.74 | M59: 70.45 | O59: 23.55 | P59: 32.26 | Q59: 65.81 | S59: 7.18 | T59: 9.80 | U59: 23.36 | W59: 1.24 | X59: 1.66 | Y59: 3.68 | AA59: 4.81 | AB59: 6.91 | AC59: 18.07
A60: 3-1-1-1 | C60: 0.16 | D60: 0.20 | E60: 0.43 | G60: 20.81 | H60: 28.69 | I60: 63.40 | K60: 8.55 | L60: 11.64 | M60: 25.16 | O60: 10.37 | P60: 14.18 | Q60: 27.92 | S60: 0.06 | T60: 0.08 | U60: 0.18 | W60: 5.74 | X60: 7.68 | Y60: 16.92 | AA60: 17.30 | AB60: 21.60 | AC60: 39.07
A61: 3-1-1-2 | C61: 0.22 | D61: 0.27 | E61: 0.57 | G61: 23.59 | H61: 32.52 | I61: 71.86 | K61: 10.91 | L61: 14.86 | M61: 32.10 | O61: 15.69 | P61: 21.46 | Q61: 42.16 | S61: 0.77 | T61: 1.04 | U61: 2.30 | W61: 21.67 | X61: 29.00 | Y61: 63.80 | AA61: 29.79 | AB61: 37.19 | AC61: 67.29
A62: 3-1-1-3 | C62: 0.33 | D62: 0.42 | E62: 0.87 | G62: 25.67 | H62: 35.39 | I62: 78.23 | K62: 12.60 | L62: 17.16 | M62: 37.07 | O62: 18.12 | P62: 24.78 | Q62: 48.69 | S62: 2.01 | T62: 2.70 | U62: 5.94 | W62: 23.88 | X62: 31.95 | Y62: 70.25 | AA62: 32.78 | AB62: 41.03 | AC62: 74.72
A63: 3-1-2-1 | C63: 0.87 | D63: 1.08 | E63: 2.26 | G63: 37.16 | H63: 51.23 | I63: 113.21 | K63: 32.70 | L63: 44.53 | M63: 96.26 | O63: 50.46 | P63: 69.01 | Q63: 135.86 | S63: 1.70 | T63: 2.28 | U63: 5.03 | W63: 7.66 | X63: 10.25 | Y63: 22.56 | AA63: 73.89 | AB63: 92.25 | AC63: 166.86
A64: 3-1-2-2 | C64: 1.15 | D64: 1.43 | E64: 2.99 | G64: 42.12 | H64: 58.06 | I64: 128.32 | K64: 41.74 | L64: 56.87 | M64: 122.82 | O64: 76.36 | P64: 104.42 | Q64: 205.13 | S64: 22.22 | T64: 29.89 | U64: 66.04 | W64: 28.90 | X64: 38.67 | Y64: 85.08 | AA64: 127.22 | AB64: 158.83 | AC64: 287.37
A65: 3-1-2-3 | C65: 1.77 | D65: 2.20 | E65: 4.60 | G65: 45.84 | H65: 63.20 | I65: 139.70 | K65: 48.21 | L65: 65.68 | M65: 141.85 | O65: 88.17 | P65: 120.58 | Q65: 236.90 | S65: 57.60 | T65: 77.41 | U65: 170.43 | W65: 31.85 | X65: 42.61 | Y65: 93.68 | AA65: 139.96 | AB65: 175.22 | AC65: 319.09
A66: 3-1-3-1 | C66: 1.60 | D66: 2.00 | E66: 4.18 | G66: 53.51 | H66: 73.78 | I66: 163.02 | K66: 56.85 | L66: 77.42 | M66: 167.36 | O66: 114.46 | P66: 156.53 | Q66: 308.16 | S66: 4.15 | T66: 5.57 | U66: 12.26 | W66: 9.57 | X66: 12.81 | Y66: 28.20 | AA66: 197.69 | AB66: 246.80 | AC66: 446.42
A67: 3-1-3-2 | C67: 2.12 | D67: 2.65 | E67: 5.53 | G67: 60.65 | H67: 83.61 | I67: 184.78 | K67: 72.58 | L67: 98.88 | M67: 213.54 | O67: 173.19 | P67: 236.85 | Q67: 465.26 | S67: 54.21 | T67: 72.90 | U67: 161.10 | W67: 36.13 | X67: 48.33 | Y67: 106.35 | AA67: 340.36 | AB67: 424.94 | AC67: 768.81
A68: 3-1-3-3 | C68: 3.26 | D68: 4.07 | E68: 8.50 | G68: 66.01 | H68: 91.00 | I68: 201.16 | K68: 83.82 | L68: 114.19 | M68: 246.63 | O68: 200.00 | P68: 273.51 | Q68: 537.32 | S68: 140.51 | T68: 188.82 | U68: 415.73 | W68: 39.81 | X68: 53.26 | Y68: 117.09 | AA68: 374.45 | AB68: 468.79 | AC68: 853.68
A69: 3-2-1-1 | C69: 0.08 | D69: 0.10 | E69: 0.21 | G69: 6.42 | H69: 8.93 | I69: 20.56 | K69: 3.58 | L69: 4.90 | M69: 10.82 | O69: 5.02 | P69: 6.86 | Q69: 13.69 | S69: 0.03 | T69: 0.04 | U69: 0.09 | W69: 2.06 | X69: 2.76 | Y69: 6.10 | AA69: 1.05 | AB69: 1.39 | AC69: 2.99
A70: 3-2-1-2 | C70: 0.12 | D70: 0.15 | E70: 0.31 | G70: 7.19 | H70: 10.01 | I70: 23.05 | K70: 4.88 | L70: 6.68 | M70: 14.72 | O70: 8.33 | P70: 11.39 | Q70: 22.63 | S70: 0.35 | T70: 0.47 | U70: 1.05 | W70: 8.12 | X70: 10.87 | Y70: 23.97 | AA70: 1.87 | AB70: 2.47 | AC70: 5.31
A71: 3-2-1-3 | C71: 0.18 | D71: 0.23 | E71: 0.48 | G71: 7.61 | H71: 10.60 | I71: 24.39 | K71: 5.63 | L71: 7.71 | M71: 17.01 | O71: 9.57 | P71: 13.09 | Q71: 26.01 | S71: 1.00 | T71: 1.35 | U71: 3.00 | W71: 9.28 | X71: 12.41 | Y71: 27.34 | AA71: 2.55 | AB71: 3.38 | AC71: 7.34
A72: 3-2-2-1 | C72: 0.43 | D72: 0.53 | E72: 1.13 | G72: 11.46 | H72: 15.95 | I72: 36.71 | K72: 13.69 | L72: 18.73 | M72: 41.39 | O72: 24.43 | P72: 33.40 | Q72: 66.60 | S72: 0.42 | T72: 0.56 | U72: 1.24 | W72: 2.75 | X72: 3.69 | Y72: 8.14 | AA72: 4.50 | AB72: 5.96 | AC72: 12.78
A73: 3-2-2-2 | C73: 0.61 | D73: 0.77 | E73: 1.61 | G73: 12.84 | H73: 17.88 | I73: 41.15 | K73: 18.66 | L73: 25.55 | M73: 56.32 | O73: 40.53 | P73: 55.41 | Q73: 110.12 | S73: 5.06 | T73: 6.81 | U73: 15.24 | W73: 10.83 | X73: 14.49 | Y73: 31.96 | AA73: 7.98 | AB73: 10.56 | AC73: 22.68
A74: 3-2-2-3 | C74: 0.96 | D74: 1.20 | E74: 2.53 | G74: 13.59 | H74: 18.92 | I74: 43.56 | K74: 21.56 | L74: 29.52 | M74: 65.09 | O74: 46.59 | P74: 63.69 | Q74: 126.58 | S74: 14.53 | T74: 19.51 | U74: 43.41 | W74: 12.37 | X74: 16.55 | Y74: 36.45 | AA74: 10.88 | AB74: 14.45 | AC74: 31.34
A75: 3-2-3-1 | C75: 0.79 | D75: 0.98 | E75: 2.08 | G75: 16.50 | H75: 22.97 | I75: 52.86 | K75: 23.81 | L75: 32.57 | M75: 71.96 | O75: 55.40 | P75: 75.75 | Q75: 151.06 | S75: 1.69 | T75: 2.27 | U75: 5.02 | W75: 3.44 | X75: 4.61 | Y75: 10.17 | AA75: 12.05 | AB75: 15.93 | AC75: 34.19
A76: 3-2-3-2 | C76: 1.13 | D76: 1.42 | E76: 2.98 | G76: 18.49 | H76: 25.74 | I76: 59.26 | K76: 32.44 | L76: 44.41 | M76: 97.93 | O76: 91.94 | P76: 125.69 | Q76: 249.78 | S76: 20.51 | T76: 27.59 | U76: 61.72 | W76: 13.54 | X76: 18.11 | Y76: 39.95 | AA76: 21.36 | AB76: 28.25 | AC76: 60.67
A77: 3-2-3-3 | C77: 1.78 | D77: 2.22 | E77: 4.67 | G77: 19.57 | H77: 27.25 | I77: 62.73 | K77: 37.49 | L77: 51.32 | M77: 113.17 | O77: 105.67 | P77: 144.46 | Q77: 287.11 | S77: 58.83 | T77: 79.03 | U77: 175.82 | W77: 15.46 | X77: 20.68 | Y77: 45.56 | AA77: 29.11 | AB77: 38.67 | AC77: 83.85
A78: 3-3-1-1 | C78: 0.02 | D78: 0.02 | E78: 0.05 | G78: 2.87 | H78: 4.04 | I78: 9.68 | K78: 3.27 | L78: 4.47 | M78: 9.90 | O78: 1.74 | P78: 2.38 | Q78: 4.87 | S78: 0.01 | T78: 0.01 | U78: 0.02 | W78: 0.33 | X78: 0.44 | Y78: 0.97 | AA78: 0.28 | AB78: 0.39 | AC78: 0.91
A79: 3-3-1-2 | C79: 0.03 | D79: 0.04 | E79: 0.08 | G79: 3.19 | H79: 4.50 | I79: 10.78 | K79: 4.49 | L79: 6.15 | M79: 13.59 | O79: 3.33 | P79: 4.55 | Q79: 9.29 | S79: 0.06 | T79: 0.08 | U79: 0.18 | W79: 1.44 | X79: 1.93 | Y79: 4.28 | AA79: 0.52 | AB79: 0.70 | AC79: 1.65
A80: 3-3-1-3 | C80: 0.05 | D80: 0.06 | E80: 0.14 | G80: 3.37 | H80: 4.74 | I80: 11.36 | K80: 5.18 | L80: 7.10 | M80: 15.70 | O80: 3.81 | P80: 5.21 | Q80: 10.62 | S80: 0.19 | T80: 0.25 | U80: 0.58 | W80: 1.84 | X80: 2.46 | Y80: 5.45 | AA80: 0.79 | AB80: 1.08 | AC80: 2.54
A81: 3-3-2-1 | C81: 0.09 | D81: 0.11 | E81: 0.25 | G81: 5.12 | H81: 7.21 | I81: 17.28 | K81: 12.50 | L81: 17.11 | M81: 37.89 | O81: 8.45 | P81: 11.56 | Q81: 23.68 | S81: 0.18 | T81: 0.24 | U81: 0.55 | W81: 0.44 | X81: 0.58 | Y81: 1.30 | AA81: 1.22 | AB81: 1.65 | AC81: 3.87
A82: 3-3-2-2 | C82: 0.17 | D82: 0.21 | E82: 0.45 | G82: 5.70 | H82: 8.03 | I82: 19.24 | K82: 17.17 | L82: 23.52 | M82: 51.99 | O82: 16.20 | P82: 22.16 | Q82: 45.20 | S82: 1.59 | T82: 2.15 | U82: 5.02 | W82: 1.92 | X82: 2.57 | Y82: 5.71 | AA82: 2.21 | AB82: 3.00 | AC82: 7.03
A83: 3-3-2-3 | C83: 0.27 | D83: 0.34 | E83: 0.73 | G83: 6.01 | H83: 8.47 | I83: 20.29 | K83: 19.84 | L83: 27.17 | M83: 60.07 | O83: 18.53 | P83: 25.34 | Q83: 51.69 | S83: 5.33 | T83: 7.20 | U83: 16.65 | W83: 2.45 | X83: 3.28 | Y83: 7.26 | AA83: 3.38 | AB83: 4.60 | AC83: 10.83
A84: 3-3-3-1 | C84: 0.17 | D84: 0.21 | E84: 0.45 | G84: 7.37 | H84: 10.38 | I84: 24.88 | K84: 21.73 | L84: 29.74 | M84: 65.88 | O84: 19.16 | P84: 26.21 | Q84: 53.71 | S84: 0.44 | T84: 0.59 | U84: 1.35 | W84: 0.54 | X84: 0.73 | Y84: 1.62 | AA84: 3.25 | AB84: 4.42 | AC84: 10.36
A85: 3-3-3-2 | C85: 0.31 | D85: 0.39 | E85: 0.82 | G85: 8.21 | H85: 11.56 | I85: 27.71 | K85: 29.85 | L85: 40.90 | M85: 90.39 | O85: 36.75 | P85: 50.27 | Q85: 102.52 | S85: 3.88 | T85: 5.26 | U85: 12.25 | W85: 2.40 | X85: 3.21 | Y85: 7.13 | AA85: 5.91 | AB85: 8.03 | AC85: 18.81
A86: 3-3-3-3 | C86: 0.51 | D86: 0.63 | E86: 1.35 | G86: 8.66 | H86: 12.19 | I86: 29.22 | K86: 34.49 | L86: 47.24 | M86: 104.44 | O86: 42.02 | P86: 57.48 | Q86: 117.25 | S86: 13.00 | T86: 17.56 | U86: 40.61 | W86: 3.06 | X86: 4.10 | Y86: 9.08 | AA86: 9.04 | AB86: 12.32 | AC86: 28.98

Sheet ST2 LMB
A1: Largemouth Bass
A2: Litterature values associated with low (1), medium (2), and high (3) parameter values in Evans et al 2014 predator-prey calculation tables. For growth, pick the column under annular growth increment that most closely matches the size structure (mean weight at age) of your population at the beginning or ending of the year. Sizes are given as weight (g) because this is the relevant metric for the bioenergetic equations. To see an aproximate size in length, look at the table below the main table (assumes relative weight you specify in the yellow cell). Mortality and population size are naturally coupled. As such, pick the mortality of the three given that is most similar to your population's mortality (this will define the 1, 2, or 3 for mortality), then select the column with that mortality rate that has the total population size most similar to your populations size (look at the bottom of the table for the size with all age classes summed together). This will define the 1, 2, or 3 for initial population size.
O5: Gizzard shad consumed (percent by weight) | U5: Initial population size (number ha-1)
C6: Annual growth increment (g) | U6: Low | AA6: Medium | AG6: High
C7: Low | G7: Medium | K7: High | U7: A 37.4% | W7: A 59.1% | Y7: A 82.0% | AA7: A 37.4% | AC7: A 59.1% | AE7: A 82.0% | AG7: A 37.4% | AI7: A 59.1% | AK7: A 82.0%
A8: Age | C8: Start | E8: End | G8: Start | I8: End | K8: Start | M8: End | O8: Low | Q8: Medium | S8: High
A10: 0 | C10: - | E10: - | G10: - | I10: - | K10: - | M10: - | O10: - | Q10: - | S10: - | U10: 2.44 | W10: 3.82 | Y10: 5.30 | AA10: 421.57 | AC10: 66.01 | AE10: 915.75 | AG10: 170.81 | AI10: 267.36 | AK10: 371.04
A11: 1 | C11: 38.9 | E11: 47.6 | G11: 51.0 | I11: 146.0 | K11: 76.5 | M11: 340.4 | O11: 2.6% | Q11: 13.5% | S11: 63.9% | U11: 1.53 | W11: 1.88 | Y11: 0.95 | AA11: 43.84 | AC11: 27.22 | AE11: 27.38 | AG11: 106.93 | AI11: 110.24 | AK11: 66.79
A12: 2 | C12: 47.6 | E12: 107.5 | G12: 146.0 | I12: 343.9 | K12: 340.4 | M12: 750.6 | O12: 0.4% | Q12: 33.7% | S12: 71.2% | U12: 0.96 | W12: 0.79 | Y12: 0.17 | AA12: 27.44 | AC12: 11.43 | AE12: 4.93 | AG12: 66.94 | AI12: 46.30 | AK12: 12.02
A13: 3 | C13: 107.5 | E13: 227.1 | G13: 343.9 | I13: 579.0 | K13: 750.6 | M13: 1,188.8 | O13: 2.3% | Q13: 18.9% | S13: 69.9% | U13: 0.60 | W13: 0.33 | Y13: 0.03 | AA13: 17.18 | AC13: 4.80 | AE13: 0.89 | AG13: 41.90 | AI13: 19.45 | AK13: 2.16
A14: 4 | C14: 227.1 | E14: 348.5 | G14: 579.0 | I14: 812.6 | K14: 1,188.8 | M14: 1,535.6 | O14: 2.3% | Q14: 28.4% | S14: 73.6% | U14: 0.37 | W14: 0.14 | Y14: 0.01 | AA14: 10.75 | AC14: 2.02 | AE14: 0.16 | AG14: 26.23 | AI14: 8.17 | AK14: 0.39
A15: 5 | C15: 348.5 | E15: 490.8 | G15: 812.6 | I15: 1,188.7 | K15: 1,535.6 | M15: 1,918.9 | O15: 2.4% | Q15: 32.8% | S15: 73.6% | U15: 0.23 | W15: 0.06 | Y15: 0.00 | AA15: 6.73 | AC15: 0.85 | AE15: 0.03 | AG15: 16.42 | AI15: 3.43 | AK15: 0.07
A16: 6 | C16: 490.8 | E16: 628.9 | G16: 1,188.7 | I16: 1,465.0 | K16: 1,918.9 | M16: 2,354.6 | O16: 2.4% | Q16: 32.8% | S16: 73.6% | U16: 0.15 | W16: 0.02 | Y16: 0.00 | AA16: 4.21 | AC16: 0.36 | AE16: 0.01 | AG16: 10.28 | AI16: 1.44 | AK16: 0.01
A17: 7 | C17: 628.9 | E17: 715.2 | G17: 1,465.0 | I17: 1,599.5 | K17: 2,354.6 | M17: 2,417.9 | O17: 2.4% | Q17: 32.8% | S17: 73.6% | U17: 0.09 | W17: 0.01 | Y17: 0.00 | AA17: 2.64 | AC17: 0.15 | AE17: 0.00 | AG17: 6.43 | AI17: 0.61 | AK17: 0.00
A18: 8 | C18: 715.2 | E18: 1,147.0 | G18: 1,599.5 | I18: 1,714.2 | K18: 2,417.9 | M18: 3,040.1 | O18: 2.4% | Q18: 32.8% | S18: 73.6% | U18: 0.06 | W18: 0.00 | Y18: 0.00 | AA18: 1.65 | AC18: 0.06 | AE18: 0.00 | AG18: 4.03 | AI18: 0.25 | AK18: 0.00
A19: 9 | C19: 1,147.0 | E19: 1,578.9 | G19: 1,714.2 | I19: 1,648.0 | K19: 3,040.1 | M19: 3,662.3 | O19: 2.4% | Q19: 32.8% | S19: 73.6% | U19: 0.04 | W19: 0.00 | Y19: 0.00 | AA19: 1.03 | AC19: 0.03 | AE19: 0.00 | AG19: 2.52 | AI19: 0.11 | AK19: 0.00
S21: ∑(number ha-1) | U21: 6.47 | W21: 7.06 | Y21: 6.47 | AA21: 537.04 | AC21: 112.92 | AE21: 949.14 | AG21: 452.48 | AI21: 457.36 | AK21: 452.48
A28: To evaluate growth in mm instead of g, enter the average relative weight for your population in the yellow box below then use the below table. Note, relative weight = 92 is about average for most species
C31: Avg relative weight | E31: 92
C34: Annual growth increment (mm)
C35: Low (1) | G35: Medium (2) | K35: High (3)
A36: Age | C36: Start | E36: End | G36: Start | I36: End | K36: Start | M36: End
A38: 0 | C38: - | E38: - | G38: - | I38: - | K38: - | M38: -
A39: 1 | C39: =10^((LOG10(C11*($E$31/100))-VLOOKUP($A$1,'Rel wt'!$A$2:$D$11,2,FALSE))/VLOOKUP($A$1,'Rel wt'!$A$2:$D$11,4,FALSE)) -> 142.2 | E39: =10^((LOG10(E11*($E$31/100))-VLOOKUP($A$1,'Rel wt'!$A$2:$D$11,2,FALSE))/VLOOKUP($A$1,'Rel wt'!$A$2:$D$11,4,FALSE)) -> 151.5 | G39: =10^((LOG10(G11*($E$31/100))-VLOOKUP($A$1,'Rel wt'!$A$2:$D$11,2,FALSE))/VLOOKUP($A$1,'Rel wt'!$A$2:$D$11,4,FALSE)) -> 154.8 | I39: =10^((LOG10(I11*($E$31/100))-VLOOKUP($A$1,'Rel wt'!$A$2:$D$11,2,FALSE))/VLOOKUP($A$1,'Rel wt'!$A$2:$D$11,4,FALSE)) -> 215.2 | K39: =10^((LOG10(K11*($E$31/100))-VLOOKUP($A$1,'Rel wt'!$A$2:$D$11,2,FALSE))/VLOOKUP($A$1,'Rel wt'!$A$2:$D$11,4,FALSE)) -> 175.7 | M39: =10^((LOG10(M11*($E$31/100))-VLOOKUP($A$1,'Rel wt'!$A$2:$D$11,2,FALSE))/VLOOKUP($A$1,'Rel wt'!$A$2:$D$11,4,FALSE)) -> 280.6
A40: 2 | C40: =10^((LOG10(C12*($E$31/100))-VLOOKUP($A$1,'Rel wt'!$A$2:$D$11,2,FALSE))/VLOOKUP($A$1,'Rel wt'!$A$2:$D$11,4,FALSE)) -> 151.5 | E40: =10^((LOG10(E12*($E$31/100))-VLOOKUP($A$1,'Rel wt'!$A$2:$D$11,2,FALSE))/VLOOKUP($A$1,'Rel wt'!$A$2:$D$11,4,FALSE)) -> 195.5 | G40: =10^((LOG10(G12*($E$31/100))-VLOOKUP($A$1,'Rel wt'!$A$2:$D$11,2,FALSE))/VLOOKUP($A$1,'Rel wt'!$A$2:$D$11,4,FALSE)) -> 215.2 | I40: =10^((LOG10(I12*($E$31/100))-VLOOKUP($A$1,'Rel wt'!$A$2:$D$11,2,FALSE))/VLOOKUP($A$1,'Rel wt'!$A$2:$D$11,4,FALSE)) -> 281.5 | K40: =10^((LOG10(K12*($E$31/100))-VLOOKUP($A$1,'Rel wt'!$A$2:$D$11,2,FALSE))/VLOOKUP($A$1,'Rel wt'!$A$2:$D$11,4,FALSE)) -> 280.6 | M40: =10^((LOG10(M12*($E$31/100))-VLOOKUP($A$1,'Rel wt'!$A$2:$D$11,2,FALSE))/VLOOKUP($A$1,'Rel wt'!$A$2:$D$11,4,FALSE)) -> 359.5
A41: 3 | C41: =10^((LOG10(C13*($E$31/100))-VLOOKUP($A$1,'Rel wt'!$A$2:$D$11,2,FALSE))/VLOOKUP($A$1,'Rel wt'!$A$2:$D$11,4,FALSE)) -> 195.5 | E41: =10^((LOG10(E13*($E$31/100))-VLOOKUP($A$1,'Rel wt'!$A$2:$D$11,2,FALSE))/VLOOKUP($A$1,'Rel wt'!$A$2:$D$11,4,FALSE)) -> 247.2 | G41: =10^((LOG10(G13*($E$31/100))-VLOOKUP($A$1,'Rel wt'!$A$2:$D$11,2,FALSE))/VLOOKUP($A$1,'Rel wt'!$A$2:$D$11,4,FALSE)) -> 281.5 | I41: =10^((LOG10(I13*($E$31/100))-VLOOKUP($A$1,'Rel wt'!$A$2:$D$11,2,FALSE))/VLOOKUP($A$1,'Rel wt'!$A$2:$D$11,4,FALSE)) -> 331.4 | K41: =10^((LOG10(K13*($E$31/100))-VLOOKUP($A$1,'Rel wt'!$A$2:$D$11,2,FALSE))/VLOOKUP($A$1,'Rel wt'!$A$2:$D$11,4,FALSE)) -> 359.5 | M41: =10^((LOG10(M13*($E$31/100))-VLOOKUP($A$1,'Rel wt'!$A$2:$D$11,2,FALSE))/VLOOKUP($A$1,'Rel wt'!$A$2:$D$11,4,FALSE)) -> 415.2
A42: 4 | C42: =10^((LOG10(C14*($E$31/100))-VLOOKUP($A$1,'Rel wt'!$A$2:$D$11,2,FALSE))/VLOOKUP($A$1,'Rel wt'!$A$2:$D$11,4,FALSE)) -> 247.2 | E42: =10^((LOG10(E14*($E$31/100))-VLOOKUP($A$1,'Rel wt'!$A$2:$D$11,2,FALSE))/VLOOKUP($A$1,'Rel wt'!$A$2:$D$11,4,FALSE)) -> 282.7 | G42: =10^((LOG10(G14*($E$31/100))-VLOOKUP($A$1,'Rel wt'!$A$2:$D$11,2,FALSE))/VLOOKUP($A$1,'Rel wt'!$A$2:$D$11,4,FALSE)) -> 331.4 | I42: =10^((LOG10(I14*($E$31/100))-VLOOKUP($A$1,'Rel wt'!$A$2:$D$11,2,FALSE))/VLOOKUP($A$1,'Rel wt'!$A$2:$D$11,4,FALSE)) -> 368.5 | K42: =10^((LOG10(K14*($E$31/100))-VLOOKUP($A$1,'Rel wt'!$A$2:$D$11,2,FALSE))/VLOOKUP($A$1,'Rel wt'!$A$2:$D$11,4,FALSE)) -> 415.2 | M42: =10^((LOG10(M14*($E$31/100))-VLOOKUP($A$1,'Rel wt'!$A$2:$D$11,2,FALSE))/VLOOKUP($A$1,'Rel wt'!$A$2:$D$11,4,FALSE)) -> 449.9
A43: 5 | C43: =10^((LOG10(C15*($E$31/100))-VLOOKUP($A$1,'Rel wt'!$A$2:$D$11,2,FALSE))/VLOOKUP($A$1,'Rel wt'!$A$2:$D$11,4,FALSE)) -> 282.7 | E43: =10^((LOG10(E15*($E$31/100))-VLOOKUP($A$1,'Rel wt'!$A$2:$D$11,2,FALSE))/VLOOKUP($A$1,'Rel wt'!$A$2:$D$11,4,FALSE)) -> 314.7 | G43: =10^((LOG10(G15*($E$31/100))-VLOOKUP($A$1,'Rel wt'!$A$2:$D$11,2,FALSE))/VLOOKUP($A$1,'Rel wt'!$A$2:$D$11,4,FALSE)) -> 368.5 | I43: =10^((LOG10(I15*($E$31/100))-VLOOKUP($A$1,'Rel wt'!$A$2:$D$11,2,FALSE))/VLOOKUP($A$1,'Rel wt'!$A$2:$D$11,4,FALSE)) -> 415.2 | K43: =10^((LOG10(K15*($E$31/100))-VLOOKUP($A$1,'Rel wt'!$A$2:$D$11,2,FALSE))/VLOOKUP($A$1,'Rel wt'!$A$2:$D$11,4,FALSE)) -> 449.9 | M43: =10^((LOG10(M15*($E$31/100))-VLOOKUP($A$1,'Rel wt'!$A$2:$D$11,2,FALSE))/VLOOKUP($A$1,'Rel wt'!$A$2:$D$11,4,FALSE)) -> 482.4
A44: 6 | C44: =10^((LOG10(C16*($E$31/100))-VLOOKUP($A$1,'Rel wt'!$A$2:$D$11,2,FALSE))/VLOOKUP($A$1,'Rel wt'!$A$2:$D$11,4,FALSE)) -> 314.7 | E44: =10^((LOG10(E16*($E$31/100))-VLOOKUP($A$1,'Rel wt'!$A$2:$D$11,2,FALSE))/VLOOKUP($A$1,'Rel wt'!$A$2:$D$11,4,FALSE)) -> 340.1 | G44: =10^((LOG10(G16*($E$31/100))-VLOOKUP($A$1,'Rel wt'!$A$2:$D$11,2,FALSE))/VLOOKUP($A$1,'Rel wt'!$A$2:$D$11,4,FALSE)) -> 415.2 | I44: =10^((LOG10(I16*($E$31/100))-VLOOKUP($A$1,'Rel wt'!$A$2:$D$11,2,FALSE))/VLOOKUP($A$1,'Rel wt'!$A$2:$D$11,4,FALSE)) -> 443.3 | K44: =10^((LOG10(K16*($E$31/100))-VLOOKUP($A$1,'Rel wt'!$A$2:$D$11,2,FALSE))/VLOOKUP($A$1,'Rel wt'!$A$2:$D$11,4,FALSE)) -> 482.4 | M44: =10^((LOG10(M16*($E$31/100))-VLOOKUP($A$1,'Rel wt'!$A$2:$D$11,2,FALSE))/VLOOKUP($A$1,'Rel wt'!$A$2:$D$11,4,FALSE)) -> 514.4
A45: 7 | C45: =10^((LOG10(C17*($E$31/100))-VLOOKUP($A$1,'Rel wt'!$A$2:$D$11,2,FALSE))/VLOOKUP($A$1,'Rel wt'!$A$2:$D$11,4,FALSE)) -> 340.1 | E45: =10^((LOG10(E17*($E$31/100))-VLOOKUP($A$1,'Rel wt'!$A$2:$D$11,2,FALSE))/VLOOKUP($A$1,'Rel wt'!$A$2:$D$11,4,FALSE)) -> 354.1 | G45: =10^((LOG10(G17*($E$31/100))-VLOOKUP($A$1,'Rel wt'!$A$2:$D$11,2,FALSE))/VLOOKUP($A$1,'Rel wt'!$A$2:$D$11,4,FALSE)) -> 443.3 | I45: =10^((LOG10(I17*($E$31/100))-VLOOKUP($A$1,'Rel wt'!$A$2:$D$11,2,FALSE))/VLOOKUP($A$1,'Rel wt'!$A$2:$D$11,4,FALSE)) -> 455.7 | K45: =10^((LOG10(K17*($E$31/100))-VLOOKUP($A$1,'Rel wt'!$A$2:$D$11,2,FALSE))/VLOOKUP($A$1,'Rel wt'!$A$2:$D$11,4,FALSE)) -> 514.4 | M45: =10^((LOG10(M17*($E$31/100))-VLOOKUP($A$1,'Rel wt'!$A$2:$D$11,2,FALSE))/VLOOKUP($A$1,'Rel wt'!$A$2:$D$11,4,FALSE)) -> 518.7
A46: 8 | C46: =10^((LOG10(C18*($E$31/100))-VLOOKUP($A$1,'Rel wt'!$A$2:$D$11,2,FALSE))/VLOOKUP($A$1,'Rel wt'!$A$2:$D$11,4,FALSE)) -> 354.1 | E46: =10^((LOG10(E18*($E$31/100))-VLOOKUP($A$1,'Rel wt'!$A$2:$D$11,2,FALSE))/VLOOKUP($A$1,'Rel wt'!$A$2:$D$11,4,FALSE)) -> 410.6 | G46: =10^((LOG10(G18*($E$31/100))-VLOOKUP($A$1,'Rel wt'!$A$2:$D$11,2,FALSE))/VLOOKUP($A$1,'Rel wt'!$A$2:$D$11,4,FALSE)) -> 455.7 | I46: =10^((LOG10(I18*($E$31/100))-VLOOKUP($A$1,'Rel wt'!$A$2:$D$11,2,FALSE))/VLOOKUP($A$1,'Rel wt'!$A$2:$D$11,4,FALSE)) -> 465.7 | K46: =10^((LOG10(K18*($E$31/100))-VLOOKUP($A$1,'Rel wt'!$A$2:$D$11,2,FALSE))/VLOOKUP($A$1,'Rel wt'!$A$2:$D$11,4,FALSE)) -> 518.7 | M46: =10^((LOG10(M18*($E$31/100))-VLOOKUP($A$1,'Rel wt'!$A$2:$D$11,2,FALSE))/VLOOKUP($A$1,'Rel wt'!$A$2:$D$11,4,FALSE)) -> 557.3
A47: 9 | C47: =10^((LOG10(C19*($E$31/100))-VLOOKUP($A$1,'Rel wt'!$A$2:$D$11,2,FALSE))/VLOOKUP($A$1,'Rel wt'!$A$2:$D$11,4,FALSE)) -> 410.6 | E47: =10^((LOG10(E19*($E$31/100))-VLOOKUP($A$1,'Rel wt'!$A$2:$D$11,2,FALSE))/VLOOKUP($A$1,'Rel wt'!$A$2:$D$11,4,FALSE)) -> 453.8 | G47: =10^((LOG10(G19*($E$31/100))-VLOOKUP($A$1,'Rel wt'!$A$2:$D$11,2,FALSE))/VLOOKUP($A$1,'Rel wt'!$A$2:$D$11,4,FALSE)) -> 465.7 | I47: =10^((LOG10(I19*($E$31/100))-VLOOKUP($A$1,'Rel wt'!$A$2:$D$11,2,FALSE))/VLOOKUP($A$1,'Rel wt'!$A$2:$D$11,4,FALSE)) -> 460.0 | K47: =10^((LOG10(K19*($E$31/100))-VLOOKUP($A$1,'Rel wt'!$A$2:$D$11,2,FALSE))/VLOOKUP($A$1,'Rel wt'!$A$2:$D$11,4,FALSE)) -> 557.3 | M47: =10^((LOG10(M19*($E$31/100))-VLOOKUP($A$1,'Rel wt'!$A$2:$D$11,2,FALSE))/VLOOKUP($A$1,'Rel wt'!$A$2:$D$11,4,FALSE)) -> 590.7

Sheet ST3 WHB
A1: White Bass
A2: Litterature values associated with low (1), medium (2), and high (3) parameter values in Evans et al 2014 predator-prey calculation tables. For growth, pick the column under annular growth increment that most closely matches the size structure (mean weight at age) of your population at the beginning or ending of the year. Sizes are given as weight (g) because this is the relevant metric for the bioenergetic equations. To see an aproximate size in length, look at the table below the main table (assumes relative weight you specify in the yellow cell). Mortality and population size are naturally coupled. As such, pick the mortality of the three given that is most similar to your population's mortality (this will define the 1, 2, or 3 for mortality), then select the column with that mortality rate that has the total population size most similar to your populations size (look at the bottom of the table for the size with all age classes summed together). This will define the 1, 2, or 3 for initial population size.
O5: Gizzard shad consumed (percent by weight) | U5: Initial population size (number ha-1)
C6: Annual growth increment (g) | U6: Low | AA6: Medium | AG6: High
C7: Low | G7: Medium | K7: High | U7: A 38.2% | W7: A 62.4% | Y7: A 79.4% | AA7: A 38.2% | AC7: A 62.4% | AE7: A 79.4% | AG7: A 38.2% | AI7: A 62.4% | AK7: A 79.4%
A8: Age | C8: Start | E8: End | G8: Start | I8: End | K8: Start | M8: End | O8: Low | Q8: Medium | S8: High
A10: 0 | C10: - | E10: - | G10: - | I10: - | K10: - | M10: - | O10: - | Q10: - | S10: - | U10: 12.63 | W10: 20.19 | Y10: 25.69 | AA10: 22.55 | AC10: 36.06 | AE10: 45.87 | AG10: 32.47 | AI10: 51.92 | AK10: 66.06
A11: 1 | C11: 22.1 | E11: 105.8 | G11: 61.2 | I11: 273.6 | K11: 183.4 | M11: 503.6 | O11: 68.1% | Q11: 76.1% | S11: 82.7% | U11: 7.80 | W11: 7.15 | Y11: 5.29 | AA11: 13.94 | AC11: 12.78 | AE11: 9.45 | AG11: 20.07 | AI11: 18.40 | AK11: 13.61
A12: 2 | C12: 105.8 | E12: 227.6 | G12: 273.6 | I12: 478.8 | K12: 503.6 | M12: 833.6 | O12: 65.5% | Q12: 73.4% | S12: 81.5% | U12: 4.82 | W12: 2.36 | Y12: 1.09 | AA12: 8.61 | AC12: 4.22 | AE12: 1.95 | AG12: 12.40 | AI12: 6.07 | AK12: 2.80
A13: 3 | C13: 227.6 | E13: 369.0 | G13: 478.8 | I13: 630.6 | K13: 833.6 | M13: 1,013.4 | O13: 65.5% | Q13: 73.4% | S13: 80.4% | U13: 2.98 | W13: 0.78 | Y13: 0.22 | AA13: 5.32 | AC13: 1.39 | AE13: 0.40 | AG13: 7.66 | AI13: 2.00 | AK13: 0.58
A14: 4 | C14: 369.0 | E14: 450.0 | G14: 630.6 | I14: 720.9 | K14: 1,013.4 | M14: 1,067.6 | O14: 65.5% | Q14: 73.4% | S14: 80.8% | U14: 1.84 | W14: 0.26 | Y14: 0.05 | AA14: 3.29 | AC14: 0.46 | AE14: 0.08 | AG14: 4.74 | AI14: 0.66 | AK14: 0.12
A15: 5 | C15: 450.0 | E15: 508.4 | G15: 720.9 | I15: 803.7 | K15: 1,067.6 | M15: 1,142.7 | O15: 65.5% | Q15: 74.0% | S15: 96.7% | U15: 1.14 | W15: 0.08 | Y15: 0.01 | AA15: 2.03 | AC15: 0.15 | AE15: 0.02 | AG15: 2.93 | AI15: 0.22 | AK15: 0.02
A16: 6 | C16: 508.4 | E16: 579.0 | G16: 803.7 | I16: 900.5 | K16: 1,142.7 | M16: 1,369.5 | O16: 65.5% | Q16: 75.4% | S16: 96.7% | U16: 0.70 | W16: 0.03 | Y16: 0.00 | AA16: 1.26 | AC16: 0.05 | AE16: 0.00 | AG16: 1.81 | AI16: 0.07 | AK16: 0.01
A17: 7 | C17: 579.0 | E17: 649.7 | G17: 900.5 | I17: 963.8 | K17: 1,369.5 | M17: 1,596.3 | O17: 65.5% | Q17: 75.4% | S17: 96.7% | U17: 0.43 | W17: 0.01 | Y17: 0.00 | AA17: 0.78 | AC17: 0.02 | AE17: 0.00 | AG17: 1.12 | AI17: 0.02 | AK17: 0.00
S19: ∑(number ha-1) | U19: 32.36 | W19: 30.87 | Y19: 32.36 | AA19: 57.78 | AC19: 55.12 | AE19: 57.78 | AG19: 83.20 | AI19: 79.37 | AK19: 83.20
A26: To evaluate growth in mm instead of g, enter the average relative weight for your population in the yellow box below then use the below table. Note, relative weight = 92 is about average for most species
C29: Avg relative weight | E29: 92
C32: Annual growth increment (mm)
C33: Low (1) | G33: Medium (2) | K33: High (3)
A34: Age | C34: Start | E34: End | G34: Start | I34: End | K34: Start | M34: End
A36: 0 | C36: - | E36: - | G36: - | I36: - | K36: - | M36: -
A37: 1 | C37: =10^((LOG10(C11*($E$29/100))-VLOOKUP($A$1,'Rel wt'!$A$2:$D$11,2,FALSE))/VLOOKUP($A$1,'Rel wt'!$A$2:$D$11,4,FALSE)) -> 112.1 | E37: =10^((LOG10(E11*($E$29/100))-VLOOKUP($A$1,'Rel wt'!$A$2:$D$11,2,FALSE))/VLOOKUP($A$1,'Rel wt'!$A$2:$D$11,4,FALSE)) -> 186.3 | G37: =10^((LOG10(G11*($E$29/100))-VLOOKUP($A$1,'Rel wt'!$A$2:$D$11,2,FALSE))/VLOOKUP($A$1,'Rel wt'!$A$2:$D$11,4,FALSE)) -> 156.0 | I37: =10^((LOG10(I11*($E$29/100))-VLOOKUP($A$1,'Rel wt'!$A$2:$D$11,2,FALSE))/VLOOKUP($A$1,'Rel wt'!$A$2:$D$11,4,FALSE)) -> 253.6 | K37: =10^((LOG10(K11*($E$29/100))-VLOOKUP($A$1,'Rel wt'!$A$2:$D$11,2,FALSE))/VLOOKUP($A$1,'Rel wt'!$A$2:$D$11,4,FALSE)) -> 222.7 | M37: =10^((LOG10(M11*($E$29/100))-VLOOKUP($A$1,'Rel wt'!$A$2:$D$11,2,FALSE))/VLOOKUP($A$1,'Rel wt'!$A$2:$D$11,4,FALSE)) -> 309.1
A38: 2 | C38: =10^((LOG10(C12*($E$29/100))-VLOOKUP($A$1,'Rel wt'!$A$2:$D$11,2,FALSE))/VLOOKUP($A$1,'Rel wt'!$A$2:$D$11,4,FALSE)) -> 186.3 | E38: =10^((LOG10(E12*($E$29/100))-VLOOKUP($A$1,'Rel wt'!$A$2:$D$11,2,FALSE))/VLOOKUP($A$1,'Rel wt'!$A$2:$D$11,4,FALSE)) -> 238.8 | G38: =10^((LOG10(G12*($E$29/100))-VLOOKUP($A$1,'Rel wt'!$A$2:$D$11,2,FALSE))/VLOOKUP($A$1,'Rel wt'!$A$2:$D$11,4,FALSE)) -> 253.6 | I38: =10^((LOG10(I12*($E$29/100))-VLOOKUP($A$1,'Rel wt'!$A$2:$D$11,2,FALSE))/VLOOKUP($A$1,'Rel wt'!$A$2:$D$11,4,FALSE)) -> 304.1 | K38: =10^((LOG10(K12*($E$29/100))-VLOOKUP($A$1,'Rel wt'!$A$2:$D$11,2,FALSE))/VLOOKUP($A$1,'Rel wt'!$A$2:$D$11,4,FALSE)) -> 309.1 | M38: =10^((LOG10(M12*($E$29/100))-VLOOKUP($A$1,'Rel wt'!$A$2:$D$11,2,FALSE))/VLOOKUP($A$1,'Rel wt'!$A$2:$D$11,4,FALSE)) -> 364.0
A39: 3 | C39: =10^((LOG10(C13*($E$29/100))-VLOOKUP($A$1,'Rel wt'!$A$2:$D$11,2,FALSE))/VLOOKUP($A$1,'Rel wt'!$A$2:$D$11,4,FALSE)) -> 238.8 | E39: =10^((LOG10(E13*($E$29/100))-VLOOKUP($A$1,'Rel wt'!$A$2:$D$11,2,FALSE))/VLOOKUP($A$1,'Rel wt'!$A$2:$D$11,4,FALSE)) -> 279.4 | G39: =10^((LOG10(G13*($E$29/100))-VLOOKUP($A$1,'Rel wt'!$A$2:$D$11,2,FALSE))/VLOOKUP($A$1,'Rel wt'!$A$2:$D$11,4,FALSE)) -> 304.1 | I39: =10^((LOG10(I13*($E$29/100))-VLOOKUP($A$1,'Rel wt'!$A$2:$D$11,2,FALSE))/VLOOKUP($A$1,'Rel wt'!$A$2:$D$11,4,FALSE)) -> 332.5 | K39: =10^((LOG10(K13*($E$29/100))-VLOOKUP($A$1,'Rel wt'!$A$2:$D$11,2,FALSE))/VLOOKUP($A$1,'Rel wt'!$A$2:$D$11,4,FALSE)) -> 364.0 | M39: =10^((LOG10(M13*($E$29/100))-VLOOKUP($A$1,'Rel wt'!$A$2:$D$11,2,FALSE))/VLOOKUP($A$1,'Rel wt'!$A$2:$D$11,4,FALSE)) -> 387.8
A40: 4 | C40: =10^((LOG10(C14*($E$29/100))-VLOOKUP($A$1,'Rel wt'!$A$2:$D$11,2,FALSE))/VLOOKUP($A$1,'Rel wt'!$A$2:$D$11,4,FALSE)) -> 279.4 | E40: =10^((LOG10(E14*($E$29/100))-VLOOKUP($A$1,'Rel wt'!$A$2:$D$11,2,FALSE))/VLOOKUP($A$1,'Rel wt'!$A$2:$D$11,4,FALSE)) -> 298.0 | G40: =10^((LOG10(G14*($E$29/100))-VLOOKUP($A$1,'Rel wt'!$A$2:$D$11,2,FALSE))/VLOOKUP($A$1,'Rel wt'!$A$2:$D$11,4,FALSE)) -> 332.5 | I40: =10^((LOG10(I14*($E$29/100))-VLOOKUP($A$1,'Rel wt'!$A$2:$D$11,2,FALSE))/VLOOKUP($A$1,'Rel wt'!$A$2:$D$11,4,FALSE)) -> 347.2 | K40: =10^((LOG10(K14*($E$29/100))-VLOOKUP($A$1,'Rel wt'!$A$2:$D$11,2,FALSE))/VLOOKUP($A$1,'Rel wt'!$A$2:$D$11,4,FALSE)) -> 387.8 | M40: =10^((LOG10(M14*($E$29/100))-VLOOKUP($A$1,'Rel wt'!$A$2:$D$11,2,FALSE))/VLOOKUP($A$1,'Rel wt'!$A$2:$D$11,4,FALSE)) -> 394.4
A41: 5 | C41: =10^((LOG10(C15*($E$29/100))-VLOOKUP($A$1,'Rel wt'!$A$2:$D$11,2,FALSE))/VLOOKUP($A$1,'Rel wt'!$A$2:$D$11,4,FALSE)) -> 298.0 | E41: =10^((LOG10(E15*($E$29/100))-VLOOKUP($A$1,'Rel wt'!$A$2:$D$11,2,FALSE))/VLOOKUP($A$1,'Rel wt'!$A$2:$D$11,4,FALSE)) -> 310.0 | G41: =10^((LOG10(G15*($E$29/100))-VLOOKUP($A$1,'Rel wt'!$A$2:$D$11,2,FALSE))/VLOOKUP($A$1,'Rel wt'!$A$2:$D$11,4,FALSE)) -> 347.2 | I41: =10^((LOG10(I15*($E$29/100))-VLOOKUP($A$1,'Rel wt'!$A$2:$D$11,2,FALSE))/VLOOKUP($A$1,'Rel wt'!$A$2:$D$11,4,FALSE)) -> 359.7 | K41: =10^((LOG10(K15*($E$29/100))-VLOOKUP($A$1,'Rel wt'!$A$2:$D$11,2,FALSE))/VLOOKUP($A$1,'Rel wt'!$A$2:$D$11,4,FALSE)) -> 394.4 | M41: =10^((LOG10(M15*($E$29/100))-VLOOKUP($A$1,'Rel wt'!$A$2:$D$11,2,FALSE))/VLOOKUP($A$1,'Rel wt'!$A$2:$D$11,4,FALSE)) -> 403.2
A42: 6 | C42: =10^((LOG10(C16*($E$29/100))-VLOOKUP($A$1,'Rel wt'!$A$2:$D$11,2,FALSE))/VLOOKUP($A$1,'Rel wt'!$A$2:$D$11,4,FALSE)) -> 310.0 | E42: =10^((LOG10(E16*($E$29/100))-VLOOKUP($A$1,'Rel wt'!$A$2:$D$11,2,FALSE))/VLOOKUP($A$1,'Rel wt'!$A$2:$D$11,4,FALSE)) -> 323.4 | G42: =10^((LOG10(G16*($E$29/100))-VLOOKUP($A$1,'Rel wt'!$A$2:$D$11,2,FALSE))/VLOOKUP($A$1,'Rel wt'!$A$2:$D$11,4,FALSE)) -> 359.7 | I42: =10^((LOG10(I16*($E$29/100))-VLOOKUP($A$1,'Rel wt'!$A$2:$D$11,2,FALSE))/VLOOKUP($A$1,'Rel wt'!$A$2:$D$11,4,FALSE)) -> 373.2 | K42: =10^((LOG10(K16*($E$29/100))-VLOOKUP($A$1,'Rel wt'!$A$2:$D$11,2,FALSE))/VLOOKUP($A$1,'Rel wt'!$A$2:$D$11,4,FALSE)) -> 403.2 | M42: =10^((LOG10(M16*($E$29/100))-VLOOKUP($A$1,'Rel wt'!$A$2:$D$11,2,FALSE))/VLOOKUP($A$1,'Rel wt'!$A$2:$D$11,4,FALSE)) -> 427.6
A43: 7 | C43: =10^((LOG10(C17*($E$29/100))-VLOOKUP($A$1,'Rel wt'!$A$2:$D$11,2,FALSE))/VLOOKUP($A$1,'Rel wt'!$A$2:$D$11,4,FALSE)) -> 323.4 | E43: =10^((LOG10(E17*($E$29/100))-VLOOKUP($A$1,'Rel wt'!$A$2:$D$11,2,FALSE))/VLOOKUP($A$1,'Rel wt'!$A$2:$D$11,4,FALSE)) -> 335.7 | G43: =10^((LOG10(G17*($E$29/100))-VLOOKUP($A$1,'Rel wt'!$A$2:$D$11,2,FALSE))/VLOOKUP($A$1,'Rel wt'!$A$2:$D$11,4,FALSE)) -> 373.2 | I43: =10^((LOG10(I17*($E$29/100))-VLOOKUP($A$1,'Rel wt'!$A$2:$D$11,2,FALSE))/VLOOKUP($A$1,'Rel wt'!$A$2:$D$11,4,FALSE)) -> 381.6 | K43: =10^((LOG10(K17*($E$29/100))-VLOOKUP($A$1,'Rel wt'!$A$2:$D$11,2,FALSE))/VLOOKUP($A$1,'Rel wt'!$A$2:$D$11,4,FALSE)) -> 427.6 | M43: =10^((LOG10(M17*($E$29/100))-VLOOKUP($A$1,'Rel wt'!$A$2:$D$11,2,FALSE))/VLOOKUP($A$1,'Rel wt'!$A$2:$D$11,4,FALSE)) -> 449.4

Sheet ST4 STB
A1: Striper & Hybrid Bass
A2: Litterature values associated with low (1), medium (2), and high (3) parameter values in Evans et al 2014 predator-prey calculation tables. For growth, pick the column under annular growth increment that most closely matches the size structure (mean weight at age) of your population at the beginning or ending of the year. Sizes are given as weight (g) because this is the relevant metric for the bioenergetic equations. To see an aproximate size in length, look at the table below the main table (assumes relative weight you specify in the yellow cell). Mortality and population size are naturally coupled. As such, pick the mortality of the three given that is most similar to your population's mortality (this will define the 1, 2, or 3 for mortality), then select the column with that mortality rate that has the total population size most similar to your populations size (look at the bottom of the table for the size with all age classes summed together). This will define the 1, 2, or 3 for initial population size.
O5: Gizzard shad consumed (percent by weight) | U5: Initial population size (number ha-1)
C6: Annual growth increment (g) | U6: Low | AA6: Medium | AG6: High
C7: Low | G7: Medium | K7: High | U7: A 43.2% | W7: A 54.7% | Y7: A 61.3% | AA7: A 43.2% | AC7: A 54.7% | AE7: A 61.3% | AG7: A 43.2% | AI7: A 54.7% | AK7: A 61.3%
A8: Age | C8: Start | E8: End | G8: Start | I8: End | K8: Start | M8: End | O8: Low | Q8: Medium | S8: High
A10: 0 | C10: - | E10: - | G10: - | I10: - | K10: - | M10: - | O10: - | Q10: - | S10: - | U10: 2.41 | W10: 3.03 | Y10: 3.38 | AA10: 9.22 | AC10: 11.58 | AE10: 12.94 | AG10: 16.04 | AI10: 20.13 | AK10: 22.50
A11: 1 | C11: 53.8 | E11: 335.7 | G11: 202.1 | I11: 853.0 | K11: 375.2 | M11: 1,244.3 | O11: 44.5% | Q11: 69.0% | S11: 93.7% | U11: 1.37 | W11: 1.33 | Y11: 1.31 | AA11: 5.24 | AC11: 5.08 | AE11: 5.01 | AG11: 9.11 | AI11: 8.84 | AK11: 8.72
A12: 2 | C12: 335.7 | E12: 816.8 | G12: 853.0 | I12: 1,531.5 | K12: 1,244.3 | M12: 2,387.3 | O12: 64.5% | Q12: 70.2% | S12: 91.5% | U12: 0.78 | W12: 0.53 | Y12: 0.51 | AA12: 2.97 | AC12: 2.05 | AE12: 1.94 | AG12: 5.17 | AI12: 3.56 | AK12: 3.38
A13: 3 | C13: 816.8 | E13: 1,629.3 | G13: 1,531.5 | I13: 2,256.7 | K13: 2,387.3 | M13: 3,648.4 | O13: 64.5% | Q13: 71.5% | S13: 91.5% | U13: 0.44 | W13: 0.22 | Y13: 0.20 | AA13: 1.69 | AC13: 0.82 | AE13: 0.75 | AG13: 2.94 | AI13: 1.43 | AK13: 1.31
A14: 4 | C14: 1,629.3 | E14: 1,797.9 | G14: 2,256.7 | I14: 3,074.8 | K14: 3,648.4 | M14: 5,257.0 | O14: 64.6% | Q14: 77.4% | S14: 91.5% | U14: 0.25 | W14: 0.09 | Y14: 0.08 | AA14: 0.96 | AC14: 0.33 | AE14: 0.29 | AG14: 1.67 | AI14: 0.58 | AK14: 0.51
A15: 5 | C15: 1,797.9 | E15: 2,493.2 | G15: 3,074.8 | I15: 3,891.7 | K15: 5,257.0 | M15: 6,783.3 | O15: 64.6% | Q15: 77.4% | S15: 91.5% | U15: 0.14 | W15: 0.03 | Y15: 0.03 | AA15: 0.54 | AC15: 0.13 | AE15: 0.11 | AG15: 0.95 | AI15: 0.23 | AK15: 0.20
A16: 6 | C16: 2,493.2 | E16: 2,678.2 | G16: 3,891.7 | I16: 5,307.5 | K16: 6,783.3 | M16: 10,023.0 | O16: 64.6% | Q16: 77.4% | S16: 91.5% | U16: 0.08 | W16: 0.01 | Y16: 0.01 | AA16: 0.31 | AC16: 0.05 | AE16: 0.04 | AG16: 0.54 | AI16: 0.09 | AK16: 0.08
A17: 7 | C17: 2,678.2 | E17: 2,863.3 | G17: 5,307.5 | I17: 6,539.8 | K17: 10,023.0 | M17: 13,262.8 | O17: 64.6% | Q17: 77.4% | S17: 91.5% | U17: 0.05 | W17: 0.01 | Y17: 0.00 | AA17: 0.18 | AC17: 0.02 | AE17: 0.02 | AG17: 0.31 | AI17: 0.04 | AK17: 0.03
S19: ∑(number ha-1) | U19: 5.52 | W19: 5.25 | Y19: 5.52 | AA19: 21.11 | AC19: 20.07 | AE19: 21.11 | AG19: 36.71 | AI19: 34.90 | AK19: 36.71
A26: To evaluate growth in mm instead of g, enter the average relative weight for your population in the yellow box below then use the below table. Note, relative weight = 92 is about average for most species
Q28: Palmetto Bass
C29: Avg relative weight | E29: 92
A30: Striped bass | Q30: Hybrid striped bass (Palmetto bass)
C32: Annual growth increment (mm) | S32: Annual growth increment (mm)
C33: Low (1) | G33: Medium (2) | K33: High (3) | S33: Low (1) | W33: Medium (2) | AA33: High (3)
A34: Age | C34: Start | E34: End | G34: Start | I34: End | K34: Start | M34: End | Q34: Age | S34: Start | U34: End | W34: Start | Y34: End | AA34: Start | AC34: End
A36: 0 | C36: - | E36: - | G36: - | I36: - | K36: - | M36: - | Q36: 0 | S36: - | U36: - | W36: - | Y36: - | AA36: - | AC36: -
A37: 1 | C37: =10^((LOG10(C11*($E$29/100))-VLOOKUP($A$1,'Rel wt'!$A$2:$D$11,2,FALSE))/VLOOKUP($A$1,'Rel wt'!$A$2:$D$11,4,FALSE)) -> 158.8 | E37: =10^((LOG10(E11*($E$29/100))-VLOOKUP($A$1,'Rel wt'!$A$2:$D$11,2,FALSE))/VLOOKUP($A$1,'Rel wt'!$A$2:$D$11,4,FALSE)) -> 292.1 | G37: =10^((LOG10(G11*($E$29/100))-VLOOKUP($A$1,'Rel wt'!$A$2:$D$11,2,FALSE))/VLOOKUP($A$1,'Rel wt'!$A$2:$D$11,4,FALSE)) -> 246.7 | I37: =10^((LOG10(I11*($E$29/100))-VLOOKUP($A$1,'Rel wt'!$A$2:$D$11,2,FALSE))/VLOOKUP($A$1,'Rel wt'!$A$2:$D$11,4,FALSE)) -> 398.3 | K37: =10^((LOG10(K11*($E$29/100))-VLOOKUP($A$1,'Rel wt'!$A$2:$D$11,2,FALSE))/VLOOKUP($A$1,'Rel wt'!$A$2:$D$11,4,FALSE)) -> 303.1 | M37: =10^((LOG10(M11*($E$29/100))-VLOOKUP($A$1,'Rel wt'!$A$2:$D$11,2,FALSE))/VLOOKUP($A$1,'Rel wt'!$A$2:$D$11,4,FALSE)) -> 451.5 | Q37: 1 | S37: =10^((LOG10(C11*($E$29/100))-VLOOKUP("Palmetto Bass",'Rel wt'!$A$2:$D$11,2,FALSE))/VLOOKUP("Palmetto Bass",'Rel wt'!$A$2:$D$11,4,FALSE)) -> 157.3 | U37: =10^((LOG10(E11*($E$29/100))-VLOOKUP("Palmetto Bass",'Rel wt'!$A$2:$D$11,2,FALSE))/VLOOKUP("Palmetto Bass",'Rel wt'!$A$2:$D$11,4,FALSE)) -> 281.9 | W37: =10^((LOG10(G11*($E$29/100))-VLOOKUP("Palmetto Bass",'Rel wt'!$A$2:$D$11,2,FALSE))/VLOOKUP("Palmetto Bass",'Rel wt'!$A$2:$D$11,4,FALSE)) -> 239.8 | Y37: =10^((LOG10(I11*($E$29/100))-VLOOKUP("Palmetto Bass",'Rel wt'!$A$2:$D$11,2,FALSE))/VLOOKUP("Palmetto Bass",'Rel wt'!$A$2:$D$11,4,FALSE)) -> 379.4 | AA37: =10^((LOG10(K11*($E$29/100))-VLOOKUP("Palmetto Bass",'Rel wt'!$A$2:$D$11,2,FALSE))/VLOOKUP("Palmetto Bass",'Rel wt'!$A$2:$D$11,4,FALSE)) -> 292.0 | AC37: =10^((LOG10(M11*($E$29/100))-VLOOKUP("Palmetto Bass",'Rel wt'!$A$2:$D$11,2,FALSE))/VLOOKUP("Palmetto Bass",'Rel wt'!$A$2:$D$11,4,FALSE)) -> 427.9
A38: 2 | C38: =10^((LOG10(C12*($E$29/100))-VLOOKUP($A$1,'Rel wt'!$A$2:$D$11,2,FALSE))/VLOOKUP($A$1,'Rel wt'!$A$2:$D$11,4,FALSE)) -> 292.1 | E38: =10^((LOG10(E12*($E$29/100))-VLOOKUP($A$1,'Rel wt'!$A$2:$D$11,2,FALSE))/VLOOKUP($A$1,'Rel wt'!$A$2:$D$11,4,FALSE)) -> 392.6 | G38: =10^((LOG10(G12*($E$29/100))-VLOOKUP($A$1,'Rel wt'!$A$2:$D$11,2,FALSE))/VLOOKUP($A$1,'Rel wt'!$A$2:$D$11,4,FALSE)) -> 398.3 | I38: =10^((LOG10(I12*($E$29/100))-VLOOKUP($A$1,'Rel wt'!$A$2:$D$11,2,FALSE))/VLOOKUP($A$1,'Rel wt'!$A$2:$D$11,4,FALSE)) -> 483.8 | K38: =10^((LOG10(K12*($E$29/100))-VLOOKUP($A$1,'Rel wt'!$A$2:$D$11,2,FALSE))/VLOOKUP($A$1,'Rel wt'!$A$2:$D$11,4,FALSE)) -> 451.5 | M38: =10^((LOG10(M12*($E$29/100))-VLOOKUP($A$1,'Rel wt'!$A$2:$D$11,2,FALSE))/VLOOKUP($A$1,'Rel wt'!$A$2:$D$11,4,FALSE)) -> 560.8 | Q38: 2 | S38: =10^((LOG10(C12*($E$29/100))-VLOOKUP("Palmetto Bass",'Rel wt'!$A$2:$D$11,2,FALSE))/VLOOKUP("Palmetto Bass",'Rel wt'!$A$2:$D$11,4,FALSE)) -> 281.9 | U38: =10^((LOG10(E12*($E$29/100))-VLOOKUP("Palmetto Bass",'Rel wt'!$A$2:$D$11,2,FALSE))/VLOOKUP("Palmetto Bass",'Rel wt'!$A$2:$D$11,4,FALSE)) -> 374.2 | W38: =10^((LOG10(G12*($E$29/100))-VLOOKUP("Palmetto Bass",'Rel wt'!$A$2:$D$11,2,FALSE))/VLOOKUP("Palmetto Bass",'Rel wt'!$A$2:$D$11,4,FALSE)) -> 379.4 | Y38: =10^((LOG10(I12*($E$29/100))-VLOOKUP("Palmetto Bass",'Rel wt'!$A$2:$D$11,2,FALSE))/VLOOKUP("Palmetto Bass",'Rel wt'!$A$2:$D$11,4,FALSE)) -> 457.1 | AA38: =10^((LOG10(K12*($E$29/100))-VLOOKUP("Palmetto Bass",'Rel wt'!$A$2:$D$11,2,FALSE))/VLOOKUP("Palmetto Bass",'Rel wt'!$A$2:$D$11,4,FALSE)) -> 427.9 | AC38: =10^((LOG10(M12*($E$29/100))-VLOOKUP("Palmetto Bass",'Rel wt'!$A$2:$D$11,2,FALSE))/VLOOKUP("Palmetto Bass",'Rel wt'!$A$2:$D$11,4,FALSE)) -> 526.6
A39: 3 | C39: =10^((LOG10(C13*($E$29/100))-VLOOKUP($A$1,'Rel wt'!$A$2:$D$11,2,FALSE))/VLOOKUP($A$1,'Rel wt'!$A$2:$D$11,4,FALSE)) -> 392.6 | E39: =10^((LOG10(E13*($E$29/100))-VLOOKUP($A$1,'Rel wt'!$A$2:$D$11,2,FALSE))/VLOOKUP($A$1,'Rel wt'!$A$2:$D$11,4,FALSE)) -> 493.9 | G39: =10^((LOG10(G13*($E$29/100))-VLOOKUP($A$1,'Rel wt'!$A$2:$D$11,2,FALSE))/VLOOKUP($A$1,'Rel wt'!$A$2:$D$11,4,FALSE)) -> 483.8 | I39: =10^((LOG10(I13*($E$29/100))-VLOOKUP($A$1,'Rel wt'!$A$2:$D$11,2,FALSE))/VLOOKUP($A$1,'Rel wt'!$A$2:$D$11,4,FALSE)) -> 550.4 | K39: =10^((LOG10(K13*($E$29/100))-VLOOKUP($A$1,'Rel wt'!$A$2:$D$11,2,FALSE))/VLOOKUP($A$1,'Rel wt'!$A$2:$D$11,4,FALSE)) -> 560.8 | M39: =10^((LOG10(M13*($E$29/100))-VLOOKUP($A$1,'Rel wt'!$A$2:$D$11,2,FALSE))/VLOOKUP($A$1,'Rel wt'!$A$2:$D$11,4,FALSE)) -> 645.8 | Q39: 3 | S39: =10^((LOG10(C13*($E$29/100))-VLOOKUP("Palmetto Bass",'Rel wt'!$A$2:$D$11,2,FALSE))/VLOOKUP("Palmetto Bass",'Rel wt'!$A$2:$D$11,4,FALSE)) -> 374.2 | U39: =10^((LOG10(E13*($E$29/100))-VLOOKUP("Palmetto Bass",'Rel wt'!$A$2:$D$11,2,FALSE))/VLOOKUP("Palmetto Bass",'Rel wt'!$A$2:$D$11,4,FALSE)) -> 466.2 | W39: =10^((LOG10(G13*($E$29/100))-VLOOKUP("Palmetto Bass",'Rel wt'!$A$2:$D$11,2,FALSE))/VLOOKUP("Palmetto Bass",'Rel wt'!$A$2:$D$11,4,FALSE)) -> 457.1 | Y39: =10^((LOG10(I13*($E$29/100))-VLOOKUP("Palmetto Bass",'Rel wt'!$A$2:$D$11,2,FALSE))/VLOOKUP("Palmetto Bass",'Rel wt'!$A$2:$D$11,4,FALSE)) -> 517.2 | AA39: =10^((LOG10(K13*($E$29/100))-VLOOKUP("Palmetto Bass",'Rel wt'!$A$2:$D$11,2,FALSE))/VLOOKUP("Palmetto Bass",'Rel wt'!$A$2:$D$11,4,FALSE)) -> 526.6 | AC39: =10^((LOG10(M13*($E$29/100))-VLOOKUP("Palmetto Bass",'Rel wt'!$A$2:$D$11,2,FALSE))/VLOOKUP("Palmetto Bass",'Rel wt'!$A$2:$D$11,4,FALSE)) -> 602.8
A40: 4 | C40: =10^((LOG10(C14*($E$29/100))-VLOOKUP($A$1,'Rel wt'!$A$2:$D$11,2,FALSE))/VLOOKUP($A$1,'Rel wt'!$A$2:$D$11,4,FALSE)) -> 493.9 | E40: =10^((LOG10(E14*($E$29/100))-VLOOKUP($A$1,'Rel wt'!$A$2:$D$11,2,FALSE))/VLOOKUP($A$1,'Rel wt'!$A$2:$D$11,4,FALSE)) -> 510.3 | G40: =10^((LOG10(G14*($E$29/100))-VLOOKUP($A$1,'Rel wt'!$A$2:$D$11,2,FALSE))/VLOOKUP($A$1,'Rel wt'!$A$2:$D$11,4,FALSE)) -> 550.4 | I40: =10^((LOG10(I14*($E$29/100))-VLOOKUP($A$1,'Rel wt'!$A$2:$D$11,2,FALSE))/VLOOKUP($A$1,'Rel wt'!$A$2:$D$11,4,FALSE)) -> 610.1 | K40: =10^((LOG10(K14*($E$29/100))-VLOOKUP($A$1,'Rel wt'!$A$2:$D$11,2,FALSE))/VLOOKUP($A$1,'Rel wt'!$A$2:$D$11,4,FALSE)) -> 645.8 | M40: =10^((LOG10(M14*($E$29/100))-VLOOKUP($A$1,'Rel wt'!$A$2:$D$11,2,FALSE))/VLOOKUP($A$1,'Rel wt'!$A$2:$D$11,4,FALSE)) -> 729.2 | Q40: 4 | S40: =10^((LOG10(C14*($E$29/100))-VLOOKUP("Palmetto Bass",'Rel wt'!$A$2:$D$11,2,FALSE))/VLOOKUP("Palmetto Bass",'Rel wt'!$A$2:$D$11,4,FALSE)) -> 466.2 | U40: =10^((LOG10(E14*($E$29/100))-VLOOKUP("Palmetto Bass",'Rel wt'!$A$2:$D$11,2,FALSE))/VLOOKUP("Palmetto Bass",'Rel wt'!$A$2:$D$11,4,FALSE)) -> 481.1 | W40: =10^((LOG10(G14*($E$29/100))-VLOOKUP("Palmetto Bass",'Rel wt'!$A$2:$D$11,2,FALSE))/VLOOKUP("Palmetto Bass",'Rel wt'!$A$2:$D$11,4,FALSE)) -> 517.2 | Y40: =10^((LOG10(I14*($E$29/100))-VLOOKUP("Palmetto Bass",'Rel wt'!$A$2:$D$11,2,FALSE))/VLOOKUP("Palmetto Bass",'Rel wt'!$A$2:$D$11,4,FALSE)) -> 570.8 | AA40: =10^((LOG10(K14*($E$29/100))-VLOOKUP("Palmetto Bass",'Rel wt'!$A$2:$D$11,2,FALSE))/VLOOKUP("Palmetto Bass",'Rel wt'!$A$2:$D$11,4,FALSE)) -> 602.8 | AC40: =10^((LOG10(M14*($E$29/100))-VLOOKUP("Palmetto Bass",'Rel wt'!$A$2:$D$11,2,FALSE))/VLOOKUP("Palmetto Bass",'Rel wt'!$A$2:$D$11,4,FALSE)) -> 677.2
A41: 5 | C41: =10^((LOG10(C15*($E$29/100))-VLOOKUP($A$1,'Rel wt'!$A$2:$D$11,2,FALSE))/VLOOKUP($A$1,'Rel wt'!$A$2:$D$11,4,FALSE)) -> 510.3 | E41: =10^((LOG10(E15*($E$29/100))-VLOOKUP($A$1,'Rel wt'!$A$2:$D$11,2,FALSE))/VLOOKUP($A$1,'Rel wt'!$A$2:$D$11,4,FALSE)) -> 569.0 | G41: =10^((LOG10(G15*($E$29/100))-VLOOKUP($A$1,'Rel wt'!$A$2:$D$11,2,FALSE))/VLOOKUP($A$1,'Rel wt'!$A$2:$D$11,4,FALSE)) -> 610.1 | I41: =10^((LOG10(I15*($E$29/100))-VLOOKUP($A$1,'Rel wt'!$A$2:$D$11,2,FALSE))/VLOOKUP($A$1,'Rel wt'!$A$2:$D$11,4,FALSE)) -> 659.8 | K41: =10^((LOG10(K15*($E$29/100))-VLOOKUP($A$1,'Rel wt'!$A$2:$D$11,2,FALSE))/VLOOKUP($A$1,'Rel wt'!$A$2:$D$11,4,FALSE)) -> 729.2 | M41: =10^((LOG10(M15*($E$29/100))-VLOOKUP($A$1,'Rel wt'!$A$2:$D$11,2,FALSE))/VLOOKUP($A$1,'Rel wt'!$A$2:$D$11,4,FALSE)) -> 793.7 | Q41: 5 | S41: =10^((LOG10(C15*($E$29/100))-VLOOKUP("Palmetto Bass",'Rel wt'!$A$2:$D$11,2,FALSE))/VLOOKUP("Palmetto Bass",'Rel wt'!$A$2:$D$11,4,FALSE)) -> 481.1 | U41: =10^((LOG10(E15*($E$29/100))-VLOOKUP("Palmetto Bass",'Rel wt'!$A$2:$D$11,2,FALSE))/VLOOKUP("Palmetto Bass",'Rel wt'!$A$2:$D$11,4,FALSE)) -> 533.9 | W41: =10^((LOG10(G15*($E$29/100))-VLOOKUP("Palmetto Bass",'Rel wt'!$A$2:$D$11,2,FALSE))/VLOOKUP("Palmetto Bass",'Rel wt'!$A$2:$D$11,4,FALSE)) -> 570.8 | Y41: =10^((LOG10(I15*($E$29/100))-VLOOKUP("Palmetto Bass",'Rel wt'!$A$2:$D$11,2,FALSE))/VLOOKUP("Palmetto Bass",'Rel wt'!$A$2:$D$11,4,FALSE)) -> 615.3 | AA41: =10^((LOG10(K15*($E$29/100))-VLOOKUP("Palmetto Bass",'Rel wt'!$A$2:$D$11,2,FALSE))/VLOOKUP("Palmetto Bass",'Rel wt'!$A$2:$D$11,4,FALSE)) -> 677.2 | AC41: =10^((LOG10(M15*($E$29/100))-VLOOKUP("Palmetto Bass",'Rel wt'!$A$2:$D$11,2,FALSE))/VLOOKUP("Palmetto Bass",'Rel wt'!$A$2:$D$11,4,FALSE)) -> 734.4
A42: 6 | C42: =10^((LOG10(C16*($E$29/100))-VLOOKUP($A$1,'Rel wt'!$A$2:$D$11,2,FALSE))/VLOOKUP($A$1,'Rel wt'!$A$2:$D$11,4,FALSE)) -> 569.0 | E42: =10^((LOG10(E16*($E$29/100))-VLOOKUP($A$1,'Rel wt'!$A$2:$D$11,2,FALSE))/VLOOKUP($A$1,'Rel wt'!$A$2:$D$11,4,FALSE)) -> 582.7 | G42: =10^((LOG10(G16*($E$29/100))-VLOOKUP($A$1,'Rel wt'!$A$2:$D$11,2,FALSE))/VLOOKUP($A$1,'Rel wt'!$A$2:$D$11,4,FALSE)) -> 659.8 | I42: =10^((LOG10(I16*($E$29/100))-VLOOKUP($A$1,'Rel wt'!$A$2:$D$11,2,FALSE))/VLOOKUP($A$1,'Rel wt'!$A$2:$D$11,4,FALSE)) -> 731.5 | K42: =10^((LOG10(K16*($E$29/100))-VLOOKUP($A$1,'Rel wt'!$A$2:$D$11,2,FALSE))/VLOOKUP($A$1,'Rel wt'!$A$2:$D$11,4,FALSE)) -> 793.7 | M42: =10^((LOG10(M16*($E$29/100))-VLOOKUP($A$1,'Rel wt'!$A$2:$D$11,2,FALSE))/VLOOKUP($A$1,'Rel wt'!$A$2:$D$11,4,FALSE)) -> 903.7 | Q42: 6 | S42: =10^((LOG10(C16*($E$29/100))-VLOOKUP("Palmetto Bass",'Rel wt'!$A$2:$D$11,2,FALSE))/VLOOKUP("Palmetto Bass",'Rel wt'!$A$2:$D$11,4,FALSE)) -> 533.9 | U42: =10^((LOG10(E16*($E$29/100))-VLOOKUP("Palmetto Bass",'Rel wt'!$A$2:$D$11,2,FALSE))/VLOOKUP("Palmetto Bass",'Rel wt'!$A$2:$D$11,4,FALSE)) -> 546.2 | W42: =10^((LOG10(G16*($E$29/100))-VLOOKUP("Palmetto Bass",'Rel wt'!$A$2:$D$11,2,FALSE))/VLOOKUP("Palmetto Bass",'Rel wt'!$A$2:$D$11,4,FALSE)) -> 615.3 | Y42: =10^((LOG10(I16*($E$29/100))-VLOOKUP("Palmetto Bass",'Rel wt'!$A$2:$D$11,2,FALSE))/VLOOKUP("Palmetto Bass",'Rel wt'!$A$2:$D$11,4,FALSE)) -> 679.2 | AA42: =10^((LOG10(K16*($E$29/100))-VLOOKUP("Palmetto Bass",'Rel wt'!$A$2:$D$11,2,FALSE))/VLOOKUP("Palmetto Bass",'Rel wt'!$A$2:$D$11,4,FALSE)) -> 734.4 | AC42: =10^((LOG10(M16*($E$29/100))-VLOOKUP("Palmetto Bass",'Rel wt'!$A$2:$D$11,2,FALSE))/VLOOKUP("Palmetto Bass",'Rel wt'!$A$2:$D$11,4,FALSE)) -> 831.7
A43: 7 | C43: =10^((LOG10(C17*($E$29/100))-VLOOKUP($A$1,'Rel wt'!$A$2:$D$11,2,FALSE))/VLOOKUP($A$1,'Rel wt'!$A$2:$D$11,4,FALSE)) -> 582.7 | E43: =10^((LOG10(E17*($E$29/100))-VLOOKUP($A$1,'Rel wt'!$A$2:$D$11,2,FALSE))/VLOOKUP($A$1,'Rel wt'!$A$2:$D$11,4,FALSE)) -> 595.8 | G43: =10^((LOG10(G17*($E$29/100))-VLOOKUP($A$1,'Rel wt'!$A$2:$D$11,2,FALSE))/VLOOKUP($A$1,'Rel wt'!$A$2:$D$11,4,FALSE)) -> 731.5 | I43: =10^((LOG10(I17*($E$29/100))-VLOOKUP($A$1,'Rel wt'!$A$2:$D$11,2,FALSE))/VLOOKUP($A$1,'Rel wt'!$A$2:$D$11,4,FALSE)) -> 784.1 | K43: =10^((LOG10(K17*($E$29/100))-VLOOKUP($A$1,'Rel wt'!$A$2:$D$11,2,FALSE))/VLOOKUP($A$1,'Rel wt'!$A$2:$D$11,4,FALSE)) -> 903.7 | M43: =10^((LOG10(M17*($E$29/100))-VLOOKUP($A$1,'Rel wt'!$A$2:$D$11,2,FALSE))/VLOOKUP($A$1,'Rel wt'!$A$2:$D$11,4,FALSE)) -> 991.9 | Q43: 7 | S43: =10^((LOG10(C17*($E$29/100))-VLOOKUP("Palmetto Bass",'Rel wt'!$A$2:$D$11,2,FALSE))/VLOOKUP("Palmetto Bass",'Rel wt'!$A$2:$D$11,4,FALSE)) -> 546.2 | U43: =10^((LOG10(E17*($E$29/100))-VLOOKUP("Palmetto Bass",'Rel wt'!$A$2:$D$11,2,FALSE))/VLOOKUP("Palmetto Bass",'Rel wt'!$A$2:$D$11,4,FALSE)) -> 558.0 | W43: =10^((LOG10(G17*($E$29/100))-VLOOKUP("Palmetto Bass",'Rel wt'!$A$2:$D$11,2,FALSE))/VLOOKUP("Palmetto Bass",'Rel wt'!$A$2:$D$11,4,FALSE)) -> 679.2 | Y43: =10^((LOG10(I17*($E$29/100))-VLOOKUP("Palmetto Bass",'Rel wt'!$A$2:$D$11,2,FALSE))/VLOOKUP("Palmetto Bass",'Rel wt'!$A$2:$D$11,4,FALSE)) -> 725.9 | AA43: =10^((LOG10(K17*($E$29/100))-VLOOKUP("Palmetto Bass",'Rel wt'!$A$2:$D$11,2,FALSE))/VLOOKUP("Palmetto Bass",'Rel wt'!$A$2:$D$11,4,FALSE)) -> 831.7 | AC43: =10^((LOG10(M17*($E$29/100))-VLOOKUP("Palmetto Bass",'Rel wt'!$A$2:$D$11,2,FALSE))/VLOOKUP("Palmetto Bass",'Rel wt'!$A$2:$D$11,4,FALSE)) -> 909.3

Sheet ST5 WHC
A1: White Crappie
A2: Litterature values associated with low (1), medium (2), and high (3) parameter values in Evans et al 2014 predator-prey calculation tables. For growth, pick the column under annular growth increment that most closely matches the size structure (mean weight at age) of your population at the beginning or ending of the year. Sizes are given as weight (g) because this is the relevant metric for the bioenergetic equations. To see an aproximate size in length, look at the table below the main table (assumes relative weight you specify in the yellow cell). Mortality and population size are naturally coupled. As such, pick the mortality of the three given that is most similar to your population's mortality (this will define the 1, 2, or 3 for mortality), then select the column with that mortality rate that has the total population size most similar to your populations size (look at the bottom of the table for the size with all age classes summed together). This will define the 1, 2, or 3 for initial population size.
O4: Gizzard shad consumed (percent by weight) | U4: Initial population size (number ha-1)
C5: Annual growth increment (g) | U5: Low (1) | AA5: Medium (2) | AG5: High (3)
C6: Low (1) | G6: Medium (2) | K6: High (3) | U6: Low A 34.9% | W6: Med A 69.0% | Y6: A 89.1% | AA6: A 34.9% | AC6: A 69.0% | AE6: A 89.1% | AG6: A 34.9% | AI6: A 69.0% | AK6: A 89.1%
A7: Age | C7: Start | E7: End | G7: Start | I7: End | K7: Start | M7: End | O7: Low (1) | Q7: Medium (2) | S7: High (3)
A9: 0 | C9: - | E9: - | G9: - | I9: - | K9: - | M9: - | O9: - | Q9: - | S9: - | U9: 55.92 | W9: 107.58 | Y9: 138.05 | AA9: 238.82 | AC9: 459.42 | AE9: 589.53 | AG9: 638.93 | AI9: 1,229.13 | AK9: 1,577.21
A10: 1 | C10: 15.1 | E10: 23.4 | G10: 23.2 | I10: 54.0 | K10: 87.1 | M10: 140.3 | O10: 8.5% | Q10: 17.0% | S10: 34.0% | U10: 36.39 | W10: 26.59 | Y10: 15.05 | AA10: 155.39 | AC10: 113.54 | AE10: 64.26 | AG10: 415.72 | AI10: 303.76 | AK10: 171.92
A11: 2 | C11: 23.4 | E11: 44.8 | G11: 54.0 | I11: 140.5 | K11: 140.3 | M11: 296.6 | O11: 33.3% | Q11: 67.3% | S11: 72.9% | U11: 23.68 | W11: 5.85 | Y11: 1.64 | AA11: 101.10 | AC11: 24.98 | AE11: 7.00 | AG11: 270.49 | AI11: 66.83 | AK11: 18.74
A12: 3 | C12: 44.8 | E12: 91.5 | G12: 140.5 | I12: 260.3 | K12: 296.6 | M12: 464.5 | O12: 33.3% | Q12: 57.9% | S12: 72.9% | U12: 15.40 | W12: 1.29 | Y12: 0.18 | AA12: 65.78 | AC12: 5.50 | AE12: 0.76 | AG12: 175.99 | AI12: 14.70 | AK12: 2.04
A13: 4 | C13: 91.5 | E13: 145.1 | G13: 260.3 | I13: 363.8 | K13: 464.5 | M13: 637.3 | O13: 33.3% | Q13: 57.9% | S13: 72.9% | U13: 10.02 | W13: 0.28 | Y13: 0.02 | AA13: 42.80 | AC13: 1.21 | AE13: 0.08 | AG13: 114.51 | AI13: 3.23 | AK13: 0.22
A14: 5 | C14: 145.1 | E14: 223.2 | G14: 363.8 | I14: 424.3 | K14: 637.3 | M14: 763.5 | O14: 33.3% | Q14: 57.9% | S14: 72.9% | U14: 6.52 | W14: 0.06 | Y14: 0.00 | AA14: 27.85 | AC14: 0.27 | AE14: 0.01 | AG14: 74.51 | AI14: 0.71 | AK14: 0.02
A15: 6 | C15: 223.2 | E15: 300.7 | G15: 424.3 | I15: 522.6 | K15: 763.5 | M15: 864.6 | O15: 33.3% | Q15: 57.9% | S15: 72.9% | U15: 4.24 | W15: 0.01 | Y15: 0.00 | AA15: 18.12 | AC15: 0.06 | AE15: 0.00 | AG15: 48.48 | AI15: 0.16 | AK15: 0.00
A16: 7 | C16: 300.7 | E16: 378.2 | G16: 522.6 | I16: 620.7 | K16: 864.6 | M16: 965.7 | O16: 33.3% | Q16: 57.9% | S16: 72.9% | U16: 2.76 | W16: 0.00 | Y16: 0.00 | AA16: 11.79 | AC16: 0.01 | AE16: 0.00 | AG16: 31.54 | AI16: 0.03 | AK16: 0.00
S18: ∑(number ha-1) | U18: 154.94 | W18: 141.67 | Y18: 154.94 | AA18: 661.65 | AC18: 604.98 | AE18: 661.65 | AG18: 1,770.15 | AI18: 1,618.56 | AK18: 1,770.15
A25: To evaluate growth in mm instead of g, enter the average relative weight for your population in the yellow box below then use the below table. Note, relative weight = 92 is about average for most species
C28: Avg relative weight | E28: 92
C31: Annual growth increment (mm)
C32: Low (1) | G32: Medium (2) | K32: High (3)
A33: Age | C33: Start | E33: End | G33: Start | I33: End | K33: Start | M33: End
A35: 0 | C35: - | E35: - | G35: - | I35: - | K35: - | M35: -
A36: 1 | C36: =10^((LOG10(C10*($E$28/100))-VLOOKUP($A$1,'Rel wt'!$A$2:$D$11,2,FALSE))/VLOOKUP($A$1,'Rel wt'!$A$2:$D$11,4,FALSE)) -> 108.8 | E36: =10^((LOG10(E10*($E$28/100))-VLOOKUP($A$1,'Rel wt'!$A$2:$D$11,2,FALSE))/VLOOKUP($A$1,'Rel wt'!$A$2:$D$11,4,FALSE)) -> 124.0 | G36: =10^((LOG10(G10*($E$28/100))-VLOOKUP($A$1,'Rel wt'!$A$2:$D$11,2,FALSE))/VLOOKUP($A$1,'Rel wt'!$A$2:$D$11,4,FALSE)) -> 123.7 | I36: =10^((LOG10(I10*($E$28/100))-VLOOKUP($A$1,'Rel wt'!$A$2:$D$11,2,FALSE))/VLOOKUP($A$1,'Rel wt'!$A$2:$D$11,4,FALSE)) -> 159.4 | K36: =10^((LOG10(K10*($E$28/100))-VLOOKUP($A$1,'Rel wt'!$A$2:$D$11,2,FALSE))/VLOOKUP($A$1,'Rel wt'!$A$2:$D$11,4,FALSE)) -> 183.9 | M36: =10^((LOG10(M10*($E$28/100))-VLOOKUP($A$1,'Rel wt'!$A$2:$D$11,2,FALSE))/VLOOKUP($A$1,'Rel wt'!$A$2:$D$11,4,FALSE)) -> 212.2
A37: 2 | C37: =10^((LOG10(C11*($E$28/100))-VLOOKUP($A$1,'Rel wt'!$A$2:$D$11,2,FALSE))/VLOOKUP($A$1,'Rel wt'!$A$2:$D$11,4,FALSE)) -> 124.0 | E37: =10^((LOG10(E11*($E$28/100))-VLOOKUP($A$1,'Rel wt'!$A$2:$D$11,2,FALSE))/VLOOKUP($A$1,'Rel wt'!$A$2:$D$11,4,FALSE)) -> 150.7 | G37: =10^((LOG10(G11*($E$28/100))-VLOOKUP($A$1,'Rel wt'!$A$2:$D$11,2,FALSE))/VLOOKUP($A$1,'Rel wt'!$A$2:$D$11,4,FALSE)) -> 159.4 | I37: =10^((LOG10(I11*($E$28/100))-VLOOKUP($A$1,'Rel wt'!$A$2:$D$11,2,FALSE))/VLOOKUP($A$1,'Rel wt'!$A$2:$D$11,4,FALSE)) -> 212.3 | K37: =10^((LOG10(K11*($E$28/100))-VLOOKUP($A$1,'Rel wt'!$A$2:$D$11,2,FALSE))/VLOOKUP($A$1,'Rel wt'!$A$2:$D$11,4,FALSE)) -> 212.2 | M37: =10^((LOG10(M11*($E$28/100))-VLOOKUP($A$1,'Rel wt'!$A$2:$D$11,2,FALSE))/VLOOKUP($A$1,'Rel wt'!$A$2:$D$11,4,FALSE)) -> 265.7
A38: 3 | C38: =10^((LOG10(C12*($E$28/100))-VLOOKUP($A$1,'Rel wt'!$A$2:$D$11,2,FALSE))/VLOOKUP($A$1,'Rel wt'!$A$2:$D$11,4,FALSE)) -> 150.7 | E38: =10^((LOG10(E12*($E$28/100))-VLOOKUP($A$1,'Rel wt'!$A$2:$D$11,2,FALSE))/VLOOKUP($A$1,'Rel wt'!$A$2:$D$11,4,FALSE)) -> 186.7 | G38: =10^((LOG10(G12*($E$28/100))-VLOOKUP($A$1,'Rel wt'!$A$2:$D$11,2,FALSE))/VLOOKUP($A$1,'Rel wt'!$A$2:$D$11,4,FALSE)) -> 212.3 | I38: =10^((LOG10(I12*($E$28/100))-VLOOKUP($A$1,'Rel wt'!$A$2:$D$11,2,FALSE))/VLOOKUP($A$1,'Rel wt'!$A$2:$D$11,4,FALSE)) -> 255.5 | K38: =10^((LOG10(K12*($E$28/100))-VLOOKUP($A$1,'Rel wt'!$A$2:$D$11,2,FALSE))/VLOOKUP($A$1,'Rel wt'!$A$2:$D$11,4,FALSE)) -> 265.7 | M38: =10^((LOG10(M12*($E$28/100))-VLOOKUP($A$1,'Rel wt'!$A$2:$D$11,2,FALSE))/VLOOKUP($A$1,'Rel wt'!$A$2:$D$11,4,FALSE)) -> 304.0
A39: 4 | C39: =10^((LOG10(C13*($E$28/100))-VLOOKUP($A$1,'Rel wt'!$A$2:$D$11,2,FALSE))/VLOOKUP($A$1,'Rel wt'!$A$2:$D$11,4,FALSE)) -> 186.7 | E39: =10^((LOG10(E13*($E$28/100))-VLOOKUP($A$1,'Rel wt'!$A$2:$D$11,2,FALSE))/VLOOKUP($A$1,'Rel wt'!$A$2:$D$11,4,FALSE)) -> 214.4 | G39: =10^((LOG10(G13*($E$28/100))-VLOOKUP($A$1,'Rel wt'!$A$2:$D$11,2,FALSE))/VLOOKUP($A$1,'Rel wt'!$A$2:$D$11,4,FALSE)) -> 255.5 | I39: =10^((LOG10(I13*($E$28/100))-VLOOKUP($A$1,'Rel wt'!$A$2:$D$11,2,FALSE))/VLOOKUP($A$1,'Rel wt'!$A$2:$D$11,4,FALSE)) -> 282.5 | K39: =10^((LOG10(K13*($E$28/100))-VLOOKUP($A$1,'Rel wt'!$A$2:$D$11,2,FALSE))/VLOOKUP($A$1,'Rel wt'!$A$2:$D$11,4,FALSE)) -> 304.0 | M39: =10^((LOG10(M13*($E$28/100))-VLOOKUP($A$1,'Rel wt'!$A$2:$D$11,2,FALSE))/VLOOKUP($A$1,'Rel wt'!$A$2:$D$11,4,FALSE)) -> 334.2
A40: 5 | C40: =10^((LOG10(C14*($E$28/100))-VLOOKUP($A$1,'Rel wt'!$A$2:$D$11,2,FALSE))/VLOOKUP($A$1,'Rel wt'!$A$2:$D$11,4,FALSE)) -> 214.4 | E40: =10^((LOG10(E14*($E$28/100))-VLOOKUP($A$1,'Rel wt'!$A$2:$D$11,2,FALSE))/VLOOKUP($A$1,'Rel wt'!$A$2:$D$11,4,FALSE)) -> 244.0 | G40: =10^((LOG10(G14*($E$28/100))-VLOOKUP($A$1,'Rel wt'!$A$2:$D$11,2,FALSE))/VLOOKUP($A$1,'Rel wt'!$A$2:$D$11,4,FALSE)) -> 282.5 | I40: =10^((LOG10(I14*($E$28/100))-VLOOKUP($A$1,'Rel wt'!$A$2:$D$11,2,FALSE))/VLOOKUP($A$1,'Rel wt'!$A$2:$D$11,4,FALSE)) -> 295.8 | K40: =10^((LOG10(K14*($E$28/100))-VLOOKUP($A$1,'Rel wt'!$A$2:$D$11,2,FALSE))/VLOOKUP($A$1,'Rel wt'!$A$2:$D$11,4,FALSE)) -> 334.2 | M40: =10^((LOG10(M14*($E$28/100))-VLOOKUP($A$1,'Rel wt'!$A$2:$D$11,2,FALSE))/VLOOKUP($A$1,'Rel wt'!$A$2:$D$11,4,FALSE)) -> 352.9
A41: 6 | C41: =10^((LOG10(C15*($E$28/100))-VLOOKUP($A$1,'Rel wt'!$A$2:$D$11,2,FALSE))/VLOOKUP($A$1,'Rel wt'!$A$2:$D$11,4,FALSE)) -> 244.0 | E41: =10^((LOG10(E15*($E$28/100))-VLOOKUP($A$1,'Rel wt'!$A$2:$D$11,2,FALSE))/VLOOKUP($A$1,'Rel wt'!$A$2:$D$11,4,FALSE)) -> 266.8 | G41: =10^((LOG10(G15*($E$28/100))-VLOOKUP($A$1,'Rel wt'!$A$2:$D$11,2,FALSE))/VLOOKUP($A$1,'Rel wt'!$A$2:$D$11,4,FALSE)) -> 295.8 | I41: =10^((LOG10(I15*($E$28/100))-VLOOKUP($A$1,'Rel wt'!$A$2:$D$11,2,FALSE))/VLOOKUP($A$1,'Rel wt'!$A$2:$D$11,4,FALSE)) -> 314.9 | K41: =10^((LOG10(K15*($E$28/100))-VLOOKUP($A$1,'Rel wt'!$A$2:$D$11,2,FALSE))/VLOOKUP($A$1,'Rel wt'!$A$2:$D$11,4,FALSE)) -> 352.9 | M41: =10^((LOG10(M15*($E$28/100))-VLOOKUP($A$1,'Rel wt'!$A$2:$D$11,2,FALSE))/VLOOKUP($A$1,'Rel wt'!$A$2:$D$11,4,FALSE)) -> 366.3
A42: 7 | C42: =10^((LOG10(C16*($E$28/100))-VLOOKUP($A$1,'Rel wt'!$A$2:$D$11,2,FALSE))/VLOOKUP($A$1,'Rel wt'!$A$2:$D$11,4,FALSE)) -> 266.8 | E42: =10^((LOG10(E16*($E$28/100))-VLOOKUP($A$1,'Rel wt'!$A$2:$D$11,2,FALSE))/VLOOKUP($A$1,'Rel wt'!$A$2:$D$11,4,FALSE)) -> 285.8 | G42: =10^((LOG10(G16*($E$28/100))-VLOOKUP($A$1,'Rel wt'!$A$2:$D$11,2,FALSE))/VLOOKUP($A$1,'Rel wt'!$A$2:$D$11,4,FALSE)) -> 314.9 | I42: =10^((LOG10(I16*($E$28/100))-VLOOKUP($A$1,'Rel wt'!$A$2:$D$11,2,FALSE))/VLOOKUP($A$1,'Rel wt'!$A$2:$D$11,4,FALSE)) -> 331.6 | K42: =10^((LOG10(K16*($E$28/100))-VLOOKUP($A$1,'Rel wt'!$A$2:$D$11,2,FALSE))/VLOOKUP($A$1,'Rel wt'!$A$2:$D$11,4,FALSE)) -> 366.3 | M42: =10^((LOG10(M16*($E$28/100))-VLOOKUP($A$1,'Rel wt'!$A$2:$D$11,2,FALSE))/VLOOKUP($A$1,'Rel wt'!$A$2:$D$11,4,FALSE)) -> 378.6

Sheet ST6 FHC
A1: Flathead Catfish
A2: Litterature values associated with low (1), medium (2), and high (3) parameter values in Evans et al 2014 predator-prey calculation tables. For growth, pick the column under annular growth increment that most closely matches the size structure (mean weight at age) of your population at the beginning or ending of the year. Sizes are given as weight (g) because this is the relevant metric for the bioenergetic equations. To see an aproximate size in length, look at the table below the main table (assumes relative weight you specify in the yellow cell). Mortality and population size are naturally coupled. As such, pick the mortality of the three given that is most similar to your population's mortality (this will define the 1, 2, or 3 for mortality), then select the column with that mortality rate that has the total population size most similar to your populations size (look at the bottom of the table for the size with all age classes summed together). This will define the 1, 2, or 3 for initial population size.
O5: Gizzard shad consumed (percent by weight) | U5: Initial population size (number ha-1)
C6: Annual growth increment (g) | U6: Low | AA6: Medium | AG6: High
C7: Low | G7: Medium | K7: High | U7: A 10.7% | W7: A 26.3% | Y7: A 43.6% | AA7: A 10.7% | AC7: A 26.3% | AE7: A 43.6% | AG7: A 10.7% | AI7: A 26.3% | AK7: A 43.6%
A8: Age | C8: Start | E8: End | G8: Start | I8: End | K8: Start | M8: End | O8: Low | Q8: Medium | S8: High
A10: 0 | C10: - | E10: - | G10: - | I10: - | K10: - | M10: - | O10: - | Q10: - | S10: - | U10: 0.05 | W10: 0.09 | Y10: 0.15 | AA10: 0.25 | AC10: 0.49 | AE10: 0.80 | AG10: 0.45 | AI10: 0.90 | AK10: 1.47
A11: 1 | C11: 17.6 | E11: 53.0 | G11: 38.1 | I11: 147.5 | K11: 122.7 | M11: 480.6 | O11: 0.0% | Q11: 0.0% | S11: 0.0% | U11: 0.04 | W11: 0.06 | Y11: 0.09 | AA11: 0.22 | AC11: 0.34 | AE11: 0.45 | AG11: 0.41 | AI11: 0.63 | AK11: 0.83
A12: 2 | C12: 53.0 | E12: 102.8 | G12: 147.5 | I12: 444.5 | K12: 480.6 | M12: 1,275.0 | O12: 0.0% | Q12: 0.0% | S12: 0.0% | U12: 0.04 | W12: 0.05 | Y12: 0.05 | AA12: 0.20 | AC12: 0.26 | AE12: 0.25 | AG12: 0.36 | AI12: 0.48 | AK12: 0.47
A13: 3 | C13: 102.8 | E13: 284.5 | G13: 444.5 | I13: 1,157.0 | K13: 1,275.0 | M13: 2,584.1 | O13: 0.0% | Q13: 28.1% | S13: 56.1% | U13: 0.03 | W13: 0.04 | Y13: 0.03 | AA13: 0.18 | AC13: 0.20 | AE13: 0.14 | AG13: 0.32 | AI13: 0.36 | AK13: 0.26
A14: 4 | C14: 284.5 | E14: 765.2 | G14: 1,157.0 | I14: 2,301.4 | K14: 2,584.1 | M14: 3,774.1 | O14: 0.0% | Q14: 28.8% | S14: 57.7% | U14: 0.03 | W14: 0.03 | Y14: 0.02 | AA14: 0.16 | AC14: 0.15 | AE14: 0.08 | AG14: 0.29 | AI14: 0.28 | AK14: 0.15
A15: 5 | C15: 765.2 | E15: 1,371.3 | G15: 2,301.4 | I15: 3,469.0 | K15: 3,774.1 | M15: 6,686.2 | O15: 50.3% | Q15: 61.3% | S15: 95.3% | U15: 0.03 | W15: 0.02 | Y15: 0.01 | AA15: 0.14 | AC15: 0.11 | AE15: 0.05 | AG15: 0.26 | AI15: 0.21 | AK15: 0.08
A16: 6 | C16: 1,371.3 | E16: 2,033.5 | G16: 3,469.0 | I16: 4,618.5 | K16: 6,686.2 | M16: 9,686.5 | O16: 50.3% | Q16: 69.0% | S16: 95.3% | U16: 0.02 | W16: 0.02 | Y16: 0.00 | AA16: 0.12 | AC16: 0.09 | AE16: 0.03 | AG16: 0.23 | AI16: 0.16 | AK16: 0.05
A17: 7 | C17: 2,033.5 | E17: 2,647.4 | G17: 4,618.5 | I17: 6,044.9 | K17: 9,686.5 | M17: 11,722.0 | O17: 50.3% | Q17: 69.0% | S17: 95.3% | U17: 0.02 | W17: 0.01 | Y17: 0.00 | AA17: 0.11 | AC17: 0.07 | AE17: 0.01 | AG17: 0.21 | AI17: 0.12 | AK17: 0.03
A18: 8 | C18: 2,647.4 | E18: 4,320.8 | G18: 6,044.9 | I18: 7,474.4 | K18: 11,722.0 | M18: 13,609.7 | O18: 50.3% | Q18: 69.0% | S18: 95.3% | U18: 0.02 | W18: 0.01 | Y18: 0.00 | AA18: 0.10 | AC18: 0.05 | AE18: 0.01 | AG18: 0.18 | AI18: 0.09 | AK18: 0.02
A19: 9 | C19: 4,320.8 | E19: 4,787.1 | G19: 7,474.4 | I19: 8,621.2 | K19: 13,609.7 | M19: 15,601.1 | O19: 50.3% | Q19: 69.0% | S19: 95.3% | U19: 0.02 | W19: 0.01 | Y19: 0.00 | AA19: 0.09 | AC19: 0.04 | AE19: 0.00 | AG19: 0.16 | AI19: 0.07 | AK19: 0.01
A20: 10 | C20: 4,787.1 | E20: 5,118.4 | G20: 8,621.2 | I20: 10,967.1 | K20: 15,601.1 | M20: 16,962.3 | O20: 50.3% | Q20: 69.0% | S20: 95.3% | U20: 0.02 | W20: 0.01 | Y20: 0.00 | AA20: 0.08 | AC20: 0.03 | AE20: 0.00 | AG20: 0.15 | AI20: 0.05 | AK20: 0.00
A21: 11 | C21: 5,118.4 | E21: 6,394.0 | G21: 10,967.1 | I21: 12,699.9 | K21: 16,962.3 | M21: 17,664.4 | O21: 50.3% | Q21: 69.0% | S21: 95.3% | U21: 0.01 | W21: 0.00 | Y21: 0.00 | AA21: 0.07 | AC21: 0.02 | AE21: 0.00 | AG21: 0.13 | AI21: 0.04 | AK21: 0.00
A22: 12 | C22: 6,394.0 | E22: 7,669.6 | G22: 12,699.9 | I22: 11,809.0 | K22: 17,664.4 | M22: 18,366.6 | O22: 50.3% | Q22: 69.0% | S22: 95.3% | U22: 0.01 | W22: 0.00 | Y22: 0.00 | AA22: 0.06 | AC22: 0.02 | AE22: 0.00 | AG22: 0.12 | AI22: 0.03 | AK22: 0.00
A23: 13 | C23: 7,669.6 | E23: 8,945.3 | G23: 11,809.0 | I23: 13,633.3 | K23: 18,366.6 | M23: 19,068.7 | O23: 50.3% | Q23: 69.0% | S23: 95.3% | U23: 0.01 | W23: 0.00 | Y23: 0.00 | AA23: 0.06 | AC23: 0.01 | AE23: 0.00 | AG23: 0.10 | AI23: 0.02 | AK23: 0.00
S25: ∑(number ha-1) | U25: 0.35 | W25: 0.35 | Y25: 0.35 | AA25: 1.83 | AC25: 1.87 | AE25: 1.83 | AG25: 3.38 | AI25: 3.45 | AK25: 3.38
A32: To evaluate growth in mm instead of g, enter the average relative weight for your population in the yellow box below then use the below table. Note, relative weight = 92 is about average for most species
C35: Avg relative weight | E35: 92
C38: Annual growth increment (mm)
C39: Low (1) | G39: Medium (2) | K39: High (3)
A40: Age | C40: Start | E40: End | G40: Start | I40: End | K40: Start | M40: End
A42: 0 | C42: - | E42: - | G42: - | I42: - | K42: - | M42: -
A43: 1 | C43: =10^((LOG10(C11*($E$35/100))-VLOOKUP($A$1,'Rel wt'!$A$2:$D$11,2,FALSE))/VLOOKUP($A$1,'Rel wt'!$A$2:$D$11,4,FALSE)) -> 123.1 | E43: =10^((LOG10(E11*($E$35/100))-VLOOKUP($A$1,'Rel wt'!$A$2:$D$11,2,FALSE))/VLOOKUP($A$1,'Rel wt'!$A$2:$D$11,4,FALSE)) -> 173.2 | G43: =10^((LOG10(G11*($E$35/100))-VLOOKUP($A$1,'Rel wt'!$A$2:$D$11,2,FALSE))/VLOOKUP($A$1,'Rel wt'!$A$2:$D$11,4,FALSE)) -> 156.3 | I43: =10^((LOG10(I11*($E$35/100))-VLOOKUP($A$1,'Rel wt'!$A$2:$D$11,2,FALSE))/VLOOKUP($A$1,'Rel wt'!$A$2:$D$11,4,FALSE)) -> 237.7 | K43: =10^((LOG10(K11*($E$35/100))-VLOOKUP($A$1,'Rel wt'!$A$2:$D$11,2,FALSE))/VLOOKUP($A$1,'Rel wt'!$A$2:$D$11,4,FALSE)) -> 224.5 | M43: =10^((LOG10(M11*($E$35/100))-VLOOKUP($A$1,'Rel wt'!$A$2:$D$11,2,FALSE))/VLOOKUP($A$1,'Rel wt'!$A$2:$D$11,4,FALSE)) -> 342.6
A44: 2 | C44: =10^((LOG10(C12*($E$35/100))-VLOOKUP($A$1,'Rel wt'!$A$2:$D$11,2,FALSE))/VLOOKUP($A$1,'Rel wt'!$A$2:$D$11,4,FALSE)) -> 173.2 | E44: =10^((LOG10(E12*($E$35/100))-VLOOKUP($A$1,'Rel wt'!$A$2:$D$11,2,FALSE))/VLOOKUP($A$1,'Rel wt'!$A$2:$D$11,4,FALSE)) -> 212.6 | G44: =10^((LOG10(G12*($E$35/100))-VLOOKUP($A$1,'Rel wt'!$A$2:$D$11,2,FALSE))/VLOOKUP($A$1,'Rel wt'!$A$2:$D$11,4,FALSE)) -> 237.7 | I44: =10^((LOG10(I12*($E$35/100))-VLOOKUP($A$1,'Rel wt'!$A$2:$D$11,2,FALSE))/VLOOKUP($A$1,'Rel wt'!$A$2:$D$11,4,FALSE)) -> 334.5 | K44: =10^((LOG10(K12*($E$35/100))-VLOOKUP($A$1,'Rel wt'!$A$2:$D$11,2,FALSE))/VLOOKUP($A$1,'Rel wt'!$A$2:$D$11,4,FALSE)) -> 342.6 | M44: =10^((LOG10(M12*($E$35/100))-VLOOKUP($A$1,'Rel wt'!$A$2:$D$11,2,FALSE))/VLOOKUP($A$1,'Rel wt'!$A$2:$D$11,4,FALSE)) -> 463.5
A45: 3 | C45: =10^((LOG10(C13*($E$35/100))-VLOOKUP($A$1,'Rel wt'!$A$2:$D$11,2,FALSE))/VLOOKUP($A$1,'Rel wt'!$A$2:$D$11,4,FALSE)) -> 212.6 | E45: =10^((LOG10(E13*($E$35/100))-VLOOKUP($A$1,'Rel wt'!$A$2:$D$11,2,FALSE))/VLOOKUP($A$1,'Rel wt'!$A$2:$D$11,4,FALSE)) -> 291.3 | G45: =10^((LOG10(G13*($E$35/100))-VLOOKUP($A$1,'Rel wt'!$A$2:$D$11,2,FALSE))/VLOOKUP($A$1,'Rel wt'!$A$2:$D$11,4,FALSE)) -> 334.5 | I45: =10^((LOG10(I13*($E$35/100))-VLOOKUP($A$1,'Rel wt'!$A$2:$D$11,2,FALSE))/VLOOKUP($A$1,'Rel wt'!$A$2:$D$11,4,FALSE)) -> 449.8 | K45: =10^((LOG10(K13*($E$35/100))-VLOOKUP($A$1,'Rel wt'!$A$2:$D$11,2,FALSE))/VLOOKUP($A$1,'Rel wt'!$A$2:$D$11,4,FALSE)) -> 463.5 | M45: =10^((LOG10(M13*($E$35/100))-VLOOKUP($A$1,'Rel wt'!$A$2:$D$11,2,FALSE))/VLOOKUP($A$1,'Rel wt'!$A$2:$D$11,4,FALSE)) -> 576.8
A46: 4 | C46: =10^((LOG10(C14*($E$35/100))-VLOOKUP($A$1,'Rel wt'!$A$2:$D$11,2,FALSE))/VLOOKUP($A$1,'Rel wt'!$A$2:$D$11,4,FALSE)) -> 291.3 | E46: =10^((LOG10(E14*($E$35/100))-VLOOKUP($A$1,'Rel wt'!$A$2:$D$11,2,FALSE))/VLOOKUP($A$1,'Rel wt'!$A$2:$D$11,4,FALSE)) -> 395.7 | G46: =10^((LOG10(G14*($E$35/100))-VLOOKUP($A$1,'Rel wt'!$A$2:$D$11,2,FALSE))/VLOOKUP($A$1,'Rel wt'!$A$2:$D$11,4,FALSE)) -> 449.8 | I46: =10^((LOG10(I14*($E$35/100))-VLOOKUP($A$1,'Rel wt'!$A$2:$D$11,2,FALSE))/VLOOKUP($A$1,'Rel wt'!$A$2:$D$11,4,FALSE)) -> 556.5 | K46: =10^((LOG10(K14*($E$35/100))-VLOOKUP($A$1,'Rel wt'!$A$2:$D$11,2,FALSE))/VLOOKUP($A$1,'Rel wt'!$A$2:$D$11,4,FALSE)) -> 576.8 | M46: =10^((LOG10(M14*($E$35/100))-VLOOKUP($A$1,'Rel wt'!$A$2:$D$11,2,FALSE))/VLOOKUP($A$1,'Rel wt'!$A$2:$D$11,4,FALSE)) -> 648.6
A47: 5 | C47: =10^((LOG10(C15*($E$35/100))-VLOOKUP($A$1,'Rel wt'!$A$2:$D$11,2,FALSE))/VLOOKUP($A$1,'Rel wt'!$A$2:$D$11,4,FALSE)) -> 395.7 | E47: =10^((LOG10(E15*($E$35/100))-VLOOKUP($A$1,'Rel wt'!$A$2:$D$11,2,FALSE))/VLOOKUP($A$1,'Rel wt'!$A$2:$D$11,4,FALSE)) -> 474.1 | G47: =10^((LOG10(G15*($E$35/100))-VLOOKUP($A$1,'Rel wt'!$A$2:$D$11,2,FALSE))/VLOOKUP($A$1,'Rel wt'!$A$2:$D$11,4,FALSE)) -> 556.5 | I47: =10^((LOG10(I15*($E$35/100))-VLOOKUP($A$1,'Rel wt'!$A$2:$D$11,2,FALSE))/VLOOKUP($A$1,'Rel wt'!$A$2:$D$11,4,FALSE)) -> 631.9 | K47: =10^((LOG10(K15*($E$35/100))-VLOOKUP($A$1,'Rel wt'!$A$2:$D$11,2,FALSE))/VLOOKUP($A$1,'Rel wt'!$A$2:$D$11,4,FALSE)) -> 648.6 | M47: =10^((LOG10(M15*($E$35/100))-VLOOKUP($A$1,'Rel wt'!$A$2:$D$11,2,FALSE))/VLOOKUP($A$1,'Rel wt'!$A$2:$D$11,4,FALSE)) -> 774.2
A48: 6 | C48: =10^((LOG10(C16*($E$35/100))-VLOOKUP($A$1,'Rel wt'!$A$2:$D$11,2,FALSE))/VLOOKUP($A$1,'Rel wt'!$A$2:$D$11,4,FALSE)) -> 474.1 | E48: =10^((LOG10(E16*($E$35/100))-VLOOKUP($A$1,'Rel wt'!$A$2:$D$11,2,FALSE))/VLOOKUP($A$1,'Rel wt'!$A$2:$D$11,4,FALSE)) -> 535.6 | G48: =10^((LOG10(G16*($E$35/100))-VLOOKUP($A$1,'Rel wt'!$A$2:$D$11,2,FALSE))/VLOOKUP($A$1,'Rel wt'!$A$2:$D$11,4,FALSE)) -> 631.9 | I48: =10^((LOG10(I16*($E$35/100))-VLOOKUP($A$1,'Rel wt'!$A$2:$D$11,2,FALSE))/VLOOKUP($A$1,'Rel wt'!$A$2:$D$11,4,FALSE)) -> 690.4 | K48: =10^((LOG10(K16*($E$35/100))-VLOOKUP($A$1,'Rel wt'!$A$2:$D$11,2,FALSE))/VLOOKUP($A$1,'Rel wt'!$A$2:$D$11,4,FALSE)) -> 774.2 | M48: =10^((LOG10(M16*($E$35/100))-VLOOKUP($A$1,'Rel wt'!$A$2:$D$11,2,FALSE))/VLOOKUP($A$1,'Rel wt'!$A$2:$D$11,4,FALSE)) -> 868.3
A49: 7 | C49: =10^((LOG10(C17*($E$35/100))-VLOOKUP($A$1,'Rel wt'!$A$2:$D$11,2,FALSE))/VLOOKUP($A$1,'Rel wt'!$A$2:$D$11,4,FALSE)) -> 535.6 | E49: =10^((LOG10(E17*($E$35/100))-VLOOKUP($A$1,'Rel wt'!$A$2:$D$11,2,FALSE))/VLOOKUP($A$1,'Rel wt'!$A$2:$D$11,4,FALSE)) -> 581.1 | G49: =10^((LOG10(G17*($E$35/100))-VLOOKUP($A$1,'Rel wt'!$A$2:$D$11,2,FALSE))/VLOOKUP($A$1,'Rel wt'!$A$2:$D$11,4,FALSE)) -> 690.4 | I49: =10^((LOG10(I17*($E$35/100))-VLOOKUP($A$1,'Rel wt'!$A$2:$D$11,2,FALSE))/VLOOKUP($A$1,'Rel wt'!$A$2:$D$11,4,FALSE)) -> 750.4 | K49: =10^((LOG10(K17*($E$35/100))-VLOOKUP($A$1,'Rel wt'!$A$2:$D$11,2,FALSE))/VLOOKUP($A$1,'Rel wt'!$A$2:$D$11,4,FALSE)) -> 868.3 | M49: =10^((LOG10(M17*($E$35/100))-VLOOKUP($A$1,'Rel wt'!$A$2:$D$11,2,FALSE))/VLOOKUP($A$1,'Rel wt'!$A$2:$D$11,4,FALSE)) -> 921.2
A50: 8 | C50: =10^((LOG10(C18*($E$35/100))-VLOOKUP($A$1,'Rel wt'!$A$2:$D$11,2,FALSE))/VLOOKUP($A$1,'Rel wt'!$A$2:$D$11,4,FALSE)) -> 581.1 | E50: =10^((LOG10(E18*($E$35/100))-VLOOKUP($A$1,'Rel wt'!$A$2:$D$11,2,FALSE))/VLOOKUP($A$1,'Rel wt'!$A$2:$D$11,4,FALSE)) -> 676.3 | G50: =10^((LOG10(G18*($E$35/100))-VLOOKUP($A$1,'Rel wt'!$A$2:$D$11,2,FALSE))/VLOOKUP($A$1,'Rel wt'!$A$2:$D$11,4,FALSE)) -> 750.4 | I50: =10^((LOG10(I18*($E$35/100))-VLOOKUP($A$1,'Rel wt'!$A$2:$D$11,2,FALSE))/VLOOKUP($A$1,'Rel wt'!$A$2:$D$11,4,FALSE)) -> 801.4 | K50: =10^((LOG10(K18*($E$35/100))-VLOOKUP($A$1,'Rel wt'!$A$2:$D$11,2,FALSE))/VLOOKUP($A$1,'Rel wt'!$A$2:$D$11,4,FALSE)) -> 921.2 | M50: =10^((LOG10(M18*($E$35/100))-VLOOKUP($A$1,'Rel wt'!$A$2:$D$11,2,FALSE))/VLOOKUP($A$1,'Rel wt'!$A$2:$D$11,4,FALSE)) -> 964.7
A51: 9 | C51: =10^((LOG10(C19*($E$35/100))-VLOOKUP($A$1,'Rel wt'!$A$2:$D$11,2,FALSE))/VLOOKUP($A$1,'Rel wt'!$A$2:$D$11,4,FALSE)) -> 676.3 | E51: =10^((LOG10(E19*($E$35/100))-VLOOKUP($A$1,'Rel wt'!$A$2:$D$11,2,FALSE))/VLOOKUP($A$1,'Rel wt'!$A$2:$D$11,4,FALSE)) -> 698.1 | G51: =10^((LOG10(G19*($E$35/100))-VLOOKUP($A$1,'Rel wt'!$A$2:$D$11,2,FALSE))/VLOOKUP($A$1,'Rel wt'!$A$2:$D$11,4,FALSE)) -> 801.4 | I51: =10^((LOG10(I19*($E$35/100))-VLOOKUP($A$1,'Rel wt'!$A$2:$D$11,2,FALSE))/VLOOKUP($A$1,'Rel wt'!$A$2:$D$11,4,FALSE)) -> 837.6 | K51: =10^((LOG10(K19*($E$35/100))-VLOOKUP($A$1,'Rel wt'!$A$2:$D$11,2,FALSE))/VLOOKUP($A$1,'Rel wt'!$A$2:$D$11,4,FALSE)) -> 964.7 | M51: =10^((LOG10(M19*($E$35/100))-VLOOKUP($A$1,'Rel wt'!$A$2:$D$11,2,FALSE))/VLOOKUP($A$1,'Rel wt'!$A$2:$D$11,4,FALSE)) -> 1006.4
A52: 10 | C52: =10^((LOG10(C20*($E$35/100))-VLOOKUP($A$1,'Rel wt'!$A$2:$D$11,2,FALSE))/VLOOKUP($A$1,'Rel wt'!$A$2:$D$11,4,FALSE)) -> 698.1 | E52: =10^((LOG10(E20*($E$35/100))-VLOOKUP($A$1,'Rel wt'!$A$2:$D$11,2,FALSE))/VLOOKUP($A$1,'Rel wt'!$A$2:$D$11,4,FALSE)) -> 712.7 | G52: =10^((LOG10(G20*($E$35/100))-VLOOKUP($A$1,'Rel wt'!$A$2:$D$11,2,FALSE))/VLOOKUP($A$1,'Rel wt'!$A$2:$D$11,4,FALSE)) -> 837.6 | I52: =10^((LOG10(I20*($E$35/100))-VLOOKUP($A$1,'Rel wt'!$A$2:$D$11,2,FALSE))/VLOOKUP($A$1,'Rel wt'!$A$2:$D$11,4,FALSE)) -> 902.4 | K52: =10^((LOG10(K20*($E$35/100))-VLOOKUP($A$1,'Rel wt'!$A$2:$D$11,2,FALSE))/VLOOKUP($A$1,'Rel wt'!$A$2:$D$11,4,FALSE)) -> 1006.4 | M52: =10^((LOG10(M20*($E$35/100))-VLOOKUP($A$1,'Rel wt'!$A$2:$D$11,2,FALSE))/VLOOKUP($A$1,'Rel wt'!$A$2:$D$11,4,FALSE)) -> 1032.8
A53: 11 | C53: =10^((LOG10(C21*($E$35/100))-VLOOKUP($A$1,'Rel wt'!$A$2:$D$11,2,FALSE))/VLOOKUP($A$1,'Rel wt'!$A$2:$D$11,4,FALSE)) -> 712.7 | E53: =10^((LOG10(E21*($E$35/100))-VLOOKUP($A$1,'Rel wt'!$A$2:$D$11,2,FALSE))/VLOOKUP($A$1,'Rel wt'!$A$2:$D$11,4,FALSE)) -> 763.5 | G53: =10^((LOG10(G21*($E$35/100))-VLOOKUP($A$1,'Rel wt'!$A$2:$D$11,2,FALSE))/VLOOKUP($A$1,'Rel wt'!$A$2:$D$11,4,FALSE)) -> 902.4 | I53: =10^((LOG10(I21*($E$35/100))-VLOOKUP($A$1,'Rel wt'!$A$2:$D$11,2,FALSE))/VLOOKUP($A$1,'Rel wt'!$A$2:$D$11,4,FALSE)) -> 944.3 | K53: =10^((LOG10(K21*($E$35/100))-VLOOKUP($A$1,'Rel wt'!$A$2:$D$11,2,FALSE))/VLOOKUP($A$1,'Rel wt'!$A$2:$D$11,4,FALSE)) -> 1032.8 | M53: =10^((LOG10(M21*($E$35/100))-VLOOKUP($A$1,'Rel wt'!$A$2:$D$11,2,FALSE))/VLOOKUP($A$1,'Rel wt'!$A$2:$D$11,4,FALSE)) -> 1045.9
A54: 12 | C54: =10^((LOG10(C22*($E$35/100))-VLOOKUP($A$1,'Rel wt'!$A$2:$D$11,2,FALSE))/VLOOKUP($A$1,'Rel wt'!$A$2:$D$11,4,FALSE)) -> 763.5 | E54: =10^((LOG10(E22*($E$35/100))-VLOOKUP($A$1,'Rel wt'!$A$2:$D$11,2,FALSE))/VLOOKUP($A$1,'Rel wt'!$A$2:$D$11,4,FALSE)) -> 807.8 | G54: =10^((LOG10(G22*($E$35/100))-VLOOKUP($A$1,'Rel wt'!$A$2:$D$11,2,FALSE))/VLOOKUP($A$1,'Rel wt'!$A$2:$D$11,4,FALSE)) -> 944.3 | I54: =10^((LOG10(I22*($E$35/100))-VLOOKUP($A$1,'Rel wt'!$A$2:$D$11,2,FALSE))/VLOOKUP($A$1,'Rel wt'!$A$2:$D$11,4,FALSE)) -> 923.3 | K54: =10^((LOG10(K22*($E$35/100))-VLOOKUP($A$1,'Rel wt'!$A$2:$D$11,2,FALSE))/VLOOKUP($A$1,'Rel wt'!$A$2:$D$11,4,FALSE)) -> 1045.9 | M54: =10^((LOG10(M22*($E$35/100))-VLOOKUP($A$1,'Rel wt'!$A$2:$D$11,2,FALSE))/VLOOKUP($A$1,'Rel wt'!$A$2:$D$11,4,FALSE)) -> 1058.5
A55: 13 | C55: =10^((LOG10(C23*($E$35/100))-VLOOKUP($A$1,'Rel wt'!$A$2:$D$11,2,FALSE))/VLOOKUP($A$1,'Rel wt'!$A$2:$D$11,4,FALSE)) -> 807.8 | E55: =10^((LOG10(E23*($E$35/100))-VLOOKUP($A$1,'Rel wt'!$A$2:$D$11,2,FALSE))/VLOOKUP($A$1,'Rel wt'!$A$2:$D$11,4,FALSE)) -> 847.2 | G55: =10^((LOG10(G23*($E$35/100))-VLOOKUP($A$1,'Rel wt'!$A$2:$D$11,2,FALSE))/VLOOKUP($A$1,'Rel wt'!$A$2:$D$11,4,FALSE)) -> 923.3 | I55: =10^((LOG10(I23*($E$35/100))-VLOOKUP($A$1,'Rel wt'!$A$2:$D$11,2,FALSE))/VLOOKUP($A$1,'Rel wt'!$A$2:$D$11,4,FALSE)) -> 965.3 | K55: =10^((LOG10(K23*($E$35/100))-VLOOKUP($A$1,'Rel wt'!$A$2:$D$11,2,FALSE))/VLOOKUP($A$1,'Rel wt'!$A$2:$D$11,4,FALSE)) -> 1058.5 | M55: =10^((LOG10(M23*($E$35/100))-VLOOKUP($A$1,'Rel wt'!$A$2:$D$11,2,FALSE))/VLOOKUP($A$1,'Rel wt'!$A$2:$D$11,4,FALSE)) -> 1070.9

Sheet ST7 BCF
A1: Blue Catfish
A2: Litterature values associated with low (1), medium (2), and high (3) parameter values in Evans et al 2014 predator-prey calculation tables. For growth, pick the column under annular growth increment that most closely matches the size structure (mean weight at age) of your population at the beginning or ending of the year. Sizes are given as weight (g) because this is the relevant metric for the bioenergetic equations. To see an aproximate size in length, look at the table below the main table (assumes relative weight you specify in the yellow cell). Mortality and population size are naturally coupled. As such, pick the mortality of the three given that is most similar to your population's mortality (this will define the 1, 2, or 3 for mortality), then select the column with that mortality rate that has the total population size most similar to your populations size (look at the bottom of the table for the size with all age classes summed together). This will define the 1, 2, or 3 for initial population size.
O5: Gizzard shad consumed (percent by weight) | U5: Initial population size (number ha-1)
C6: Annual growth increment (g) | U6: Low | AA6: Medium | AG6: High
C7: Low | G7: Medium | K7: High | U7: A 15.4% | W7: A 31.3% | Y7: A 49.5% | AA7: A 15.4% | AC7: A 31.3% | AE7: A 49.5% | AG7: A 15.4% | AI7: A 31.3% | AK7: A 49.5%
A8: Age | C8: Start | E8: End | G8: Start | I8: End | K8: Start | M8: End | O8: Low | Q8: Medium | S8: High
A10: 0 | C10: - | E10: - | G10: - | I10: - | K10: - | M10: - | O10: - | Q10: - | S10: - | U10: 1.77 | W10: 3.35 | Y10: 5.29 | AA10: 2.36 | AC10: 4.47 | AE10: 7.06 | AG10: 2.95 | AI10: 5.59 | AK10: 8.82
A11: 1 | C11: 27.2 | E11: 36.9 | G11: 31.5 | I11: 76.5 | K11: 46.8 | M11: 154.5 | O11: 2.5% | Q11: 7.2% | S11: 19.5% | U11: 1.50 | W11: 2.21 | Y11: 2.67 | AA11: 1.99 | AC11: 2.95 | AE11: 3.56 | AG11: 2.49 | AI11: 3.68 | AK11: 4.46
A12: 2 | C12: 36.9 | E12: 95.3 | G12: 76.5 | I12: 181.3 | K12: 154.5 | M12: 394.3 | O12: 2.5% | Q12: 7.2% | S12: 15.8% | U12: 1.27 | W12: 1.57 | Y12: 1.35 | AA12: 1.69 | AC12: 2.09 | AE12: 1.80 | AG12: 2.11 | AI12: 2.62 | AK12: 2.25
A13: 3 | C13: 95.3 | E13: 185.9 | G13: 181.3 | I13: 332.3 | K13: 394.3 | M13: 772.2 | O13: 7.2% | Q13: 63.3% | S13: 96.0% | U13: 1.07 | W13: 1.11 | Y13: 0.68 | AA13: 1.43 | AC13: 1.49 | AE13: 0.91 | AG13: 1.78 | AI13: 1.86 | AK13: 1.14
A14: 4 | C14: 185.9 | E14: 192.7 | G14: 332.3 | I14: 565.2 | K14: 772.2 | M14: 1,311.6 | O14: 7.2% | Q14: 63.3% | S14: 100.0% | U14: 0.91 | W14: 0.79 | Y14: 0.34 | AA14: 1.21 | AC14: 1.06 | AE14: 0.46 | AG14: 1.51 | AI14: 1.32 | AK14: 0.57
A15: 5 | C15: 192.7 | E15: 381.7 | G15: 565.2 | I15: 817.6 | K15: 1,311.6 | M15: 2,598.1 | O15: 22.0% | Q15: 89.2% | S15: 97.9% | U15: 0.77 | W15: 0.56 | Y15: 0.17 | AA15: 1.02 | AC15: 0.75 | AE15: 0.23 | AG15: 1.28 | AI15: 0.94 | AK15: 0.29
A16: 6 | C16: 381.7 | E16: 493.9 | G16: 817.6 | I16: 1,196.7 | K16: 2,598.1 | M16: 4,198.1 | O16: 22.0% | Q16: 91.0% | S16: 97.9% | U16: 0.65 | W16: 0.40 | Y16: 0.09 | AA16: 0.86 | AC16: 0.53 | AE16: 0.12 | AG16: 1.08 | AI16: 0.66 | AK16: 0.15
A17: 7 | C17: 493.9 | E17: 511.3 | G17: 1,196.7 | I17: 1,591.1 | K17: 4,198.1 | M17: 6,206.9 | O17: 22.0% | Q17: 91.0% | S17: 97.9% | U17: 0.55 | W17: 0.28 | Y17: 0.04 | AA17: 0.73 | AC17: 0.38 | AE17: 0.06 | AG17: 0.91 | AI17: 0.47 | AK17: 0.07
A18: 8 | C18: 511.3 | E18: 667.7 | G18: 1,591.1 | I18: 2,029.0 | K18: 6,206.9 | M18: 8,215.8 | O18: 22.0% | Q18: 91.0% | S18: 97.9% | U18: 0.46 | W18: 0.20 | Y18: 0.02 | AA18: 0.62 | AC18: 0.27 | AE18: 0.03 | AG18: 0.77 | AI18: 0.34 | AK18: 0.04
A19: 9 | C19: 667.7 | E19: 824.1 | G19: 2,029.0 | I19: 2,064.7 | K19: 8,215.8 | M19: 10,224.6 | O19: 22.0% | Q19: 91.0% | S19: 97.9% | U19: 0.39 | W19: 0.14 | Y19: 0.01 | AA19: 0.52 | AC19: 0.19 | AE19: 0.02 | AG19: 0.65 | AI19: 0.24 | AK19: 0.02
A20: 10 | C20: 824.1 | E20: 980.4 | G20: 2,064.7 | I20: 3,178.2 | K20: 10,224.6 | M20: 12,233.4 | O20: 22.0% | Q20: 91.0% | S20: 97.9% | U20: 0.33 | W20: 0.10 | Y20: 0.01 | AA20: 0.44 | AC20: 0.14 | AE20: 0.01 | AG20: 0.55 | AI20: 0.17 | AK20: 0.01
A21: 11 | C21: 980.4 | E21: 1,136.8 | G21: 3,178.2 | I21: 4,251.0 | K21: 12,233.4 | M21: 14,242.2 | O21: 22.0% | Q21: 91.0% | S21: 97.9% | U21: 0.28 | W21: 0.07 | Y21: 0.00 | AA21: 0.37 | AC21: 0.10 | AE21: 0.00 | AG21: 0.47 | AI21: 0.12 | AK21: 0.00
A22: 12 | C22: 1,136.8 | E22: 1,293.2 | G22: 4,251.0 | I22: 5,917.3 | K22: 14,242.2 | M22: 16,251.0 | O22: 22.0% | Q22: 91.0% | S22: 97.9% | U22: 0.24 | W22: 0.05 | Y22: 0.00 | AA22: 0.32 | AC22: 0.07 | AE22: 0.00 | AG22: 0.40 | AI22: 0.09 | AK22: 0.00
A23: 13 | C23: 1,293.2 | E23: 1,449.6 | G23: 5,917.3 | I23: 2,644.1 | K23: 16,251.0 | M23: 18,259.8 | O23: 22.0% | Q23: 91.0% | S23: 97.9% | U23: 0.20 | W23: 0.04 | Y23: 0.00 | AA23: 0.27 | AC23: 0.05 | AE23: 0.00 | AG23: 0.34 | AI23: 0.06 | AK23: 0.00
A24: 14 | C24: 1,449.6 | E24: 1,606.0 | G24: 2,644.1 | I24: 5,552.5 | K24: 18,259.8 | M24: 20,268.7 | O24: 22.0% | Q24: 91.0% | S24: 97.9% | U24: 0.17 | W24: 0.03 | Y24: 0.00 | AA24: 0.23 | AC24: 0.03 | AE24: 0.00 | AG24: 0.28 | AI24: 0.04 | AK24: 0.00
A25: 15 | C25: 1,606.0 | E25: 1,762.4 | G25: 5,552.5 | I25: 6,704.2 | K25: 20,268.7 | M25: 22,277.5 | O25: 22.0% | Q25: 91.0% | S25: 97.9% | U25: 0.14 | W25: 0.02 | Y25: 0.00 | AA25: 0.19 | AC25: 0.02 | AE25: 0.00 | AG25: 0.24 | AI25: 0.03 | AK25: 0.00
S27: ∑(number ha-1) | U27: 10.69 | V27: 0.00 | W27: 10.93 | X27: 0.00 | Y27: 10.69 | AA27: 14.26 | AC27: 14.58 | AE27: 14.26 | AG27: 17.82 | AI27: 18.22 | AK27: 17.82
A32: To evaluate growth in mm instead of g, enter the average relative weight for your population in the yellow box below then use the below table. Note, relative weight = 92 is about average for most species
C35: Avg relative weight | E35: 92
C38: Annual growth increment (mm)
C39: Low (1) | G39: Medium (2) | K39: High (3)
A40: Age | C40: Start | E40: End | G40: Start | I40: End | K40: Start | M40: End
A42: 0 | C42: - | E42: - | G42: - | I42: - | K42: - | M42: -
A43: 1 | C43: =10^((LOG10(C11*($E$35/100))-VLOOKUP($A$1,'Rel wt'!$A$2:$D$11,2,FALSE))/VLOOKUP($A$1,'Rel wt'!$A$2:$D$11,4,FALSE)) -> 157.0 | E43: =10^((LOG10(E11*($E$35/100))-VLOOKUP($A$1,'Rel wt'!$A$2:$D$11,2,FALSE))/VLOOKUP($A$1,'Rel wt'!$A$2:$D$11,4,FALSE)) -> 171.6 | G43: =10^((LOG10(G11*($E$35/100))-VLOOKUP($A$1,'Rel wt'!$A$2:$D$11,2,FALSE))/VLOOKUP($A$1,'Rel wt'!$A$2:$D$11,4,FALSE)) -> 163.8 | I43: =10^((LOG10(I11*($E$35/100))-VLOOKUP($A$1,'Rel wt'!$A$2:$D$11,2,FALSE))/VLOOKUP($A$1,'Rel wt'!$A$2:$D$11,4,FALSE)) -> 212.7 | K43: =10^((LOG10(K11*($E$35/100))-VLOOKUP($A$1,'Rel wt'!$A$2:$D$11,2,FALSE))/VLOOKUP($A$1,'Rel wt'!$A$2:$D$11,4,FALSE)) -> 184.0 | M43: =10^((LOG10(M11*($E$35/100))-VLOOKUP($A$1,'Rel wt'!$A$2:$D$11,2,FALSE))/VLOOKUP($A$1,'Rel wt'!$A$2:$D$11,4,FALSE)) -> 261.5
A44: 2 | C44: =10^((LOG10(C12*($E$35/100))-VLOOKUP($A$1,'Rel wt'!$A$2:$D$11,2,FALSE))/VLOOKUP($A$1,'Rel wt'!$A$2:$D$11,4,FALSE)) -> 171.6 | E44: =10^((LOG10(E12*($E$35/100))-VLOOKUP($A$1,'Rel wt'!$A$2:$D$11,2,FALSE))/VLOOKUP($A$1,'Rel wt'!$A$2:$D$11,4,FALSE)) -> 226.9 | G44: =10^((LOG10(G12*($E$35/100))-VLOOKUP($A$1,'Rel wt'!$A$2:$D$11,2,FALSE))/VLOOKUP($A$1,'Rel wt'!$A$2:$D$11,4,FALSE)) -> 212.7 | I44: =10^((LOG10(I12*($E$35/100))-VLOOKUP($A$1,'Rel wt'!$A$2:$D$11,2,FALSE))/VLOOKUP($A$1,'Rel wt'!$A$2:$D$11,4,FALSE)) -> 274.1 | K44: =10^((LOG10(K12*($E$35/100))-VLOOKUP($A$1,'Rel wt'!$A$2:$D$11,2,FALSE))/VLOOKUP($A$1,'Rel wt'!$A$2:$D$11,4,FALSE)) -> 261.5 | M44: =10^((LOG10(M12*($E$35/100))-VLOOKUP($A$1,'Rel wt'!$A$2:$D$11,2,FALSE))/VLOOKUP($A$1,'Rel wt'!$A$2:$D$11,4,FALSE)) -> 344.5
A45: 3 | C45: =10^((LOG10(C13*($E$35/100))-VLOOKUP($A$1,'Rel wt'!$A$2:$D$11,2,FALSE))/VLOOKUP($A$1,'Rel wt'!$A$2:$D$11,4,FALSE)) -> 226.9 | E45: =10^((LOG10(E13*($E$35/100))-VLOOKUP($A$1,'Rel wt'!$A$2:$D$11,2,FALSE))/VLOOKUP($A$1,'Rel wt'!$A$2:$D$11,4,FALSE)) -> 276.2 | G45: =10^((LOG10(G13*($E$35/100))-VLOOKUP($A$1,'Rel wt'!$A$2:$D$11,2,FALSE))/VLOOKUP($A$1,'Rel wt'!$A$2:$D$11,4,FALSE)) -> 274.1 | I45: =10^((LOG10(I13*($E$35/100))-VLOOKUP($A$1,'Rel wt'!$A$2:$D$11,2,FALSE))/VLOOKUP($A$1,'Rel wt'!$A$2:$D$11,4,FALSE)) -> 327.6 | K45: =10^((LOG10(K13*($E$35/100))-VLOOKUP($A$1,'Rel wt'!$A$2:$D$11,2,FALSE))/VLOOKUP($A$1,'Rel wt'!$A$2:$D$11,4,FALSE)) -> 344.5 | M45: =10^((LOG10(M13*($E$35/100))-VLOOKUP($A$1,'Rel wt'!$A$2:$D$11,2,FALSE))/VLOOKUP($A$1,'Rel wt'!$A$2:$D$11,4,FALSE)) -> 419.8
A46: 4 | C46: =10^((LOG10(C14*($E$35/100))-VLOOKUP($A$1,'Rel wt'!$A$2:$D$11,2,FALSE))/VLOOKUP($A$1,'Rel wt'!$A$2:$D$11,4,FALSE)) -> 276.2 | E46: =10^((LOG10(E14*($E$35/100))-VLOOKUP($A$1,'Rel wt'!$A$2:$D$11,2,FALSE))/VLOOKUP($A$1,'Rel wt'!$A$2:$D$11,4,FALSE)) -> 279.1 | G46: =10^((LOG10(G14*($E$35/100))-VLOOKUP($A$1,'Rel wt'!$A$2:$D$11,2,FALSE))/VLOOKUP($A$1,'Rel wt'!$A$2:$D$11,4,FALSE)) -> 327.6 | I46: =10^((LOG10(I14*($E$35/100))-VLOOKUP($A$1,'Rel wt'!$A$2:$D$11,2,FALSE))/VLOOKUP($A$1,'Rel wt'!$A$2:$D$11,4,FALSE)) -> 383.0 | K46: =10^((LOG10(K14*($E$35/100))-VLOOKUP($A$1,'Rel wt'!$A$2:$D$11,2,FALSE))/VLOOKUP($A$1,'Rel wt'!$A$2:$D$11,4,FALSE)) -> 419.8 | M46: =10^((LOG10(M14*($E$35/100))-VLOOKUP($A$1,'Rel wt'!$A$2:$D$11,2,FALSE))/VLOOKUP($A$1,'Rel wt'!$A$2:$D$11,4,FALSE)) -> 490.6
A47: 5 | C47: =10^((LOG10(C15*($E$35/100))-VLOOKUP($A$1,'Rel wt'!$A$2:$D$11,2,FALSE))/VLOOKUP($A$1,'Rel wt'!$A$2:$D$11,4,FALSE)) -> 279.1 | E47: =10^((LOG10(E15*($E$35/100))-VLOOKUP($A$1,'Rel wt'!$A$2:$D$11,2,FALSE))/VLOOKUP($A$1,'Rel wt'!$A$2:$D$11,4,FALSE)) -> 341.3 | G47: =10^((LOG10(G15*($E$35/100))-VLOOKUP($A$1,'Rel wt'!$A$2:$D$11,2,FALSE))/VLOOKUP($A$1,'Rel wt'!$A$2:$D$11,4,FALSE)) -> 383.0 | I47: =10^((LOG10(I15*($E$35/100))-VLOOKUP($A$1,'Rel wt'!$A$2:$D$11,2,FALSE))/VLOOKUP($A$1,'Rel wt'!$A$2:$D$11,4,FALSE)) -> 427.0 | K47: =10^((LOG10(K15*($E$35/100))-VLOOKUP($A$1,'Rel wt'!$A$2:$D$11,2,FALSE))/VLOOKUP($A$1,'Rel wt'!$A$2:$D$11,4,FALSE)) -> 490.6 | M47: =10^((LOG10(M15*($E$35/100))-VLOOKUP($A$1,'Rel wt'!$A$2:$D$11,2,FALSE))/VLOOKUP($A$1,'Rel wt'!$A$2:$D$11,4,FALSE)) -> 599.9
A48: 6 | C48: =10^((LOG10(C16*($E$35/100))-VLOOKUP($A$1,'Rel wt'!$A$2:$D$11,2,FALSE))/VLOOKUP($A$1,'Rel wt'!$A$2:$D$11,4,FALSE)) -> 341.3 | E48: =10^((LOG10(E16*($E$35/100))-VLOOKUP($A$1,'Rel wt'!$A$2:$D$11,2,FALSE))/VLOOKUP($A$1,'Rel wt'!$A$2:$D$11,4,FALSE)) -> 368.1 | G48: =10^((LOG10(G16*($E$35/100))-VLOOKUP($A$1,'Rel wt'!$A$2:$D$11,2,FALSE))/VLOOKUP($A$1,'Rel wt'!$A$2:$D$11,4,FALSE)) -> 427.0 | I48: =10^((LOG10(I16*($E$35/100))-VLOOKUP($A$1,'Rel wt'!$A$2:$D$11,2,FALSE))/VLOOKUP($A$1,'Rel wt'!$A$2:$D$11,4,FALSE)) -> 477.6 | K48: =10^((LOG10(K16*($E$35/100))-VLOOKUP($A$1,'Rel wt'!$A$2:$D$11,2,FALSE))/VLOOKUP($A$1,'Rel wt'!$A$2:$D$11,4,FALSE)) -> 599.9 | M48: =10^((LOG10(M16*($E$35/100))-VLOOKUP($A$1,'Rel wt'!$A$2:$D$11,2,FALSE))/VLOOKUP($A$1,'Rel wt'!$A$2:$D$11,4,FALSE)) -> 690.8
A49: 7 | C49: =10^((LOG10(C17*($E$35/100))-VLOOKUP($A$1,'Rel wt'!$A$2:$D$11,2,FALSE))/VLOOKUP($A$1,'Rel wt'!$A$2:$D$11,4,FALSE)) -> 368.1 | E49: =10^((LOG10(E17*($E$35/100))-VLOOKUP($A$1,'Rel wt'!$A$2:$D$11,2,FALSE))/VLOOKUP($A$1,'Rel wt'!$A$2:$D$11,4,FALSE)) -> 371.9 | G49: =10^((LOG10(G17*($E$35/100))-VLOOKUP($A$1,'Rel wt'!$A$2:$D$11,2,FALSE))/VLOOKUP($A$1,'Rel wt'!$A$2:$D$11,4,FALSE)) -> 477.6 | I49: =10^((LOG10(I17*($E$35/100))-VLOOKUP($A$1,'Rel wt'!$A$2:$D$11,2,FALSE))/VLOOKUP($A$1,'Rel wt'!$A$2:$D$11,4,FALSE)) -> 519.3 | K49: =10^((LOG10(K17*($E$35/100))-VLOOKUP($A$1,'Rel wt'!$A$2:$D$11,2,FALSE))/VLOOKUP($A$1,'Rel wt'!$A$2:$D$11,4,FALSE)) -> 690.8 | M49: =10^((LOG10(M17*($E$35/100))-VLOOKUP($A$1,'Rel wt'!$A$2:$D$11,2,FALSE))/VLOOKUP($A$1,'Rel wt'!$A$2:$D$11,4,FALSE)) -> 775.0
A50: 8 | C50: =10^((LOG10(C18*($E$35/100))-VLOOKUP($A$1,'Rel wt'!$A$2:$D$11,2,FALSE))/VLOOKUP($A$1,'Rel wt'!$A$2:$D$11,4,FALSE)) -> 371.9 | E50: =10^((LOG10(E18*($E$35/100))-VLOOKUP($A$1,'Rel wt'!$A$2:$D$11,2,FALSE))/VLOOKUP($A$1,'Rel wt'!$A$2:$D$11,4,FALSE)) -> 402.3 | G50: =10^((LOG10(G18*($E$35/100))-VLOOKUP($A$1,'Rel wt'!$A$2:$D$11,2,FALSE))/VLOOKUP($A$1,'Rel wt'!$A$2:$D$11,4,FALSE)) -> 519.3 | I50: =10^((LOG10(I18*($E$35/100))-VLOOKUP($A$1,'Rel wt'!$A$2:$D$11,2,FALSE))/VLOOKUP($A$1,'Rel wt'!$A$2:$D$11,4,FALSE)) -> 557.8 | K50: =10^((LOG10(K18*($E$35/100))-VLOOKUP($A$1,'Rel wt'!$A$2:$D$11,2,FALSE))/VLOOKUP($A$1,'Rel wt'!$A$2:$D$11,4,FALSE)) -> 775.0 | M50: =10^((LOG10(M18*($E$35/100))-VLOOKUP($A$1,'Rel wt'!$A$2:$D$11,2,FALSE))/VLOOKUP($A$1,'Rel wt'!$A$2:$D$11,4,FALSE)) -> 841.6
A51: 9 | C51: =10^((LOG10(C19*($E$35/100))-VLOOKUP($A$1,'Rel wt'!$A$2:$D$11,2,FALSE))/VLOOKUP($A$1,'Rel wt'!$A$2:$D$11,4,FALSE)) -> 402.3 | E51: =10^((LOG10(E19*($E$35/100))-VLOOKUP($A$1,'Rel wt'!$A$2:$D$11,2,FALSE))/VLOOKUP($A$1,'Rel wt'!$A$2:$D$11,4,FALSE)) -> 428.0 | G51: =10^((LOG10(G19*($E$35/100))-VLOOKUP($A$1,'Rel wt'!$A$2:$D$11,2,FALSE))/VLOOKUP($A$1,'Rel wt'!$A$2:$D$11,4,FALSE)) -> 557.8 | I51: =10^((LOG10(I19*($E$35/100))-VLOOKUP($A$1,'Rel wt'!$A$2:$D$11,2,FALSE))/VLOOKUP($A$1,'Rel wt'!$A$2:$D$11,4,FALSE)) -> 560.7 | K51: =10^((LOG10(K19*($E$35/100))-VLOOKUP($A$1,'Rel wt'!$A$2:$D$11,2,FALSE))/VLOOKUP($A$1,'Rel wt'!$A$2:$D$11,4,FALSE)) -> 841.6 | M51: =10^((LOG10(M19*($E$35/100))-VLOOKUP($A$1,'Rel wt'!$A$2:$D$11,2,FALSE))/VLOOKUP($A$1,'Rel wt'!$A$2:$D$11,4,FALSE)) -> 897.6
A52: 10 | C52: =10^((LOG10(C20*($E$35/100))-VLOOKUP($A$1,'Rel wt'!$A$2:$D$11,2,FALSE))/VLOOKUP($A$1,'Rel wt'!$A$2:$D$11,4,FALSE)) -> 428.0 | E52: =10^((LOG10(E20*($E$35/100))-VLOOKUP($A$1,'Rel wt'!$A$2:$D$11,2,FALSE))/VLOOKUP($A$1,'Rel wt'!$A$2:$D$11,4,FALSE)) -> 450.4 | G52: =10^((LOG10(G20*($E$35/100))-VLOOKUP($A$1,'Rel wt'!$A$2:$D$11,2,FALSE))/VLOOKUP($A$1,'Rel wt'!$A$2:$D$11,4,FALSE)) -> 560.7 | I52: =10^((LOG10(I20*($E$35/100))-VLOOKUP($A$1,'Rel wt'!$A$2:$D$11,2,FALSE))/VLOOKUP($A$1,'Rel wt'!$A$2:$D$11,4,FALSE)) -> 636.5 | K52: =10^((LOG10(K20*($E$35/100))-VLOOKUP($A$1,'Rel wt'!$A$2:$D$11,2,FALSE))/VLOOKUP($A$1,'Rel wt'!$A$2:$D$11,4,FALSE)) -> 897.6 | M52: =10^((LOG10(M20*($E$35/100))-VLOOKUP($A$1,'Rel wt'!$A$2:$D$11,2,FALSE))/VLOOKUP($A$1,'Rel wt'!$A$2:$D$11,4,FALSE)) -> 946.2
A53: 11 | C53: =10^((LOG10(C21*($E$35/100))-VLOOKUP($A$1,'Rel wt'!$A$2:$D$11,2,FALSE))/VLOOKUP($A$1,'Rel wt'!$A$2:$D$11,4,FALSE)) -> 450.4 | E53: =10^((LOG10(E21*($E$35/100))-VLOOKUP($A$1,'Rel wt'!$A$2:$D$11,2,FALSE))/VLOOKUP($A$1,'Rel wt'!$A$2:$D$11,4,FALSE)) -> 470.4 | G53: =10^((LOG10(G21*($E$35/100))-VLOOKUP($A$1,'Rel wt'!$A$2:$D$11,2,FALSE))/VLOOKUP($A$1,'Rel wt'!$A$2:$D$11,4,FALSE)) -> 636.5 | I53: =10^((LOG10(I21*($E$35/100))-VLOOKUP($A$1,'Rel wt'!$A$2:$D$11,2,FALSE))/VLOOKUP($A$1,'Rel wt'!$A$2:$D$11,4,FALSE)) -> 693.4 | K53: =10^((LOG10(K21*($E$35/100))-VLOOKUP($A$1,'Rel wt'!$A$2:$D$11,2,FALSE))/VLOOKUP($A$1,'Rel wt'!$A$2:$D$11,4,FALSE)) -> 946.2 | M53: =10^((LOG10(M21*($E$35/100))-VLOOKUP($A$1,'Rel wt'!$A$2:$D$11,2,FALSE))/VLOOKUP($A$1,'Rel wt'!$A$2:$D$11,4,FALSE)) -> 989.5
A54: 12 | C54: =10^((LOG10(C22*($E$35/100))-VLOOKUP($A$1,'Rel wt'!$A$2:$D$11,2,FALSE))/VLOOKUP($A$1,'Rel wt'!$A$2:$D$11,4,FALSE)) -> 470.4 | E54: =10^((LOG10(E22*($E$35/100))-VLOOKUP($A$1,'Rel wt'!$A$2:$D$11,2,FALSE))/VLOOKUP($A$1,'Rel wt'!$A$2:$D$11,4,FALSE)) -> 488.6 | G54: =10^((LOG10(G22*($E$35/100))-VLOOKUP($A$1,'Rel wt'!$A$2:$D$11,2,FALSE))/VLOOKUP($A$1,'Rel wt'!$A$2:$D$11,4,FALSE)) -> 693.4 | I54: =10^((LOG10(I22*($E$35/100))-VLOOKUP($A$1,'Rel wt'!$A$2:$D$11,2,FALSE))/VLOOKUP($A$1,'Rel wt'!$A$2:$D$11,4,FALSE)) -> 764.2 | K54: =10^((LOG10(K22*($E$35/100))-VLOOKUP($A$1,'Rel wt'!$A$2:$D$11,2,FALSE))/VLOOKUP($A$1,'Rel wt'!$A$2:$D$11,4,FALSE)) -> 989.5 | M54: =10^((LOG10(M22*($E$35/100))-VLOOKUP($A$1,'Rel wt'!$A$2:$D$11,2,FALSE))/VLOOKUP($A$1,'Rel wt'!$A$2:$D$11,4,FALSE)) -> 1028.6
A55: 13 | C55: =10^((LOG10(C23*($E$35/100))-VLOOKUP($A$1,'Rel wt'!$A$2:$D$11,2,FALSE))/VLOOKUP($A$1,'Rel wt'!$A$2:$D$11,4,FALSE)) -> 488.6 | E55: =10^((LOG10(E23*($E$35/100))-VLOOKUP($A$1,'Rel wt'!$A$2:$D$11,2,FALSE))/VLOOKUP($A$1,'Rel wt'!$A$2:$D$11,4,FALSE)) -> 505.3 | G55: =10^((LOG10(G23*($E$35/100))-VLOOKUP($A$1,'Rel wt'!$A$2:$D$11,2,FALSE))/VLOOKUP($A$1,'Rel wt'!$A$2:$D$11,4,FALSE)) -> 764.2 | I55: =10^((LOG10(I23*($E$35/100))-VLOOKUP($A$1,'Rel wt'!$A$2:$D$11,2,FALSE))/VLOOKUP($A$1,'Rel wt'!$A$2:$D$11,4,FALSE)) -> 603.0 | K55: =10^((LOG10(K23*($E$35/100))-VLOOKUP($A$1,'Rel wt'!$A$2:$D$11,2,FALSE))/VLOOKUP($A$1,'Rel wt'!$A$2:$D$11,4,FALSE)) -> 1028.6 | M55: =10^((LOG10(M23*($E$35/100))-VLOOKUP($A$1,'Rel wt'!$A$2:$D$11,2,FALSE))/VLOOKUP($A$1,'Rel wt'!$A$2:$D$11,4,FALSE)) -> 1064.5
A56: 14 | C56: =10^((LOG10(C24*($E$35/100))-VLOOKUP($A$1,'Rel wt'!$A$2:$D$11,2,FALSE))/VLOOKUP($A$1,'Rel wt'!$A$2:$D$11,4,FALSE)) -> 505.3 | E56: =10^((LOG10(E24*($E$35/100))-VLOOKUP($A$1,'Rel wt'!$A$2:$D$11,2,FALSE))/VLOOKUP($A$1,'Rel wt'!$A$2:$D$11,4,FALSE)) -> 520.7 | G56: =10^((LOG10(G24*($E$35/100))-VLOOKUP($A$1,'Rel wt'!$A$2:$D$11,2,FALSE))/VLOOKUP($A$1,'Rel wt'!$A$2:$D$11,4,FALSE)) -> 603.0 | I56: =10^((LOG10(I24*($E$35/100))-VLOOKUP($A$1,'Rel wt'!$A$2:$D$11,2,FALSE))/VLOOKUP($A$1,'Rel wt'!$A$2:$D$11,4,FALSE)) -> 750.0 | K56: =10^((LOG10(K24*($E$35/100))-VLOOKUP($A$1,'Rel wt'!$A$2:$D$11,2,FALSE))/VLOOKUP($A$1,'Rel wt'!$A$2:$D$11,4,FALSE)) -> 1064.5 | M56: =10^((LOG10(M24*($E$35/100))-VLOOKUP($A$1,'Rel wt'!$A$2:$D$11,2,FALSE))/VLOOKUP($A$1,'Rel wt'!$A$2:$D$11,4,FALSE)) -> 1097.7
A57: 15 | C57: =10^((LOG10(C25*($E$35/100))-VLOOKUP($A$1,'Rel wt'!$A$2:$D$11,2,FALSE))/VLOOKUP($A$1,'Rel wt'!$A$2:$D$11,4,FALSE)) -> 520.7 | E57: =10^((LOG10(E25*($E$35/100))-VLOOKUP($A$1,'Rel wt'!$A$2:$D$11,2,FALSE))/VLOOKUP($A$1,'Rel wt'!$A$2:$D$11,4,FALSE)) -> 535.2 | G57: =10^((LOG10(G25*($E$35/100))-VLOOKUP($A$1,'Rel wt'!$A$2:$D$11,2,FALSE))/VLOOKUP($A$1,'Rel wt'!$A$2:$D$11,4,FALSE)) -> 750.0 | I57: =10^((LOG10(I25*($E$35/100))-VLOOKUP($A$1,'Rel wt'!$A$2:$D$11,2,FALSE))/VLOOKUP($A$1,'Rel wt'!$A$2:$D$11,4,FALSE)) -> 792.8 | K57: =10^((LOG10(K25*($E$35/100))-VLOOKUP($A$1,'Rel wt'!$A$2:$D$11,2,FALSE))/VLOOKUP($A$1,'Rel wt'!$A$2:$D$11,4,FALSE)) -> 1097.7 | M57: =10^((LOG10(M25*($E$35/100))-VLOOKUP($A$1,'Rel wt'!$A$2:$D$11,2,FALSE))/VLOOKUP($A$1,'Rel wt'!$A$2:$D$11,4,FALSE)) -> 1128.6

Sheet ST8 SAE
A1: Walleye and Saugeye
A2: Litterature values associated with low (1), medium (2), and high (3) parameter values in Evans et al 2014 predator-prey calculation tables. For growth, pick the column under annular growth increment that most closely matches the size structure (mean weight at age) of your population at the beginning or ending of the year. Sizes are given as weight (g) because this is the relevant metric for the bioenergetic equations. To see an aproximate size in length, look at the table below the main table (assumes relative weight you specify in the yellow cell). Mortality and population size are naturally coupled. As such, pick the mortality of the three given that is most similar to your population's mortality (this will define the 1, 2, or 3 for mortality), then select the column with that mortality rate that has the total population size most similar to your populations size (look at the bottom of the table for the size with all age classes summed together). This will define the 1, 2, or 3 for initial population size.
O5: Gizzard shad consumed (percent by weight) | U5: Initial population size (number ha-1)
C6: Annual growth increment (g) | U6: Low | AA6: Medium | AG6: High
C7: Low | G7: Medium | K7: High | U7: A 32.8% | W7: A 50.9% | Y7: A 69.7% | AA7: A 32.8% | AC7: A 50.9% | AE7: A 69.7% | AG7: A 32.8% | AI7: A 50.9% | AK7: A 69.7%
A8: Age | C8: Start | E8: End | G8: Start | I8: End | K8: Start | M8: End | O8: Low | Q8: Medium | S8: High
A10: 0 | C10: - | E10: - | G10: - | I10: - | K10: - | M10: - | O10: - | Q10: - | S10: - | U10: 8.47 | W10: 12.98 | Y10: 17.77 | AA10: 41.21 | AC10: 63.14 | AE10: 86.47 | AG10: 93.48 | AI10: 143.20 | AK10: 196.13
A11: 1 | C11: 32.5 | E11: 98.1 | G11: 65.9 | I11: 255.1 | K11: 182.0 | M11: 601.8 | O11: 29.6% | Q11: 80.4% | S11: 94.3% | U11: 5.69 | W11: 6.38 | Y11: 5.38 | AA11: 27.69 | AC11: 31.03 | AE11: 26.20 | AG11: 62.82 | AI11: 70.38 | AK11: 59.43
A12: 2 | C12: 98.1 | E12: 224.8 | G12: 255.1 | I12: 590.3 | K12: 601.8 | M12: 1,135.0 | O12: 52.9% | Q12: 80.4% | S12: 94.3% | U12: 3.82 | W12: 3.19 | Y12: 1.63 | AA12: 18.61 | AC12: 15.52 | AE12: 7.94 | AG12: 42.21 | AI12: 35.19 | AK12: 18.01
A13: 3 | C13: 224.8 | E13: 403.5 | G13: 590.3 | I13: 942.9 | K13: 1,135.0 | M13: 1,800.5 | O13: 57.7% | Q13: 78.7% | S13: 94.3% | U13: 2.57 | W13: 1.59 | Y13: 0.49 | AA13: 12.51 | AC13: 7.76 | AE13: 2.41 | AG13: 28.37 | AI13: 17.60 | AK13: 5.46
A14: 4 | C14: 403.5 | E14: 562.9 | G14: 942.9 | I14: 1,327.6 | K14: 1,800.5 | M14: 2,326.6 | O14: 57.7% | Q14: 80.1% | S14: 94.3% | U14: 1.73 | W14: 0.80 | Y14: 0.15 | AA14: 8.40 | AC14: 3.88 | AE14: 0.73 | AG14: 19.06 | AI14: 8.80 | AK14: 1.65
A15: 5 | C15: 562.9 | E15: 715.0 | G15: 1,327.6 | I15: 1,730.5 | K15: 2,326.6 | M15: 2,927.9 | O15: 57.7% | Q15: 80.1% | S15: 94.3% | U15: 1.16 | W15: 0.40 | Y15: 0.05 | AA15: 5.65 | AC15: 1.94 | AE15: 0.22 | AG15: 12.81 | AI15: 4.40 | AK15: 0.50
A16: 6 | C16: 715.0 | E16: 933.6 | G16: 1,730.5 | I16: 2,094.0 | K16: 2,927.9 | M16: 3,464.6 | O16: 57.7% | Q16: 80.1% | S16: 94.3% | U16: 0.78 | W16: 0.20 | Y16: 0.01 | AA16: 3.80 | AC16: 0.97 | AE16: 0.07 | AG16: 8.61 | AI16: 2.20 | AK16: 0.15
A17: 7 | C17: 933.6 | E17: 1,040.7 | G17: 2,094.0 | I17: 2,263.5 | K17: 3,464.6 | M17: 4,026.6 | O17: 57.7% | Q17: 80.1% | S17: 94.3% | U17: 0.52 | W17: 0.10 | Y17: 0.00 | AA17: 2.55 | AC17: 0.48 | AE17: 0.02 | AG17: 5.78 | AI17: 1.10 | AK17: 0.05
A18: 8 | C18: 1,040.7 | E18: 1,151.0 | G18: 2,263.5 | I18: 1,924.9 | K18: 4,026.6 | M18: 4,211.1 | O18: 57.7% | Q18: 80.1% | S18: 94.3% | U18: 0.35 | W18: 0.05 | Y18: 0.00 | AA18: 1.71 | AC18: 0.24 | AE18: 0.01 | AG18: 3.89 | AI18: 0.55 | AK18: 0.01
A19: 9 | C19: 1,151.0 | E19: 1,256.7 | G19: 1,924.9 | I19: 1,968.5 | K19: 4,211.1 | M19: 4,293.7 | O19: 57.7% | Q19: 80.1% | S19: 94.3% | U19: 0.24 | W19: 0.02 | Y19: 0.00 | AA19: 1.15 | AC19: 0.12 | AE19: 0.00 | AG19: 2.61 | AI19: 0.27 | AK19: 0.00
A20: 10 | C20: 1,256.7 | E20: 1,362.3 | G20: 1,968.5 | I20: 1,930.5 | K20: 4,293.7 | M20: 4,376.4 | O20: 57.7% | Q20: 80.1% | S20: 94.3% | U20: 0.16 | W20: 0.01 | Y20: 0.00 | AA20: 0.77 | AC20: 0.06 | AE20: 0.00 | AG20: 1.76 | AI20: 0.14 | AK20: 0.00
S22: ∑(number ha-1) | U22: 25.50 | W22: 25.72 | Y22: 25.50 | AA22: 124.06 | AC22: 125.14 | AE22: 124.06 | AG22: 281.39 | AI22: 283.83 | AK22: 281.39
A29: To evaluate growth in mm instead of g, enter the average relative weight for your population in the yellow box below then use the below table. Note, relative weight = 92 is about average for most species
C32: Avg relative weight | E32: 92
C35: Annual growth increment (mm)
C36: Low (1) | G36: Medium (2) | K36: High (3)
A37: Age | C37: Start | E37: End | G37: Start | I37: End | K37: Start | M37: End
A39: 0 | C39: - | E39: - | G39: - | I39: - | K39: - | M39: -
A40: 1 | C40: =10^((LOG10(C11*($E$32/100))-VLOOKUP($A$1,'Rel wt'!$A$2:$D$11,2,FALSE))/VLOOKUP($A$1,'Rel wt'!$A$2:$D$11,4,FALSE)) -> 156.5 | E40: =10^((LOG10(E11*($E$32/100))-VLOOKUP($A$1,'Rel wt'!$A$2:$D$11,2,FALSE))/VLOOKUP($A$1,'Rel wt'!$A$2:$D$11,4,FALSE)) -> 219.5 | G40: =10^((LOG10(G11*($E$32/100))-VLOOKUP($A$1,'Rel wt'!$A$2:$D$11,2,FALSE))/VLOOKUP($A$1,'Rel wt'!$A$2:$D$11,4,FALSE)) -> 194.4 | I40: =10^((LOG10(I11*($E$32/100))-VLOOKUP($A$1,'Rel wt'!$A$2:$D$11,2,FALSE))/VLOOKUP($A$1,'Rel wt'!$A$2:$D$11,4,FALSE)) -> 294.2 | K40: =10^((LOG10(K11*($E$32/100))-VLOOKUP($A$1,'Rel wt'!$A$2:$D$11,2,FALSE))/VLOOKUP($A$1,'Rel wt'!$A$2:$D$11,4,FALSE)) -> 265.3 | M40: =10^((LOG10(M11*($E$32/100))-VLOOKUP($A$1,'Rel wt'!$A$2:$D$11,2,FALSE))/VLOOKUP($A$1,'Rel wt'!$A$2:$D$11,4,FALSE)) -> 382.6
A41: 2 | C41: =10^((LOG10(C12*($E$32/100))-VLOOKUP($A$1,'Rel wt'!$A$2:$D$11,2,FALSE))/VLOOKUP($A$1,'Rel wt'!$A$2:$D$11,4,FALSE)) -> 219.5 | E41: =10^((LOG10(E12*($E$32/100))-VLOOKUP($A$1,'Rel wt'!$A$2:$D$11,2,FALSE))/VLOOKUP($A$1,'Rel wt'!$A$2:$D$11,4,FALSE)) -> 283.0 | G41: =10^((LOG10(G12*($E$32/100))-VLOOKUP($A$1,'Rel wt'!$A$2:$D$11,2,FALSE))/VLOOKUP($A$1,'Rel wt'!$A$2:$D$11,4,FALSE)) -> 294.2 | I41: =10^((LOG10(I12*($E$32/100))-VLOOKUP($A$1,'Rel wt'!$A$2:$D$11,2,FALSE))/VLOOKUP($A$1,'Rel wt'!$A$2:$D$11,4,FALSE)) -> 380.4 | K41: =10^((LOG10(K12*($E$32/100))-VLOOKUP($A$1,'Rel wt'!$A$2:$D$11,2,FALSE))/VLOOKUP($A$1,'Rel wt'!$A$2:$D$11,4,FALSE)) -> 382.6 | M41: =10^((LOG10(M12*($E$32/100))-VLOOKUP($A$1,'Rel wt'!$A$2:$D$11,2,FALSE))/VLOOKUP($A$1,'Rel wt'!$A$2:$D$11,4,FALSE)) -> 464.6
A42: 3 | C42: =10^((LOG10(C13*($E$32/100))-VLOOKUP($A$1,'Rel wt'!$A$2:$D$11,2,FALSE))/VLOOKUP($A$1,'Rel wt'!$A$2:$D$11,4,FALSE)) -> 283.0 | E42: =10^((LOG10(E13*($E$32/100))-VLOOKUP($A$1,'Rel wt'!$A$2:$D$11,2,FALSE))/VLOOKUP($A$1,'Rel wt'!$A$2:$D$11,4,FALSE)) -> 338.5 | G42: =10^((LOG10(G13*($E$32/100))-VLOOKUP($A$1,'Rel wt'!$A$2:$D$11,2,FALSE))/VLOOKUP($A$1,'Rel wt'!$A$2:$D$11,4,FALSE)) -> 380.4 | I42: =10^((LOG10(I13*($E$32/100))-VLOOKUP($A$1,'Rel wt'!$A$2:$D$11,2,FALSE))/VLOOKUP($A$1,'Rel wt'!$A$2:$D$11,4,FALSE)) -> 439.0 | K42: =10^((LOG10(K13*($E$32/100))-VLOOKUP($A$1,'Rel wt'!$A$2:$D$11,2,FALSE))/VLOOKUP($A$1,'Rel wt'!$A$2:$D$11,4,FALSE)) -> 464.6 | M42: =10^((LOG10(M13*($E$32/100))-VLOOKUP($A$1,'Rel wt'!$A$2:$D$11,2,FALSE))/VLOOKUP($A$1,'Rel wt'!$A$2:$D$11,4,FALSE)) -> 535.1
A43: 4 | C43: =10^((LOG10(C14*($E$32/100))-VLOOKUP($A$1,'Rel wt'!$A$2:$D$11,2,FALSE))/VLOOKUP($A$1,'Rel wt'!$A$2:$D$11,4,FALSE)) -> 338.5 | E43: =10^((LOG10(E14*($E$32/100))-VLOOKUP($A$1,'Rel wt'!$A$2:$D$11,2,FALSE))/VLOOKUP($A$1,'Rel wt'!$A$2:$D$11,4,FALSE)) -> 374.9 | G43: =10^((LOG10(G14*($E$32/100))-VLOOKUP($A$1,'Rel wt'!$A$2:$D$11,2,FALSE))/VLOOKUP($A$1,'Rel wt'!$A$2:$D$11,4,FALSE)) -> 439.0 | I43: =10^((LOG10(I14*($E$32/100))-VLOOKUP($A$1,'Rel wt'!$A$2:$D$11,2,FALSE))/VLOOKUP($A$1,'Rel wt'!$A$2:$D$11,4,FALSE)) -> 487.5 | K43: =10^((LOG10(K14*($E$32/100))-VLOOKUP($A$1,'Rel wt'!$A$2:$D$11,2,FALSE))/VLOOKUP($A$1,'Rel wt'!$A$2:$D$11,4,FALSE)) -> 535.1 | M43: =10^((LOG10(M14*($E$32/100))-VLOOKUP($A$1,'Rel wt'!$A$2:$D$11,2,FALSE))/VLOOKUP($A$1,'Rel wt'!$A$2:$D$11,4,FALSE)) -> 578.8
A44: 5 | C44: =10^((LOG10(C15*($E$32/100))-VLOOKUP($A$1,'Rel wt'!$A$2:$D$11,2,FALSE))/VLOOKUP($A$1,'Rel wt'!$A$2:$D$11,4,FALSE)) -> 374.9 | E44: =10^((LOG10(E15*($E$32/100))-VLOOKUP($A$1,'Rel wt'!$A$2:$D$11,2,FALSE))/VLOOKUP($A$1,'Rel wt'!$A$2:$D$11,4,FALSE)) -> 403.3 | G44: =10^((LOG10(G15*($E$32/100))-VLOOKUP($A$1,'Rel wt'!$A$2:$D$11,2,FALSE))/VLOOKUP($A$1,'Rel wt'!$A$2:$D$11,4,FALSE)) -> 487.5 | I44: =10^((LOG10(I15*($E$32/100))-VLOOKUP($A$1,'Rel wt'!$A$2:$D$11,2,FALSE))/VLOOKUP($A$1,'Rel wt'!$A$2:$D$11,4,FALSE)) -> 528.7 | K44: =10^((LOG10(K15*($E$32/100))-VLOOKUP($A$1,'Rel wt'!$A$2:$D$11,2,FALSE))/VLOOKUP($A$1,'Rel wt'!$A$2:$D$11,4,FALSE)) -> 578.8 | M44: =10^((LOG10(M15*($E$32/100))-VLOOKUP($A$1,'Rel wt'!$A$2:$D$11,2,FALSE))/VLOOKUP($A$1,'Rel wt'!$A$2:$D$11,4,FALSE)) -> 621.0
A45: 6 | C45: =10^((LOG10(C16*($E$32/100))-VLOOKUP($A$1,'Rel wt'!$A$2:$D$11,2,FALSE))/VLOOKUP($A$1,'Rel wt'!$A$2:$D$11,4,FALSE)) -> 403.3 | E45: =10^((LOG10(E16*($E$32/100))-VLOOKUP($A$1,'Rel wt'!$A$2:$D$11,2,FALSE))/VLOOKUP($A$1,'Rel wt'!$A$2:$D$11,4,FALSE)) -> 437.7 | G45: =10^((LOG10(G16*($E$32/100))-VLOOKUP($A$1,'Rel wt'!$A$2:$D$11,2,FALSE))/VLOOKUP($A$1,'Rel wt'!$A$2:$D$11,4,FALSE)) -> 528.7 | I45: =10^((LOG10(I16*($E$32/100))-VLOOKUP($A$1,'Rel wt'!$A$2:$D$11,2,FALSE))/VLOOKUP($A$1,'Rel wt'!$A$2:$D$11,4,FALSE)) -> 560.5 | K45: =10^((LOG10(K16*($E$32/100))-VLOOKUP($A$1,'Rel wt'!$A$2:$D$11,2,FALSE))/VLOOKUP($A$1,'Rel wt'!$A$2:$D$11,4,FALSE)) -> 621.0 | M45: =10^((LOG10(M16*($E$32/100))-VLOOKUP($A$1,'Rel wt'!$A$2:$D$11,2,FALSE))/VLOOKUP($A$1,'Rel wt'!$A$2:$D$11,4,FALSE)) -> 653.9
A46: 7 | C46: =10^((LOG10(C17*($E$32/100))-VLOOKUP($A$1,'Rel wt'!$A$2:$D$11,2,FALSE))/VLOOKUP($A$1,'Rel wt'!$A$2:$D$11,4,FALSE)) -> 437.7 | E46: =10^((LOG10(E17*($E$32/100))-VLOOKUP($A$1,'Rel wt'!$A$2:$D$11,2,FALSE))/VLOOKUP($A$1,'Rel wt'!$A$2:$D$11,4,FALSE)) -> 452.5 | G46: =10^((LOG10(G17*($E$32/100))-VLOOKUP($A$1,'Rel wt'!$A$2:$D$11,2,FALSE))/VLOOKUP($A$1,'Rel wt'!$A$2:$D$11,4,FALSE)) -> 560.5 | I46: =10^((LOG10(I17*($E$32/100))-VLOOKUP($A$1,'Rel wt'!$A$2:$D$11,2,FALSE))/VLOOKUP($A$1,'Rel wt'!$A$2:$D$11,4,FALSE)) -> 574.0 | K46: =10^((LOG10(K17*($E$32/100))-VLOOKUP($A$1,'Rel wt'!$A$2:$D$11,2,FALSE))/VLOOKUP($A$1,'Rel wt'!$A$2:$D$11,4,FALSE)) -> 653.9 | M46: =10^((LOG10(M17*($E$32/100))-VLOOKUP($A$1,'Rel wt'!$A$2:$D$11,2,FALSE))/VLOOKUP($A$1,'Rel wt'!$A$2:$D$11,4,FALSE)) -> 684.7
A47: 8 | C47: =10^((LOG10(C18*($E$32/100))-VLOOKUP($A$1,'Rel wt'!$A$2:$D$11,2,FALSE))/VLOOKUP($A$1,'Rel wt'!$A$2:$D$11,4,FALSE)) -> 452.5 | E47: =10^((LOG10(E18*($E$32/100))-VLOOKUP($A$1,'Rel wt'!$A$2:$D$11,2,FALSE))/VLOOKUP($A$1,'Rel wt'!$A$2:$D$11,4,FALSE)) -> 466.6 | G47: =10^((LOG10(G18*($E$32/100))-VLOOKUP($A$1,'Rel wt'!$A$2:$D$11,2,FALSE))/VLOOKUP($A$1,'Rel wt'!$A$2:$D$11,4,FALSE)) -> 574.0 | I47: =10^((LOG10(I18*($E$32/100))-VLOOKUP($A$1,'Rel wt'!$A$2:$D$11,2,FALSE))/VLOOKUP($A$1,'Rel wt'!$A$2:$D$11,4,FALSE)) -> 546.2 | K47: =10^((LOG10(K18*($E$32/100))-VLOOKUP($A$1,'Rel wt'!$A$2:$D$11,2,FALSE))/VLOOKUP($A$1,'Rel wt'!$A$2:$D$11,4,FALSE)) -> 684.7 | M47: =10^((LOG10(M18*($E$32/100))-VLOOKUP($A$1,'Rel wt'!$A$2:$D$11,2,FALSE))/VLOOKUP($A$1,'Rel wt'!$A$2:$D$11,4,FALSE)) -> 694.1
A48: 9 | C48: =10^((LOG10(C19*($E$32/100))-VLOOKUP($A$1,'Rel wt'!$A$2:$D$11,2,FALSE))/VLOOKUP($A$1,'Rel wt'!$A$2:$D$11,4,FALSE)) -> 466.6 | E48: =10^((LOG10(E19*($E$32/100))-VLOOKUP($A$1,'Rel wt'!$A$2:$D$11,2,FALSE))/VLOOKUP($A$1,'Rel wt'!$A$2:$D$11,4,FALSE)) -> 479.3 | G48: =10^((LOG10(G19*($E$32/100))-VLOOKUP($A$1,'Rel wt'!$A$2:$D$11,2,FALSE))/VLOOKUP($A$1,'Rel wt'!$A$2:$D$11,4,FALSE)) -> 546.2 | I48: =10^((LOG10(I19*($E$32/100))-VLOOKUP($A$1,'Rel wt'!$A$2:$D$11,2,FALSE))/VLOOKUP($A$1,'Rel wt'!$A$2:$D$11,4,FALSE)) -> 550.0 | K48: =10^((LOG10(K19*($E$32/100))-VLOOKUP($A$1,'Rel wt'!$A$2:$D$11,2,FALSE))/VLOOKUP($A$1,'Rel wt'!$A$2:$D$11,4,FALSE)) -> 694.1 | M48: =10^((LOG10(M19*($E$32/100))-VLOOKUP($A$1,'Rel wt'!$A$2:$D$11,2,FALSE))/VLOOKUP($A$1,'Rel wt'!$A$2:$D$11,4,FALSE)) -> 698.3
A49: 10 | C49: =10^((LOG10(C20*($E$32/100))-VLOOKUP($A$1,'Rel wt'!$A$2:$D$11,2,FALSE))/VLOOKUP($A$1,'Rel wt'!$A$2:$D$11,4,FALSE)) -> 479.3 | E49: =10^((LOG10(E20*($E$32/100))-VLOOKUP($A$1,'Rel wt'!$A$2:$D$11,2,FALSE))/VLOOKUP($A$1,'Rel wt'!$A$2:$D$11,4,FALSE)) -> 491.3 | G49: =10^((LOG10(G20*($E$32/100))-VLOOKUP($A$1,'Rel wt'!$A$2:$D$11,2,FALSE))/VLOOKUP($A$1,'Rel wt'!$A$2:$D$11,4,FALSE)) -> 550.0 | I49: =10^((LOG10(I20*($E$32/100))-VLOOKUP($A$1,'Rel wt'!$A$2:$D$11,2,FALSE))/VLOOKUP($A$1,'Rel wt'!$A$2:$D$11,4,FALSE)) -> 546.7 | K49: =10^((LOG10(K20*($E$32/100))-VLOOKUP($A$1,'Rel wt'!$A$2:$D$11,2,FALSE))/VLOOKUP($A$1,'Rel wt'!$A$2:$D$11,4,FALSE)) -> 698.3 | M49: =10^((LOG10(M20*($E$32/100))-VLOOKUP($A$1,'Rel wt'!$A$2:$D$11,2,FALSE))/VLOOKUP($A$1,'Rel wt'!$A$2:$D$11,4,FALSE)) -> 702.4

Sheet Rel wt (hidden)
B1: Intercept
A2: Species | B2: Metric | C2: English | D2: slope | E2: Min size
A3: Largemouth Bass | B3: -5.316 | C3: -3.49 | D3: 3.191 | E3: 150
A4: White Crappie | B4: -5.642 | C4: -3.618 | D4: 3.332 | E4: 100
A5: Blue Catfish | B5: -6.067 | C5: -3.95 | D5: 3.4 | E5: 160
A6: Walleye and Saugeye | B6: -5.692 | C6: -3.76 | D6: 3.266 | E6: 170
A7: Walleye | B7: -5.453 | C7: -3.642 | D7: 3.18 | E7: 150
A8: Striper & Hybrid Bass | B8: -4.924 | C8: -3.358 | D8: 3.007 | E8: 150
A9: Palmetto Bass | B9: -5.201 | C9: -3.448 | D9: 3.139 | E9: 115
A10: White Bass | B10: -5.006 | C10: -3.394 | D10: 3.081 | E10: 115
A11: Flathead Catfish | B11: -5.542 | C11: -3.661 | D11: 3.23 | E11: 130
